{"text_format":"1","workbook":"xlsx","n_sheets":5,"sheets":["Flugzeugtypen","Ausbildungsbedarfsanalyse","Form 3","Learning Objectives","Part66 Matrix"],"not_rendered":{"charts":0,"images":1,"macros":1,"external_links":0,"defined_names":18,"comments":2,"pivot_tables":0},"unopened":[],"bounds":{"document_bytes":16777216,"sheet_cells":100000,"rows_first":2000,"rows_last":500,"rows_between":2000,"halvings":0,"cell_chars":16384,"cell_head_chars":4096},"cells_cut":0,"cells_raw":0,"read":"whole","date_system":"1900"}

{"sheet":"Flugzeugtypen","index":0,"n_rows":195,"n_cols":1,"rows_kept":195,"cut":false,"hidden":true,"merged":[]}
["Part-66 Type rating endorsement iaw EDD 2011/008/R"]
["Aero Ae-270 (PWC PT6)"]
["Airbus A300-600 (GE CF6)"]
["Airbus A300-600 (PW 4000)"]
["Airbus A300-600 (PW JT9D)"]
["Airbus A300-600ST (GE CF6)"]
["Airbus A310 (GE CF6)"]
["Airbus A310 (PW 4000)"]
["Airbus A310 (PW JT9D)"]
["Airbus A318 (PW 6000)"]
["Airbus A318/A319/A320/A321 (CFM56)"]
["Airbus A319/A320/A321 (IAE V2500)"]
["Airbus A330 (GE CF6)"]
["Airbus A330 (PW 4000)"]
["Airbus A330 (RR RB 211 Trent 700)"]
["Airbus A340 (CFM56)"]
["Airbus A340 (RR RB 211 Trent 500)"]
["Airbus A350 (RR Trent XWB)"]
["Airbus A380 (EA GP7200)"]
["Airbus A380 (RR RB 211 Trent 900)"]
["Alenia C-27 (Allison/RR AE2100)"]
["Antonov AN26 (Ivchenko AI-24)"]
["ATP (PWC PW120)"]
["ATR 42-200/300 series (PWC PW120)"]
["ATR 42-400/500/72-212A (PWC PW120)"]
["ATR 72-100/200 series (PWC PW120)"]
["ATR 72-100/200 series (PWC PW120) "]
["BAe 125 Series (RR Viper)"]
["BAe 125 Series /700/800 (Honeywell TFE731)"]
["BAe 125 Series 1000 (PWC PW305)"]
["BAe 125 Series 750/800XP/850XP/900XP (Honeywell TFE731)"]
["BAe 146/ AVRO 146-RJ (Honeywell ALF500 Series)"]
["Beech  90 Series (PWC PT6)"]
["Beech 1900 (PWC PT6)"]
["Beech 200 Series (PWC PT6)"]
["Beech 300 Series (PWC PT6)"]
["Beech 390 (Williams FJ44)"]
["Beech 400 / Mitsubishi MU-300 (PWC JT15)"]
["Beech 99/100 Series (PWC PT6)"]
["Beech B100 (Honeywell TPE331)"]
["Beriev 200 (Ivchenko D-436TP)"]
["Boeing 707 (PW JT4)"]
["Boeing 707 (RR Conway)"]
["Boeing 707/720 (PW JT3D)"]
["Boeing 727 (PW JT8D)"]
["Boeing 737-100/200 (PW JT8D)"]
["Boeing 737-300/400/500 (CFM56)"]
["Boeing 737-600/700/800/900 (CFM56)"]
["Boeing 747-100 (PW JT9D)"]
["Boeing 747-200/300 (GE CF6)"]
["Boeing 747-200/300 (PW JT9D)"]
["Boeing 747-200/300 (RR RB211)"]
["Boeing 747-400 (GE CF6)"]
["Boeing 747-400 (PW 4000)"]
["Boeing 747-400 (RR RB211)"]
["Boeing 747-8 (GE GEnx)"]
["Boeing 747SP (PW JT9D)"]
["Boeing 747SP (RR RB211)"]
["Boeing 757-200/300 (PW 2000)"]
["Boeing 757-200/300 (RR RB211)"]
["Boeing 767-200/300 (PW 4000)"]
["Boeing 767-200/300 (PW JT9D)"]
["Boeing 767-200/300/400 (GE CF6)"]
["Boeing 767-300 (RR RB211)"]
["Boeing 777-200/300 (GE 90)"]
["Boeing 777-200/300 (PW 4000)"]
["Boeing 777-200/300 (RR RB211 Trent 800)"]
["Boeing 787-8 (GEnx)"]
["Boeing 787-8 (RR RB 211 Trent 1000)"]
["Bombardier BD-100-1A10 (Honeywell AS907)"]
["Bombardier BD-700 Series (RRD BR710)"]
["Bombardier CL-600-1A11 (Honeywell ALF502)"]
["Bombardier CL-600-2A12/-2B16 (variant CL 601/601-3A/3R) (GE CF34)"]
["Bombardier CL-600-2B16 (variant CL 604) (GE CF34)"]
["Bombardier CL-600-2B19 (GE CF34)"]
["Bombardier CL-600-2C10/-2D15/-2D24/-2E25 (GE CF34)"]
["Bombardier DHC-8-100/200/300 (PWC PW 120)"]
["Bombardier DHC-8-400 (PWC PW150)"]
["Canadair CL-215 (PW R2800)"]
["Canadair CL-215 (PWC PW120)"]
["Canadair CL-415 (PWC PW123)"]
["CASA C-212 (Honeywell TPE331)"]
["CASA C-212 (PWC PT6)"]
["CASA C-295 (PWC PW127)"]
["CASA CN-235 (GE CT7)"]
["Cessna 425 (PWC PT6)"]
["Cessna 441 (Honeywell TPE331)"]
["Cessna 500/ 501/551 (PWC JT15D)"]
["Cessna 510 (PWC PW615)"]
["Cessna 525/525A (Williams FJ 44)"]
["Cessna 525B/C (Williams FJ 44)"]
["Cessna 550/560 (PWC JT15D)"]
["Cessna 550/560 (PWC PW530/535)"]
["Cessna 560XL/XLS (PWC PW545)"]
["Cessna 650 (Honeywell TFE731)"]
["Cessna 680 (PWC PW306)"]
["Cessna 750 (RR Corp AE3007C)"]
["Convair 580 (RR Corp 501)"]
["DC-10/MD-10 (GE CF6)"]
["DC-8 (CFM56)"]
["DC-8 (PW JT3D)"]
["DC-8 (RR Conway)"]
["DC-9 (PW JT8D)"]
["De Havilland DHC-6 (PWC PT6)"]
["De Havilland DHC-7 (PWC PT6)"]
["Dornier 228 (Honeywell TPE331)"]
["Dornier 328-100 (PWC PW119)"]
["Dornier 328-300 (PWC PW306)"]
["Dornier Seastar CD2 (PWC PT6)"]
["Eclipse EA500 (PWC PW610)"]
["Embraer EMB-110 (PWC PT6)"]
["Embraer EMB-120 (PWC PW110 Series)"]
["Embraer EMB-121 (PWC PT6)"]
["Embraer EMB-135/145 (RR Corp AE3007A)"]
["Embraer EMB-500 (PWC PW617) "]
["Embraer EMB-505 (PWC PW535) "]
["Embraer ERJ-170 Series (GE CF34)"]
["Embraer ERJ-190 Series (GE CF34)"]
["Fairchild SA226 (Honeywell TPE331)"]
["Fairchild SA227 Series (Honeywell TPE331) "]
["Fairchild SA227 Series (PWC PT6)"]
["Falcon 10 (Honeywell TFE731)"]
["Falcon 20 (GE CF700)"]
["Falcon 200 (Honeywell ATF 3-6)"]
["Falcon 2000 (CFE 738)"]
["Falcon 2000EX (PWC PW308)"]
["Falcon 2000EX EASy (PWC PW308)"]
["Falcon 20-5 (Honeywell TFE731)"]
["Falcon 50 (Honeywell TFE731)"]
["Falcon 50EX (Honeywell TFE731)"]
["Falcon 7X (PWC PW307A)"]
["Falcon 900 (Honeywell TFE731)"]
["Falcon 900C (Honeywell TFE731)"]
["Falcon 900EX (Honeywell TFE731)"]
["Falcon 900EX EASy (Honeywell TFE731)"]
["Fokker 50/60 Series (PWC PW 125/127)"]
["Fokker 70/100 (RRD Tay) "]
["Fokker F27 / Fairchild F-27/FH-227  (RRD Dart)"]
["Fokker F28 Series (RRD Spey)"]
["Gulfstream (IAI) 100/1125/Astra SPX (Honeywell TFE731)"]
["Gulfstream (IAI) 200/Galaxy (PWC PW306)"]
["Gulfstream (IAI) G150 (Honeywell TFE731)"]
["Gulfstream G-1159 Series (RRD Spey)"]
["Gulfstream G-159 (RRD Dart)"]
["Gulfstream G-IV Series (RRD Tay)"]
["Gulfstream GIV-X Series (RRD Tay)"]
["Gulfstream GV basic model (RRD BR710)"]
["Gulfstream GV-SP Series (RRD BR710)"]
["Hawker 4000 (PWC PW308)"]
["HP.137 (Turbomeca Astazou)"]
["HS748 (RRD Dart)"]
["IAI 1121/1123 (GE CJ610)F"]
["IAI 1124 (Honeywell TFE731)"]
["Jetstream 200 (Turbomeca Astazou)"]
["Jetstream 31/32 (Honeywell TPE331)"]
["Jetstream 41 (Honeywell TPE331)"]
["Learjet 23 (GE CJ610)"]
["Learjet 24/25 (GE CJ610)"]
["Learjet 31 (Honeywell TFE731)"]
["Learjet 35/36 (Honeywell TFE731)"]
["Learjet 55 (Honeywell TFE731)"]
["Learjet 60 (PWC PW305)"]
["Learjet Model 45 (Honeywell TFE731)"]
["Let L-410 (Walter M601)"]
["Let L-410 LW (Walter M601)"]
["Let L-420 (Walter M601)"]
["Lockheed 1329 (Honeywell TFE731)"]
["Lockheed 1329 PW (PW JT12)"]
["Lockheed 188 (RR Corp 501)"]
["Lockheed 382 (RR Corp 501)"]
["Lockheed L-1011 (RR RB211)"]
["MD 717-200 (RRD BR700-715)"]
["MD-11 (GE CF6)"]
["MD-11 (PW 4000)"]
["MD-80 Series (PW JT8D)"]
["MD-90 (IAE V2500)"]
["Mitsubishi MU-2B (Honeywell TPE331)"]
["Piaggio P166 (PWC PT6)"]
["Piaggio P180 Avanti/Avanti II (PWC PT6)"]
["Pilatus PC-12 (PWC PT6)"]
["Piper PA-42 (Honeywell TPE-331)"]
["Piper PA-42 (PWC PT6)"]
["Piper PA-46-500TP (PWC PT6)"]
["PZL M 28 (PWC PT6)"]
["Reims-Cessna F 406 (PWC PT6)"]
["Saab (SF) 340 (GE CT7)"]
["Saab 2000 (RR Corp AE2100)"]
["Sabreliner NA-265 (Honeywell TFE731)"]
["Sabreliner NA-265 (PW JT12)"]
["Shorts SD3 Series-30/SD3-60 (PWC PT6)"]
["Socata TBM 700/850 (PWC PT6)"]
["Tupolev TU 204 (RR RB211)"]
["Twin Commander 680/681/690/695 Series (Honeywell TPE331)"]
["Vulcanair AP68TP Series (RR Corp 250)"]
["Vulcanair SF600 (RR Corp 250)"]

{"sheet":"Ausbildungsbedarfsanalyse","index":1,"n_rows":102,"n_cols":33,"rows_kept":102,"cut":false,"hidden":false,"merged":[[1,5,1,10],[1,11,1,18],[1,19,1,27],[2,19,2,27],[2,11,2,18],[2,5,2,10]]}
[null,"Select","CAT B1","Aero Ae-270 (PWC PT6)"]
[null,"Date",null,null,null,"Level 1",null,null,null,null,null,"Level 2",null,null,null,null,null,null,null,"Level 3",null,null,null,null,null,null,null,null,"Duration in hrs","MCQ Total","Duration in days"]
[null,null,null,null,null,{"$f":"'Learning Objectives'!A1","v":"A brief overview of the airframe, systems and powerplant as outlined in the Systems Description Section of the Aircraft Maintenance Manual/Instructions for Continued Airworthiness."},null,null,null,null,null,{"$f":"'Learning Objectives'!B1","v":"Basic system overview of controls, indicators, principal components, including their location and purpose, servicing and minor troubleshooting. General knowledge of the theoretical and practical aspects of the subject. \n(a)understand the theoretical fundamentals; apply knowledge in a practical manner using detailed procedures)"},null,null,null,null,null,null,null,{"$f":"'Learning Objectives'!C1","v":"Detailed description, operation, component location, removal/installation and bite and troubleshooting procedures to maintenance manual level.\n"},null,null,null,null,null,null,null,null,{"$f":"SUM(AC6:AC145)/60","v":0},{"$f":"SUM(AD6:AD145)","v":0},{"$f":"AC3/6","v":0}]
["Nr","Chapter","Sub-Chapter","ATA Name","LEVEL",{"$f":"'Learning Objectives'!$A3","v":"Provide simple description of whole subject"},{"$f":"'Learning Objectives'!A4","v":"identify safety precautions"},{"$f":"'Learning Objectives'!A5","v":"Identify aircraft manuals and important maintenance practices"},{"$f":"'Learning Objectives'!A6","v":"Identify special tooling and test equipment"},{"$f":"'Learning Objectives'!A7","v":"define the general layout of the aircraft´s major systems"},{"$f":"'Learning Objectives'!A8","v":"define the general layout and characteristics of the powerplant"},{"$f":"'Learning Objectives'!$B3","v":"recall the safety precautions"},{"$f":"'Learning Objectives'!B4","v":"describe systems and aircraft handling particularly access, power availability and sources"},{"$f":"'Learning Objectives'!B5","v":"usage, interpretation and application of appropriate documentation"},{"$f":"'Learning Objectives'!B6","v":"Identify special tooling and test equipment"},{"$f":"'Learning Objectives'!B7","v":"explain the normal function of each major/powerplant system"},{"$f":"'Learning Objectives'!B8","v":"identify the location of the principal components"},{"$f":"'Learning Objectives'!B9","v":"demonstate proficiency of minor trouble shooting and determine status per MEL/CDL"},{"$f":"'Learning Objectives'!B10","v":"describe the procedures for servicing"},{"$f":"'Learning Objectives'!$C3","v":"recall the safety precautions"},{"$f":"'Learning Objectives'!C4","v":"provide detailed description of systems, structures and powerplant and their interrelationships"},{"$f":"'Learning Objectives'!C5","v":"usage, interpretation and application of appropriate documentation incl. SRM, TSM etc."},{"$f":"'Learning Objectives'!C6","v":"Identify special tooling and test equipment"},{"$f":"'Learning Objectives'!C7","v":"identify the location of principal components"},{"$f":"'Learning Objectives'!C8","v":"correlate information from various sources for trouble shooting to maintenance manual level"},{"$f":"'Learning Objectives'!C9","v":"describe the procedures for servicing"},{"$f":"'Learning Objectives'!C10","v":"describe typical functional checks per AMM"},{"$f":"'Learning Objectives'!C11","v":"describe removal/installation procedures unique to aircraft type"},"MINIMUM DURATION PER ATA CHAPTER","Multiple choice questions per ATA Chapter","Teaching methode","Module","COMMENTS"]
["fortlaufend","ATA Chapter","ATA Sub Chapter","ATA Chapter Name","1\n2\n3","X\n--","X\n--","X\n--","X\n--","X\n--","X\n--","X\n--","X\n--","X\n--","X\n--","X\n--","X\n--","X\n--","X\n--","X\n--","X\n--","X\n--","X\n--","X\n--","X\n--","X\n--","X\n--","X\n--","\"tution hours\" in minutes per ATA Chapter (min. 5 minutes)","number of questions per Chapter","upfront teaching\nmedia based training\nMock up or other syntetic training devices","to be defined by each school","important Keypoints, special teaching methode if applicable, deviation to Part66"]
[1,{"$f":"IF(Ausbildungsbedarfsanalyse!$C$1=\"CAT B1\",'Part66 Matrix'!B9,IF(Ausbildungsbedarfsanalyse!$C$1=\"CAT C\",'Part66 Matrix'!B9,IF(Ausbildungsbedarfsanalyse!$C$1=\"CAT B2\",'Part66 Matrix'!B9,IF(Ausbildungsbedarfsanalyse!$C$1=\"CAT B1/2\",'Part66 Matrix'!B9,\"\"))))","v":"05"},{"$f":"B6&\"-00\"","v":"05-00"},{"$f":"IF(Ausbildungsbedarfsanalyse!$C$1=\"CAT B1\",'Part66 Matrix'!C9,IF(Ausbildungsbedarfsanalyse!$C$1=\"CAT C\",'Part66 Matrix'!C9,IF(Ausbildungsbedarfsanalyse!$C$1=\"CAT B2\",'Part66 Matrix'!C9,IF(Ausbildungsbedarfsanalyse!$C$1=\"CAT B1/2\",'Part66 Matrix'!C9,\"\"))))","v":"Time limits/Maintenance checks"},{"$f":"IF(Ausbildungsbedarfsanalyse!$C$1=\"CAT B1\",'Part66 Matrix'!D9,IF(Ausbildungsbedarfsanalyse!$C$1=\"CAT C\",'Part66 Matrix'!E9,IF(Ausbildungsbedarfsanalyse!$C$1=\"CAT B2\",'Part66 Matrix'!F9,IF(Ausbildungsbedarfsanalyse!$C$1=\"CAT B1/2\",'Part66 Matrix'!G9,\"\"))))","v":1}]
[2,{"$f":"IF(Ausbildungsbedarfsanalyse!$C$1=\"CAT B1\",'Part66 Matrix'!B10,IF(Ausbildungsbedarfsanalyse!$C$1=\"CAT C\",'Part66 Matrix'!B10,IF(Ausbildungsbedarfsanalyse!$C$1=\"CAT B2\",'Part66 Matrix'!B10,IF(Ausbildungsbedarfsanalyse!$C$1=\"CAT B1/2\",'Part66 Matrix'!B10,\"\"))))","v":"06A"},{"$f":"B7&\"-00\"","v":"06A-00"},{"$f":"IF(Ausbildungsbedarfsanalyse!$C$1=\"CAT B1\",'Part66 Matrix'!C10,IF(Ausbildungsbedarfsanalyse!$C$1=\"CAT C\",'Part66 Matrix'!C10,IF(Ausbildungsbedarfsanalyse!$C$1=\"CAT B2\",'Part66 Matrix'!C10,IF(Ausbildungsbedarfsanalyse!$C$1=\"CAT B1/2\",'Part66 Matrix'!C10,\"\"))))","v":"Dimensions/Areas (MTOM, etc.)"},{"$f":"IF(Ausbildungsbedarfsanalyse!$C$1=\"CAT B1\",'Part66 Matrix'!D10,IF(Ausbildungsbedarfsanalyse!$C$1=\"CAT C\",'Part66 Matrix'!E10,IF(Ausbildungsbedarfsanalyse!$C$1=\"CAT B2\",'Part66 Matrix'!F10,IF(Ausbildungsbedarfsanalyse!$C$1=\"CAT B1/2\",'Part66 Matrix'!G10,\"\"))))","v":1}]
[{"$f":"IF(Ausbildungsbedarfsanalyse!$C$1=\"CAT B1\",'Part66 Matrix'!A11,IF(Ausbildungsbedarfsanalyse!$C$1=\"CAT C\",'Part66 Matrix'!A11,IF(Ausbildungsbedarfsanalyse!$C$1=\"CAT B2\",'Part66 Matrix'!A11,IF(Ausbildungsbedarfsanalyse!$C$1=\"CAT B1/2\",'Part66 Matrix'!A11,\"\"))))","v":5},{"$f":"IF(Ausbildungsbedarfsanalyse!$C$1=\"CAT B1\",'Part66 Matrix'!B11,IF(Ausbildungsbedarfsanalyse!$C$1=\"CAT C\",'Part66 Matrix'!B11,IF(Ausbildungsbedarfsanalyse!$C$1=\"CAT B2\",'Part66 Matrix'!B11,IF(Ausbildungsbedarfsanalyse!$C$1=\"CAT B1/2\",'Part66 Matrix'!B11,\"\"))))","v":"06B"},"06B-00",{"$f":"IF(Ausbildungsbedarfsanalyse!$C$1=\"CAT B1\",'Part66 Matrix'!C11,IF(Ausbildungsbedarfsanalyse!$C$1=\"CAT C\",'Part66 Matrix'!C11,IF(Ausbildungsbedarfsanalyse!$C$1=\"CAT B2\",'Part66 Matrix'!C11,IF(Ausbildungsbedarfsanalyse!$C$1=\"CAT B1/2\",'Part66 Matrix'!C11,\"\"))))","v":"Zonal and Station Identification Systems"},{"$f":"IF(Ausbildungsbedarfsanalyse!$C$1=\"CAT B1\",'Part66 Matrix'!D11,IF(Ausbildungsbedarfsanalyse!$C$1=\"CAT C\",'Part66 Matrix'!E11,IF(Ausbildungsbedarfsanalyse!$C$1=\"CAT B2\",'Part66 Matrix'!F11,IF(Ausbildungsbedarfsanalyse!$C$1=\"CAT B1/2\",'Part66 Matrix'!G11,\"\"))))","v":1}]
[{"$f":"IF(Ausbildungsbedarfsanalyse!$C$1=\"CAT B1\",'Part66 Matrix'!A12,IF(Ausbildungsbedarfsanalyse!$C$1=\"CAT C\",'Part66 Matrix'!A12,IF(Ausbildungsbedarfsanalyse!$C$1=\"CAT B2\",'Part66 Matrix'!A12,IF(Ausbildungsbedarfsanalyse!$C$1=\"CAT B1/2\",'Part66 Matrix'!A12,\"\"))))","v":6},{"$f":"IF(Ausbildungsbedarfsanalyse!$C$1=\"CAT B1\",'Part66 Matrix'!B12,IF(Ausbildungsbedarfsanalyse!$C$1=\"CAT C\",'Part66 Matrix'!B12,IF(Ausbildungsbedarfsanalyse!$C$1=\"CAT B2\",'Part66 Matrix'!B12,IF(Ausbildungsbedarfsanalyse!$C$1=\"CAT B1/2\",'Part66 Matrix'!B12,\"\"))))","v":"07"},"07-00",{"$f":"IF(Ausbildungsbedarfsanalyse!$C$1=\"CAT B1\",'Part66 Matrix'!C12,IF(Ausbildungsbedarfsanalyse!$C$1=\"CAT C\",'Part66 Matrix'!C12,IF(Ausbildungsbedarfsanalyse!$C$1=\"CAT B2\",'Part66 Matrix'!C12,IF(Ausbildungsbedarfsanalyse!$C$1=\"CAT B1/2\",'Part66 Matrix'!C12,\"\"))))","v":"Lifting and Shoring"},{"$f":"IF(Ausbildungsbedarfsanalyse!$C$1=\"CAT B1\",'Part66 Matrix'!D12,IF(Ausbildungsbedarfsanalyse!$C$1=\"CAT C\",'Part66 Matrix'!E12,IF(Ausbildungsbedarfsanalyse!$C$1=\"CAT B2\",'Part66 Matrix'!F12,IF(Ausbildungsbedarfsanalyse!$C$1=\"CAT B1/2\",'Part66 Matrix'!G12,\"\"))))","v":1}]
[{"$f":"IF(Ausbildungsbedarfsanalyse!$C$1=\"CAT B1\",'Part66 Matrix'!A13,IF(Ausbildungsbedarfsanalyse!$C$1=\"CAT C\",'Part66 Matrix'!A13,IF(Ausbildungsbedarfsanalyse!$C$1=\"CAT B2\",'Part66 Matrix'!A13,IF(Ausbildungsbedarfsanalyse!$C$1=\"CAT B1/2\",'Part66 Matrix'!A13,\"\"))))","v":7},{"$f":"IF(Ausbildungsbedarfsanalyse!$C$1=\"CAT B1\",'Part66 Matrix'!B13,IF(Ausbildungsbedarfsanalyse!$C$1=\"CAT C\",'Part66 Matrix'!B13,IF(Ausbildungsbedarfsanalyse!$C$1=\"CAT B2\",'Part66 Matrix'!B13,IF(Ausbildungsbedarfsanalyse!$C$1=\"CAT B1/2\",'Part66 Matrix'!B13,\"\"))))","v":"08"},"08-00",{"$f":"IF(Ausbildungsbedarfsanalyse!$C$1=\"CAT B1\",'Part66 Matrix'!C13,IF(Ausbildungsbedarfsanalyse!$C$1=\"CAT C\",'Part66 Matrix'!C13,IF(Ausbildungsbedarfsanalyse!$C$1=\"CAT B2\",'Part66 Matrix'!C13,IF(Ausbildungsbedarfsanalyse!$C$1=\"CAT B1/2\",'Part66 Matrix'!C13,\"\"))))","v":"Levelling and weighing"},{"$f":"IF(Ausbildungsbedarfsanalyse!$C$1=\"CAT B1\",'Part66 Matrix'!D13,IF(Ausbildungsbedarfsanalyse!$C$1=\"CAT C\",'Part66 Matrix'!E13,IF(Ausbildungsbedarfsanalyse!$C$1=\"CAT B2\",'Part66 Matrix'!F13,IF(Ausbildungsbedarfsanalyse!$C$1=\"CAT B1/2\",'Part66 Matrix'!G13,\"\"))))","v":1}]
[{"$f":"IF(Ausbildungsbedarfsanalyse!$C$1=\"CAT B1\",'Part66 Matrix'!A14,IF(Ausbildungsbedarfsanalyse!$C$1=\"CAT C\",'Part66 Matrix'!A14,IF(Ausbildungsbedarfsanalyse!$C$1=\"CAT B2\",'Part66 Matrix'!A14,IF(Ausbildungsbedarfsanalyse!$C$1=\"CAT B1/2\",'Part66 Matrix'!A14,\"\"))))","v":8},{"$f":"IF(Ausbildungsbedarfsanalyse!$C$1=\"CAT B1\",'Part66 Matrix'!B14,IF(Ausbildungsbedarfsanalyse!$C$1=\"CAT C\",'Part66 Matrix'!B14,IF(Ausbildungsbedarfsanalyse!$C$1=\"CAT B2\",'Part66 Matrix'!B14,IF(Ausbildungsbedarfsanalyse!$C$1=\"CAT B1/2\",'Part66 Matrix'!B14,\"\"))))","v":"09"},"09-00",{"$f":"IF(Ausbildungsbedarfsanalyse!$C$1=\"CAT B1\",'Part66 Matrix'!C14,IF(Ausbildungsbedarfsanalyse!$C$1=\"CAT C\",'Part66 Matrix'!C14,IF(Ausbildungsbedarfsanalyse!$C$1=\"CAT B2\",'Part66 Matrix'!C14,IF(Ausbildungsbedarfsanalyse!$C$1=\"CAT B1/2\",'Part66 Matrix'!C14,\"\"))))","v":"Towing and taxiing"},{"$f":"IF(Ausbildungsbedarfsanalyse!$C$1=\"CAT B1\",'Part66 Matrix'!D14,IF(Ausbildungsbedarfsanalyse!$C$1=\"CAT C\",'Part66 Matrix'!E14,IF(Ausbildungsbedarfsanalyse!$C$1=\"CAT B2\",'Part66 Matrix'!F14,IF(Ausbildungsbedarfsanalyse!$C$1=\"CAT B1/2\",'Part66 Matrix'!G14,\"\"))))","v":1}]
[{"$f":"IF(Ausbildungsbedarfsanalyse!$C$1=\"CAT B1\",'Part66 Matrix'!A15,IF(Ausbildungsbedarfsanalyse!$C$1=\"CAT C\",'Part66 Matrix'!A15,IF(Ausbildungsbedarfsanalyse!$C$1=\"CAT B2\",'Part66 Matrix'!A15,IF(Ausbildungsbedarfsanalyse!$C$1=\"CAT B1/2\",'Part66 Matrix'!A15,\"\"))))","v":9},{"$f":"IF(Ausbildungsbedarfsanalyse!$C$1=\"CAT B1\",'Part66 Matrix'!B15,IF(Ausbildungsbedarfsanalyse!$C$1=\"CAT C\",'Part66 Matrix'!B15,IF(Ausbildungsbedarfsanalyse!$C$1=\"CAT B2\",'Part66 Matrix'!B15,IF(Ausbildungsbedarfsanalyse!$C$1=\"CAT B1/2\",'Part66 Matrix'!B15,\"\"))))","v":"10"},"10-00",{"$f":"IF(Ausbildungsbedarfsanalyse!$C$1=\"CAT B1\",'Part66 Matrix'!C15,IF(Ausbildungsbedarfsanalyse!$C$1=\"CAT C\",'Part66 Matrix'!C15,IF(Ausbildungsbedarfsanalyse!$C$1=\"CAT B2\",'Part66 Matrix'!C15,IF(Ausbildungsbedarfsanalyse!$C$1=\"CAT B1/2\",'Part66 Matrix'!C15,\"\"))))","v":"Parking/Mooring, Storing and Return to Service"},{"$f":"IF(Ausbildungsbedarfsanalyse!$C$1=\"CAT B1\",'Part66 Matrix'!D15,IF(Ausbildungsbedarfsanalyse!$C$1=\"CAT C\",'Part66 Matrix'!E15,IF(Ausbildungsbedarfsanalyse!$C$1=\"CAT B2\",'Part66 Matrix'!F15,IF(Ausbildungsbedarfsanalyse!$C$1=\"CAT B1/2\",'Part66 Matrix'!G15,\"\"))))","v":1}]
[{"$f":"IF(Ausbildungsbedarfsanalyse!$C$1=\"CAT B1\",'Part66 Matrix'!A16,IF(Ausbildungsbedarfsanalyse!$C$1=\"CAT C\",'Part66 Matrix'!A16,IF(Ausbildungsbedarfsanalyse!$C$1=\"CAT B2\",'Part66 Matrix'!A16,IF(Ausbildungsbedarfsanalyse!$C$1=\"CAT B1/2\",'Part66 Matrix'!A16,\"\"))))","v":10},{"$f":"IF(Ausbildungsbedarfsanalyse!$C$1=\"CAT B1\",'Part66 Matrix'!B16,IF(Ausbildungsbedarfsanalyse!$C$1=\"CAT C\",'Part66 Matrix'!B16,IF(Ausbildungsbedarfsanalyse!$C$1=\"CAT B2\",'Part66 Matrix'!B16,IF(Ausbildungsbedarfsanalyse!$C$1=\"CAT B1/2\",'Part66 Matrix'!B16,\"\"))))","v":"11"},"11-00",{"$f":"IF(Ausbildungsbedarfsanalyse!$C$1=\"CAT B1\",'Part66 Matrix'!C16,IF(Ausbildungsbedarfsanalyse!$C$1=\"CAT C\",'Part66 Matrix'!C16,IF(Ausbildungsbedarfsanalyse!$C$1=\"CAT B2\",'Part66 Matrix'!C16,IF(Ausbildungsbedarfsanalyse!$C$1=\"CAT B1/2\",'Part66 Matrix'!C16,\"\"))))","v":"Placards and Markings"},{"$f":"IF(Ausbildungsbedarfsanalyse!$C$1=\"CAT B1\",'Part66 Matrix'!D16,IF(Ausbildungsbedarfsanalyse!$C$1=\"CAT C\",'Part66 Matrix'!E16,IF(Ausbildungsbedarfsanalyse!$C$1=\"CAT B2\",'Part66 Matrix'!F16,IF(Ausbildungsbedarfsanalyse!$C$1=\"CAT B1/2\",'Part66 Matrix'!G16,\"\"))))","v":1}]
[{"$f":"IF(Ausbildungsbedarfsanalyse!$C$1=\"CAT B1\",'Part66 Matrix'!A17,IF(Ausbildungsbedarfsanalyse!$C$1=\"CAT C\",'Part66 Matrix'!A17,IF(Ausbildungsbedarfsanalyse!$C$1=\"CAT B2\",'Part66 Matrix'!A17,IF(Ausbildungsbedarfsanalyse!$C$1=\"CAT B1/2\",'Part66 Matrix'!A17,\"\"))))","v":11},{"$f":"IF(Ausbildungsbedarfsanalyse!$C$1=\"CAT B1\",'Part66 Matrix'!B17,IF(Ausbildungsbedarfsanalyse!$C$1=\"CAT C\",'Part66 Matrix'!B17,IF(Ausbildungsbedarfsanalyse!$C$1=\"CAT B2\",'Part66 Matrix'!B17,IF(Ausbildungsbedarfsanalyse!$C$1=\"CAT B1/2\",'Part66 Matrix'!B17,\"\"))))","v":"12"},"12-00",{"$f":"IF(Ausbildungsbedarfsanalyse!$C$1=\"CAT B1\",'Part66 Matrix'!C17,IF(Ausbildungsbedarfsanalyse!$C$1=\"CAT C\",'Part66 Matrix'!C17,IF(Ausbildungsbedarfsanalyse!$C$1=\"CAT B2\",'Part66 Matrix'!C17,IF(Ausbildungsbedarfsanalyse!$C$1=\"CAT B1/2\",'Part66 Matrix'!C17,\"\"))))","v":"Servicing"},{"$f":"IF(Ausbildungsbedarfsanalyse!$C$1=\"CAT B1\",'Part66 Matrix'!D17,IF(Ausbildungsbedarfsanalyse!$C$1=\"CAT C\",'Part66 Matrix'!E17,IF(Ausbildungsbedarfsanalyse!$C$1=\"CAT B2\",'Part66 Matrix'!F17,IF(Ausbildungsbedarfsanalyse!$C$1=\"CAT B1/2\",'Part66 Matrix'!G17,\"\"))))","v":1}]
[{"$f":"IF(Ausbildungsbedarfsanalyse!$C$1=\"CAT B1\",'Part66 Matrix'!A18,IF(Ausbildungsbedarfsanalyse!$C$1=\"CAT C\",'Part66 Matrix'!A18,IF(Ausbildungsbedarfsanalyse!$C$1=\"CAT B2\",'Part66 Matrix'!A18,IF(Ausbildungsbedarfsanalyse!$C$1=\"CAT B1/2\",'Part66 Matrix'!A18,\"\"))))","v":12},{"$f":"IF(Ausbildungsbedarfsanalyse!$C$1=\"CAT B1\",'Part66 Matrix'!B18,IF(Ausbildungsbedarfsanalyse!$C$1=\"CAT C\",'Part66 Matrix'!B18,IF(Ausbildungsbedarfsanalyse!$C$1=\"CAT B2\",'Part66 Matrix'!B18,IF(Ausbildungsbedarfsanalyse!$C$1=\"CAT B1/2\",'Part66 Matrix'!B18,\"\"))))","v":"20"},"20-00",{"$f":"IF(Ausbildungsbedarfsanalyse!$C$1=\"CAT B1\",'Part66 Matrix'!C18,IF(Ausbildungsbedarfsanalyse!$C$1=\"CAT C\",'Part66 Matrix'!C18,IF(Ausbildungsbedarfsanalyse!$C$1=\"CAT B2\",'Part66 Matrix'!C18,IF(Ausbildungsbedarfsanalyse!$C$1=\"CAT B1/2\",'Part66 Matrix'!C18,\"\"))))","v":"Standard practices - Only type particular"},{"$f":"IF(Ausbildungsbedarfsanalyse!$C$1=\"CAT B1\",'Part66 Matrix'!D18,IF(Ausbildungsbedarfsanalyse!$C$1=\"CAT C\",'Part66 Matrix'!E18,IF(Ausbildungsbedarfsanalyse!$C$1=\"CAT B2\",'Part66 Matrix'!F18,IF(Ausbildungsbedarfsanalyse!$C$1=\"CAT B1/2\",'Part66 Matrix'!G18,\"\"))))","v":1}]
[{"$f":"IF(Ausbildungsbedarfsanalyse!$C$1=\"CAT B1\",'Part66 Matrix'!A19,IF(Ausbildungsbedarfsanalyse!$C$1=\"CAT C\",'Part66 Matrix'!A19,IF(Ausbildungsbedarfsanalyse!$C$1=\"CAT B2\",'Part66 Matrix'!A19,IF(Ausbildungsbedarfsanalyse!$C$1=\"CAT B1/2\",'Part66 Matrix'!A19,\"\"))))","v":13},{"$f":"IF(Ausbildungsbedarfsanalyse!$C$1=\"CAT B1\",'Part66 Matrix'!B19,IF(Ausbildungsbedarfsanalyse!$C$1=\"CAT C\",'Part66 Matrix'!B19,IF(Ausbildungsbedarfsanalyse!$C$1=\"CAT B2\",'Part66 Matrix'!B19,IF(Ausbildungsbedarfsanalyse!$C$1=\"CAT B1/2\",'Part66 Matrix'!B19,\"\"))))","v":"21"},"21-00",{"$f":"IF(Ausbildungsbedarfsanalyse!$C$1=\"CAT B1\",'Part66 Matrix'!C19,IF(Ausbildungsbedarfsanalyse!$C$1=\"CAT C\",'Part66 Matrix'!C19,IF(Ausbildungsbedarfsanalyse!$C$1=\"CAT B2\",'Part66 Matrix'!C19,IF(Ausbildungsbedarfsanalyse!$C$1=\"CAT B1/2\",'Part66 Matrix'!C19,\"\"))))","v":"Air Conditioning"},{"$f":"IF(Ausbildungsbedarfsanalyse!$C$1=\"CAT B1\",'Part66 Matrix'!D19,IF(Ausbildungsbedarfsanalyse!$C$1=\"CAT C\",'Part66 Matrix'!E19,IF(Ausbildungsbedarfsanalyse!$C$1=\"CAT B2\",'Part66 Matrix'!F19,IF(Ausbildungsbedarfsanalyse!$C$1=\"CAT B1/2\",'Part66 Matrix'!G19,\"\"))))","v":3}]
[{"$f":"IF(Ausbildungsbedarfsanalyse!$C$1=\"CAT B1\",'Part66 Matrix'!A20,IF(Ausbildungsbedarfsanalyse!$C$1=\"CAT C\",'Part66 Matrix'!A20,IF(Ausbildungsbedarfsanalyse!$C$1=\"CAT B2\",'Part66 Matrix'!A20,IF(Ausbildungsbedarfsanalyse!$C$1=\"CAT B1/2\",'Part66 Matrix'!A20,\"\"))))","v":14},{"$f":"IF(Ausbildungsbedarfsanalyse!$C$1=\"CAT B1\",'Part66 Matrix'!B20,IF(Ausbildungsbedarfsanalyse!$C$1=\"CAT C\",'Part66 Matrix'!B20,IF(Ausbildungsbedarfsanalyse!$C$1=\"CAT B2\",'Part66 Matrix'!B20,IF(Ausbildungsbedarfsanalyse!$C$1=\"CAT B1/2\",'Part66 Matrix'!B20,\"\"))))","v":"21A"},"21A-00",{"$f":"IF(Ausbildungsbedarfsanalyse!$C$1=\"CAT B1\",'Part66 Matrix'!C20,IF(Ausbildungsbedarfsanalyse!$C$1=\"CAT C\",'Part66 Matrix'!C20,IF(Ausbildungsbedarfsanalyse!$C$1=\"CAT B2\",'Part66 Matrix'!C20,IF(Ausbildungsbedarfsanalyse!$C$1=\"CAT B1/2\",'Part66 Matrix'!C20,\"\"))))","v":"Air Supply"},{"$f":"IF(Ausbildungsbedarfsanalyse!$C$1=\"CAT B1\",'Part66 Matrix'!D20,IF(Ausbildungsbedarfsanalyse!$C$1=\"CAT C\",'Part66 Matrix'!E20,IF(Ausbildungsbedarfsanalyse!$C$1=\"CAT B2\",'Part66 Matrix'!F20,IF(Ausbildungsbedarfsanalyse!$C$1=\"CAT B1/2\",'Part66 Matrix'!G20,\"\"))))","v":3}]
[{"$f":"IF(Ausbildungsbedarfsanalyse!$C$1=\"CAT B1\",'Part66 Matrix'!A21,IF(Ausbildungsbedarfsanalyse!$C$1=\"CAT C\",'Part66 Matrix'!A21,IF(Ausbildungsbedarfsanalyse!$C$1=\"CAT B2\",'Part66 Matrix'!A21,IF(Ausbildungsbedarfsanalyse!$C$1=\"CAT B1/2\",'Part66 Matrix'!A21,\"\"))))","v":15},{"$f":"IF(Ausbildungsbedarfsanalyse!$C$1=\"CAT B1\",'Part66 Matrix'!B21,IF(Ausbildungsbedarfsanalyse!$C$1=\"CAT C\",'Part66 Matrix'!B21,IF(Ausbildungsbedarfsanalyse!$C$1=\"CAT B2\",'Part66 Matrix'!B21,IF(Ausbildungsbedarfsanalyse!$C$1=\"CAT B1/2\",'Part66 Matrix'!B21,\"\"))))","v":"21B"},"21B-00",{"$f":"IF(Ausbildungsbedarfsanalyse!$C$1=\"CAT B1\",'Part66 Matrix'!C21,IF(Ausbildungsbedarfsanalyse!$C$1=\"CAT C\",'Part66 Matrix'!C21,IF(Ausbildungsbedarfsanalyse!$C$1=\"CAT B2\",'Part66 Matrix'!C21,IF(Ausbildungsbedarfsanalyse!$C$1=\"CAT B1/2\",'Part66 Matrix'!C21,\"\"))))","v":"Pressurisation"},{"$f":"IF(Ausbildungsbedarfsanalyse!$C$1=\"CAT B1\",'Part66 Matrix'!D21,IF(Ausbildungsbedarfsanalyse!$C$1=\"CAT C\",'Part66 Matrix'!E21,IF(Ausbildungsbedarfsanalyse!$C$1=\"CAT B2\",'Part66 Matrix'!F21,IF(Ausbildungsbedarfsanalyse!$C$1=\"CAT B1/2\",'Part66 Matrix'!G21,\"\"))))","v":3}]
[{"$f":"IF(Ausbildungsbedarfsanalyse!$C$1=\"CAT B1\",'Part66 Matrix'!A22,IF(Ausbildungsbedarfsanalyse!$C$1=\"CAT C\",'Part66 Matrix'!A22,IF(Ausbildungsbedarfsanalyse!$C$1=\"CAT B2\",'Part66 Matrix'!A22,IF(Ausbildungsbedarfsanalyse!$C$1=\"CAT B1/2\",'Part66 Matrix'!A22,\"\"))))","v":16},{"$f":"IF(Ausbildungsbedarfsanalyse!$C$1=\"CAT B1\",'Part66 Matrix'!B22,IF(Ausbildungsbedarfsanalyse!$C$1=\"CAT C\",'Part66 Matrix'!B22,IF(Ausbildungsbedarfsanalyse!$C$1=\"CAT B2\",'Part66 Matrix'!B22,IF(Ausbildungsbedarfsanalyse!$C$1=\"CAT B1/2\",'Part66 Matrix'!B22,\"\"))))","v":"21C"},"21C-00",{"$f":"IF(Ausbildungsbedarfsanalyse!$C$1=\"CAT B1\",'Part66 Matrix'!C22,IF(Ausbildungsbedarfsanalyse!$C$1=\"CAT C\",'Part66 Matrix'!C22,IF(Ausbildungsbedarfsanalyse!$C$1=\"CAT B2\",'Part66 Matrix'!C22,IF(Ausbildungsbedarfsanalyse!$C$1=\"CAT B1/2\",'Part66 Matrix'!C22,\"\"))))","v":"Safety and Warning Devices"},{"$f":"IF(Ausbildungsbedarfsanalyse!$C$1=\"CAT B1\",'Part66 Matrix'!D22,IF(Ausbildungsbedarfsanalyse!$C$1=\"CAT C\",'Part66 Matrix'!E22,IF(Ausbildungsbedarfsanalyse!$C$1=\"CAT B2\",'Part66 Matrix'!F22,IF(Ausbildungsbedarfsanalyse!$C$1=\"CAT B1/2\",'Part66 Matrix'!G22,\"\"))))","v":3}]
[{"$f":"IF(Ausbildungsbedarfsanalyse!$C$1=\"CAT B1\",'Part66 Matrix'!A23,IF(Ausbildungsbedarfsanalyse!$C$1=\"CAT C\",'Part66 Matrix'!A23,IF(Ausbildungsbedarfsanalyse!$C$1=\"CAT B2\",'Part66 Matrix'!A23,IF(Ausbildungsbedarfsanalyse!$C$1=\"CAT B1/2\",'Part66 Matrix'!A23,\"\"))))","v":17},{"$f":"IF(Ausbildungsbedarfsanalyse!$C$1=\"CAT B1\",'Part66 Matrix'!B23,IF(Ausbildungsbedarfsanalyse!$C$1=\"CAT C\",'Part66 Matrix'!B23,IF(Ausbildungsbedarfsanalyse!$C$1=\"CAT B2\",'Part66 Matrix'!B23,IF(Ausbildungsbedarfsanalyse!$C$1=\"CAT B1/2\",'Part66 Matrix'!B23,\"\"))))","v":"22"},"22-00",{"$f":"IF(Ausbildungsbedarfsanalyse!$C$1=\"CAT B1\",'Part66 Matrix'!C23,IF(Ausbildungsbedarfsanalyse!$C$1=\"CAT C\",'Part66 Matrix'!C23,IF(Ausbildungsbedarfsanalyse!$C$1=\"CAT B2\",'Part66 Matrix'!C23,IF(Ausbildungsbedarfsanalyse!$C$1=\"CAT B1/2\",'Part66 Matrix'!C23,\"\"))))","v":"Autoflight"},{"$f":"IF(Ausbildungsbedarfsanalyse!$C$1=\"CAT B1\",'Part66 Matrix'!D23,IF(Ausbildungsbedarfsanalyse!$C$1=\"CAT C\",'Part66 Matrix'!E23,IF(Ausbildungsbedarfsanalyse!$C$1=\"CAT B2\",'Part66 Matrix'!F23,IF(Ausbildungsbedarfsanalyse!$C$1=\"CAT B1/2\",'Part66 Matrix'!G23,\"\"))))","v":2}]
[{"$f":"IF(Ausbildungsbedarfsanalyse!$C$1=\"CAT B1\",'Part66 Matrix'!A24,IF(Ausbildungsbedarfsanalyse!$C$1=\"CAT C\",'Part66 Matrix'!A24,IF(Ausbildungsbedarfsanalyse!$C$1=\"CAT B2\",'Part66 Matrix'!A24,IF(Ausbildungsbedarfsanalyse!$C$1=\"CAT B1/2\",'Part66 Matrix'!A24,\"\"))))","v":18},{"$f":"IF(Ausbildungsbedarfsanalyse!$C$1=\"CAT B1\",'Part66 Matrix'!B24,IF(Ausbildungsbedarfsanalyse!$C$1=\"CAT C\",'Part66 Matrix'!B24,IF(Ausbildungsbedarfsanalyse!$C$1=\"CAT B2\",'Part66 Matrix'!B24,IF(Ausbildungsbedarfsanalyse!$C$1=\"CAT B1/2\",'Part66 Matrix'!B24,\"\"))))","v":"23"},"23-00",{"$f":"IF(Ausbildungsbedarfsanalyse!$C$1=\"CAT B1\",'Part66 Matrix'!C24,IF(Ausbildungsbedarfsanalyse!$C$1=\"CAT C\",'Part66 Matrix'!C24,IF(Ausbildungsbedarfsanalyse!$C$1=\"CAT B2\",'Part66 Matrix'!C24,IF(Ausbildungsbedarfsanalyse!$C$1=\"CAT B1/2\",'Part66 Matrix'!C24,\"\"))))","v":"Communications"},{"$f":"IF(Ausbildungsbedarfsanalyse!$C$1=\"CAT B1\",'Part66 Matrix'!D24,IF(Ausbildungsbedarfsanalyse!$C$1=\"CAT C\",'Part66 Matrix'!E24,IF(Ausbildungsbedarfsanalyse!$C$1=\"CAT B2\",'Part66 Matrix'!F24,IF(Ausbildungsbedarfsanalyse!$C$1=\"CAT B1/2\",'Part66 Matrix'!G24,\"\"))))","v":2}]
[{"$f":"IF(Ausbildungsbedarfsanalyse!$C$1=\"CAT B1\",'Part66 Matrix'!A25,IF(Ausbildungsbedarfsanalyse!$C$1=\"CAT C\",'Part66 Matrix'!A25,IF(Ausbildungsbedarfsanalyse!$C$1=\"CAT B2\",'Part66 Matrix'!A25,IF(Ausbildungsbedarfsanalyse!$C$1=\"CAT B1/2\",'Part66 Matrix'!A25,\"\"))))","v":19},{"$f":"IF(Ausbildungsbedarfsanalyse!$C$1=\"CAT B1\",'Part66 Matrix'!B25,IF(Ausbildungsbedarfsanalyse!$C$1=\"CAT C\",'Part66 Matrix'!B25,IF(Ausbildungsbedarfsanalyse!$C$1=\"CAT B2\",'Part66 Matrix'!B25,IF(Ausbildungsbedarfsanalyse!$C$1=\"CAT B1/2\",'Part66 Matrix'!B25,\"\"))))","v":"24"},"24-00",{"$f":"IF(Ausbildungsbedarfsanalyse!$C$1=\"CAT B1\",'Part66 Matrix'!C25,IF(Ausbildungsbedarfsanalyse!$C$1=\"CAT C\",'Part66 Matrix'!C25,IF(Ausbildungsbedarfsanalyse!$C$1=\"CAT B2\",'Part66 Matrix'!C25,IF(Ausbildungsbedarfsanalyse!$C$1=\"CAT B1/2\",'Part66 Matrix'!C25,\"\"))))","v":"Electrical Power"},{"$f":"IF(Ausbildungsbedarfsanalyse!$C$1=\"CAT B1\",'Part66 Matrix'!D25,IF(Ausbildungsbedarfsanalyse!$C$1=\"CAT C\",'Part66 Matrix'!E25,IF(Ausbildungsbedarfsanalyse!$C$1=\"CAT B2\",'Part66 Matrix'!F25,IF(Ausbildungsbedarfsanalyse!$C$1=\"CAT B1/2\",'Part66 Matrix'!G25,\"\"))))","v":3}]
[{"$f":"IF(Ausbildungsbedarfsanalyse!$C$1=\"CAT B1\",'Part66 Matrix'!A26,IF(Ausbildungsbedarfsanalyse!$C$1=\"CAT C\",'Part66 Matrix'!A26,IF(Ausbildungsbedarfsanalyse!$C$1=\"CAT B2\",'Part66 Matrix'!A26,IF(Ausbildungsbedarfsanalyse!$C$1=\"CAT B1/2\",'Part66 Matrix'!A26,\"\"))))","v":20},{"$f":"IF(Ausbildungsbedarfsanalyse!$C$1=\"CAT B1\",'Part66 Matrix'!B26,IF(Ausbildungsbedarfsanalyse!$C$1=\"CAT C\",'Part66 Matrix'!B26,IF(Ausbildungsbedarfsanalyse!$C$1=\"CAT B2\",'Part66 Matrix'!B26,IF(Ausbildungsbedarfsanalyse!$C$1=\"CAT B1/2\",'Part66 Matrix'!B26,\"\"))))","v":"25"},"25-00",{"$f":"IF(Ausbildungsbedarfsanalyse!$C$1=\"CAT B1\",'Part66 Matrix'!C26,IF(Ausbildungsbedarfsanalyse!$C$1=\"CAT C\",'Part66 Matrix'!C26,IF(Ausbildungsbedarfsanalyse!$C$1=\"CAT B2\",'Part66 Matrix'!C26,IF(Ausbildungsbedarfsanalyse!$C$1=\"CAT B1/2\",'Part66 Matrix'!C26,\"\"))))","v":"Equipment and Furnishings"},{"$f":"IF(Ausbildungsbedarfsanalyse!$C$1=\"CAT B1\",'Part66 Matrix'!D26,IF(Ausbildungsbedarfsanalyse!$C$1=\"CAT C\",'Part66 Matrix'!E26,IF(Ausbildungsbedarfsanalyse!$C$1=\"CAT B2\",'Part66 Matrix'!F26,IF(Ausbildungsbedarfsanalyse!$C$1=\"CAT B1/2\",'Part66 Matrix'!G26,\"\"))))","v":3}]
[{"$f":"IF(Ausbildungsbedarfsanalyse!$C$1=\"CAT B1\",'Part66 Matrix'!A27,IF(Ausbildungsbedarfsanalyse!$C$1=\"CAT C\",'Part66 Matrix'!A27,IF(Ausbildungsbedarfsanalyse!$C$1=\"CAT B2\",'Part66 Matrix'!A27,IF(Ausbildungsbedarfsanalyse!$C$1=\"CAT B1/2\",'Part66 Matrix'!A27,\"\"))))","v":21},{"$f":"IF(Ausbildungsbedarfsanalyse!$C$1=\"CAT B1\",'Part66 Matrix'!B27,IF(Ausbildungsbedarfsanalyse!$C$1=\"CAT C\",'Part66 Matrix'!B27,IF(Ausbildungsbedarfsanalyse!$C$1=\"CAT B2\",'Part66 Matrix'!B27,IF(Ausbildungsbedarfsanalyse!$C$1=\"CAT B1/2\",'Part66 Matrix'!B27,\"\"))))","v":"25A"},"25A-00",{"$f":"IF(Ausbildungsbedarfsanalyse!$C$1=\"CAT B1\",'Part66 Matrix'!C27,IF(Ausbildungsbedarfsanalyse!$C$1=\"CAT C\",'Part66 Matrix'!C27,IF(Ausbildungsbedarfsanalyse!$C$1=\"CAT B2\",'Part66 Matrix'!C27,IF(Ausbildungsbedarfsanalyse!$C$1=\"CAT B1/2\",'Part66 Matrix'!C27,\"\"))))","v":"Electronic Equipment including emergency equipment"},{"$f":"IF(Ausbildungsbedarfsanalyse!$C$1=\"CAT B1\",'Part66 Matrix'!D27,IF(Ausbildungsbedarfsanalyse!$C$1=\"CAT C\",'Part66 Matrix'!E27,IF(Ausbildungsbedarfsanalyse!$C$1=\"CAT B2\",'Part66 Matrix'!F27,IF(Ausbildungsbedarfsanalyse!$C$1=\"CAT B1/2\",'Part66 Matrix'!G27,\"\"))))","v":1}]
[{"$f":"IF(Ausbildungsbedarfsanalyse!$C$1=\"CAT B1\",'Part66 Matrix'!A28,IF(Ausbildungsbedarfsanalyse!$C$1=\"CAT C\",'Part66 Matrix'!A28,IF(Ausbildungsbedarfsanalyse!$C$1=\"CAT B2\",'Part66 Matrix'!A28,IF(Ausbildungsbedarfsanalyse!$C$1=\"CAT B1/2\",'Part66 Matrix'!A28,\"\"))))","v":22},{"$f":"IF(Ausbildungsbedarfsanalyse!$C$1=\"CAT B1\",'Part66 Matrix'!B28,IF(Ausbildungsbedarfsanalyse!$C$1=\"CAT C\",'Part66 Matrix'!B28,IF(Ausbildungsbedarfsanalyse!$C$1=\"CAT B2\",'Part66 Matrix'!B28,IF(Ausbildungsbedarfsanalyse!$C$1=\"CAT B1/2\",'Part66 Matrix'!B28,\"\"))))","v":"26"},"26-00",{"$f":"IF(Ausbildungsbedarfsanalyse!$C$1=\"CAT B1\",'Part66 Matrix'!C28,IF(Ausbildungsbedarfsanalyse!$C$1=\"CAT C\",'Part66 Matrix'!C28,IF(Ausbildungsbedarfsanalyse!$C$1=\"CAT B2\",'Part66 Matrix'!C28,IF(Ausbildungsbedarfsanalyse!$C$1=\"CAT B1/2\",'Part66 Matrix'!C28,\"\"))))","v":"Fire Protection"},{"$f":"IF(Ausbildungsbedarfsanalyse!$C$1=\"CAT B1\",'Part66 Matrix'!D28,IF(Ausbildungsbedarfsanalyse!$C$1=\"CAT C\",'Part66 Matrix'!E28,IF(Ausbildungsbedarfsanalyse!$C$1=\"CAT B2\",'Part66 Matrix'!F28,IF(Ausbildungsbedarfsanalyse!$C$1=\"CAT B1/2\",'Part66 Matrix'!G28,\"\"))))","v":3}]
[{"$f":"IF(Ausbildungsbedarfsanalyse!$C$1=\"CAT B1\",'Part66 Matrix'!A29,IF(Ausbildungsbedarfsanalyse!$C$1=\"CAT C\",'Part66 Matrix'!A29,IF(Ausbildungsbedarfsanalyse!$C$1=\"CAT B2\",'Part66 Matrix'!A29,IF(Ausbildungsbedarfsanalyse!$C$1=\"CAT B1/2\",'Part66 Matrix'!A29,\"\"))))","v":23},{"$f":"IF(Ausbildungsbedarfsanalyse!$C$1=\"CAT B1\",'Part66 Matrix'!B29,IF(Ausbildungsbedarfsanalyse!$C$1=\"CAT C\",'Part66 Matrix'!B29,IF(Ausbildungsbedarfsanalyse!$C$1=\"CAT B2\",'Part66 Matrix'!B29,IF(Ausbildungsbedarfsanalyse!$C$1=\"CAT B1/2\",'Part66 Matrix'!B29,\"\"))))","v":"27"},"27-00",{"$f":"IF(Ausbildungsbedarfsanalyse!$C$1=\"CAT B1\",'Part66 Matrix'!C29,IF(Ausbildungsbedarfsanalyse!$C$1=\"CAT C\",'Part66 Matrix'!C29,IF(Ausbildungsbedarfsanalyse!$C$1=\"CAT B2\",'Part66 Matrix'!C29,IF(Ausbildungsbedarfsanalyse!$C$1=\"CAT B1/2\",'Part66 Matrix'!C29,\"\"))))","v":"Flight Controls"},{"$f":"IF(Ausbildungsbedarfsanalyse!$C$1=\"CAT B1\",'Part66 Matrix'!D29,IF(Ausbildungsbedarfsanalyse!$C$1=\"CAT C\",'Part66 Matrix'!E29,IF(Ausbildungsbedarfsanalyse!$C$1=\"CAT B2\",'Part66 Matrix'!F29,IF(Ausbildungsbedarfsanalyse!$C$1=\"CAT B1/2\",'Part66 Matrix'!G29,\"\"))))","v":3}]
[{"$f":"IF(Ausbildungsbedarfsanalyse!$C$1=\"CAT B1\",'Part66 Matrix'!A30,IF(Ausbildungsbedarfsanalyse!$C$1=\"CAT C\",'Part66 Matrix'!A30,IF(Ausbildungsbedarfsanalyse!$C$1=\"CAT B2\",'Part66 Matrix'!A30,IF(Ausbildungsbedarfsanalyse!$C$1=\"CAT B1/2\",'Part66 Matrix'!A30,\"\"))))","v":24},{"$f":"IF(Ausbildungsbedarfsanalyse!$C$1=\"CAT B1\",'Part66 Matrix'!B30,IF(Ausbildungsbedarfsanalyse!$C$1=\"CAT C\",'Part66 Matrix'!B30,IF(Ausbildungsbedarfsanalyse!$C$1=\"CAT B2\",'Part66 Matrix'!B30,IF(Ausbildungsbedarfsanalyse!$C$1=\"CAT B1/2\",'Part66 Matrix'!B30,\"\"))))","v":"27A"},"27A-00",{"$f":"IF(Ausbildungsbedarfsanalyse!$C$1=\"CAT B1\",'Part66 Matrix'!C30,IF(Ausbildungsbedarfsanalyse!$C$1=\"CAT C\",'Part66 Matrix'!C30,IF(Ausbildungsbedarfsanalyse!$C$1=\"CAT B2\",'Part66 Matrix'!C30,IF(Ausbildungsbedarfsanalyse!$C$1=\"CAT B1/2\",'Part66 Matrix'!C30,\"\"))))","v":"Sys. Operation: Electrical/Fly-by-Wire"},{"$f":"IF(Ausbildungsbedarfsanalyse!$C$1=\"CAT B1\",'Part66 Matrix'!D30,IF(Ausbildungsbedarfsanalyse!$C$1=\"CAT C\",'Part66 Matrix'!E30,IF(Ausbildungsbedarfsanalyse!$C$1=\"CAT B2\",'Part66 Matrix'!F30,IF(Ausbildungsbedarfsanalyse!$C$1=\"CAT B1/2\",'Part66 Matrix'!G30,\"\"))))","v":3}]
[{"$f":"IF(Ausbildungsbedarfsanalyse!$C$1=\"CAT B1\",'Part66 Matrix'!A31,IF(Ausbildungsbedarfsanalyse!$C$1=\"CAT C\",'Part66 Matrix'!A31,IF(Ausbildungsbedarfsanalyse!$C$1=\"CAT B2\",'Part66 Matrix'!A31,IF(Ausbildungsbedarfsanalyse!$C$1=\"CAT B1/2\",'Part66 Matrix'!A31,\"\"))))","v":25},{"$f":"IF(Ausbildungsbedarfsanalyse!$C$1=\"CAT B1\",'Part66 Matrix'!B31,IF(Ausbildungsbedarfsanalyse!$C$1=\"CAT C\",'Part66 Matrix'!B31,IF(Ausbildungsbedarfsanalyse!$C$1=\"CAT B2\",'Part66 Matrix'!B31,IF(Ausbildungsbedarfsanalyse!$C$1=\"CAT B1/2\",'Part66 Matrix'!B31,\"\"))))","v":"27S"},"27S-00",{"$f":"IF(Ausbildungsbedarfsanalyse!$C$1=\"CAT B1\",'Part66 Matrix'!C31,IF(Ausbildungsbedarfsanalyse!$C$1=\"CAT C\",'Part66 Matrix'!C31,IF(Ausbildungsbedarfsanalyse!$C$1=\"CAT B2\",'Part66 Matrix'!C31,IF(Ausbildungsbedarfsanalyse!$C$1=\"CAT B1/2\",'Part66 Matrix'!C31,\"\"))))","v":"Flight Control Surfaces"},{"$f":"IF(Ausbildungsbedarfsanalyse!$C$1=\"CAT B1\",'Part66 Matrix'!D31,IF(Ausbildungsbedarfsanalyse!$C$1=\"CAT C\",'Part66 Matrix'!E31,IF(Ausbildungsbedarfsanalyse!$C$1=\"CAT B2\",'Part66 Matrix'!F31,IF(Ausbildungsbedarfsanalyse!$C$1=\"CAT B1/2\",'Part66 Matrix'!G31,\"\"))))","v":3}]
[{"$f":"IF(Ausbildungsbedarfsanalyse!$C$1=\"CAT B1\",'Part66 Matrix'!A32,IF(Ausbildungsbedarfsanalyse!$C$1=\"CAT C\",'Part66 Matrix'!A32,IF(Ausbildungsbedarfsanalyse!$C$1=\"CAT B2\",'Part66 Matrix'!A32,IF(Ausbildungsbedarfsanalyse!$C$1=\"CAT B1/2\",'Part66 Matrix'!A32,\"\"))))","v":26},{"$f":"IF(Ausbildungsbedarfsanalyse!$C$1=\"CAT B1\",'Part66 Matrix'!B32,IF(Ausbildungsbedarfsanalyse!$C$1=\"CAT C\",'Part66 Matrix'!B32,IF(Ausbildungsbedarfsanalyse!$C$1=\"CAT B2\",'Part66 Matrix'!B32,IF(Ausbildungsbedarfsanalyse!$C$1=\"CAT B1/2\",'Part66 Matrix'!B32,\"\"))))","v":"28"},"28-00",{"$f":"IF(Ausbildungsbedarfsanalyse!$C$1=\"CAT B1\",'Part66 Matrix'!C32,IF(Ausbildungsbedarfsanalyse!$C$1=\"CAT C\",'Part66 Matrix'!C32,IF(Ausbildungsbedarfsanalyse!$C$1=\"CAT B2\",'Part66 Matrix'!C32,IF(Ausbildungsbedarfsanalyse!$C$1=\"CAT B1/2\",'Part66 Matrix'!C32,\"\"))))","v":"Fuel Systems (FUEL)"},{"$f":"IF(Ausbildungsbedarfsanalyse!$C$1=\"CAT B1\",'Part66 Matrix'!D32,IF(Ausbildungsbedarfsanalyse!$C$1=\"CAT C\",'Part66 Matrix'!E32,IF(Ausbildungsbedarfsanalyse!$C$1=\"CAT B2\",'Part66 Matrix'!F32,IF(Ausbildungsbedarfsanalyse!$C$1=\"CAT B1/2\",'Part66 Matrix'!G32,\"\"))))","v":3}]
[{"$f":"IF(Ausbildungsbedarfsanalyse!$C$1=\"CAT B1\",'Part66 Matrix'!A33,IF(Ausbildungsbedarfsanalyse!$C$1=\"CAT C\",'Part66 Matrix'!A33,IF(Ausbildungsbedarfsanalyse!$C$1=\"CAT B2\",'Part66 Matrix'!A33,IF(Ausbildungsbedarfsanalyse!$C$1=\"CAT B1/2\",'Part66 Matrix'!A33,\"\"))))","v":27},{"$f":"IF(Ausbildungsbedarfsanalyse!$C$1=\"CAT B1\",'Part66 Matrix'!B33,IF(Ausbildungsbedarfsanalyse!$C$1=\"CAT C\",'Part66 Matrix'!B33,IF(Ausbildungsbedarfsanalyse!$C$1=\"CAT B2\",'Part66 Matrix'!B33,IF(Ausbildungsbedarfsanalyse!$C$1=\"CAT B1/2\",'Part66 Matrix'!B33,\"\"))))","v":"28A"},"28A-00",{"$f":"IF(Ausbildungsbedarfsanalyse!$C$1=\"CAT B1\",'Part66 Matrix'!C33,IF(Ausbildungsbedarfsanalyse!$C$1=\"CAT C\",'Part66 Matrix'!C33,IF(Ausbildungsbedarfsanalyse!$C$1=\"CAT B2\",'Part66 Matrix'!C33,IF(Ausbildungsbedarfsanalyse!$C$1=\"CAT B1/2\",'Part66 Matrix'!C33,\"\"))))","v":"Fuel Systems - Monitoring and Indicating"},{"$f":"IF(Ausbildungsbedarfsanalyse!$C$1=\"CAT B1\",'Part66 Matrix'!D33,IF(Ausbildungsbedarfsanalyse!$C$1=\"CAT C\",'Part66 Matrix'!E33,IF(Ausbildungsbedarfsanalyse!$C$1=\"CAT B2\",'Part66 Matrix'!F33,IF(Ausbildungsbedarfsanalyse!$C$1=\"CAT B1/2\",'Part66 Matrix'!G33,\"\"))))","v":3}]
[{"$f":"IF(Ausbildungsbedarfsanalyse!$C$1=\"CAT B1\",'Part66 Matrix'!A34,IF(Ausbildungsbedarfsanalyse!$C$1=\"CAT C\",'Part66 Matrix'!A34,IF(Ausbildungsbedarfsanalyse!$C$1=\"CAT B2\",'Part66 Matrix'!A34,IF(Ausbildungsbedarfsanalyse!$C$1=\"CAT B1/2\",'Part66 Matrix'!A34,\"\"))))","v":28},{"$f":"IF(Ausbildungsbedarfsanalyse!$C$1=\"CAT B1\",'Part66 Matrix'!B34,IF(Ausbildungsbedarfsanalyse!$C$1=\"CAT C\",'Part66 Matrix'!B34,IF(Ausbildungsbedarfsanalyse!$C$1=\"CAT B2\",'Part66 Matrix'!B34,IF(Ausbildungsbedarfsanalyse!$C$1=\"CAT B1/2\",'Part66 Matrix'!B34,\"\"))))","v":"29"},"29-00",{"$f":"IF(Ausbildungsbedarfsanalyse!$C$1=\"CAT B1\",'Part66 Matrix'!C34,IF(Ausbildungsbedarfsanalyse!$C$1=\"CAT C\",'Part66 Matrix'!C34,IF(Ausbildungsbedarfsanalyse!$C$1=\"CAT B2\",'Part66 Matrix'!C34,IF(Ausbildungsbedarfsanalyse!$C$1=\"CAT B1/2\",'Part66 Matrix'!C34,\"\"))))","v":"Hydraulic Power"},{"$f":"IF(Ausbildungsbedarfsanalyse!$C$1=\"CAT B1\",'Part66 Matrix'!D34,IF(Ausbildungsbedarfsanalyse!$C$1=\"CAT C\",'Part66 Matrix'!E34,IF(Ausbildungsbedarfsanalyse!$C$1=\"CAT B2\",'Part66 Matrix'!F34,IF(Ausbildungsbedarfsanalyse!$C$1=\"CAT B1/2\",'Part66 Matrix'!G34,\"\"))))","v":3}]
[{"$f":"IF(Ausbildungsbedarfsanalyse!$C$1=\"CAT B1\",'Part66 Matrix'!A35,IF(Ausbildungsbedarfsanalyse!$C$1=\"CAT C\",'Part66 Matrix'!A35,IF(Ausbildungsbedarfsanalyse!$C$1=\"CAT B2\",'Part66 Matrix'!A35,IF(Ausbildungsbedarfsanalyse!$C$1=\"CAT B1/2\",'Part66 Matrix'!A35,\"\"))))","v":29},{"$f":"IF(Ausbildungsbedarfsanalyse!$C$1=\"CAT B1\",'Part66 Matrix'!B35,IF(Ausbildungsbedarfsanalyse!$C$1=\"CAT C\",'Part66 Matrix'!B35,IF(Ausbildungsbedarfsanalyse!$C$1=\"CAT B2\",'Part66 Matrix'!B35,IF(Ausbildungsbedarfsanalyse!$C$1=\"CAT B1/2\",'Part66 Matrix'!B35,\"\"))))","v":"29A"},"29A-00",{"$f":"IF(Ausbildungsbedarfsanalyse!$C$1=\"CAT B1\",'Part66 Matrix'!C35,IF(Ausbildungsbedarfsanalyse!$C$1=\"CAT C\",'Part66 Matrix'!C35,IF(Ausbildungsbedarfsanalyse!$C$1=\"CAT B2\",'Part66 Matrix'!C35,IF(Ausbildungsbedarfsanalyse!$C$1=\"CAT B1/2\",'Part66 Matrix'!C35,\"\"))))","v":"Hydraulic Power - Monitoring and Indicating"},{"$f":"IF(Ausbildungsbedarfsanalyse!$C$1=\"CAT B1\",'Part66 Matrix'!D35,IF(Ausbildungsbedarfsanalyse!$C$1=\"CAT C\",'Part66 Matrix'!E35,IF(Ausbildungsbedarfsanalyse!$C$1=\"CAT B2\",'Part66 Matrix'!F35,IF(Ausbildungsbedarfsanalyse!$C$1=\"CAT B1/2\",'Part66 Matrix'!G35,\"\"))))","v":3}]
[{"$f":"IF(Ausbildungsbedarfsanalyse!$C$1=\"CAT B1\",'Part66 Matrix'!A36,IF(Ausbildungsbedarfsanalyse!$C$1=\"CAT C\",'Part66 Matrix'!A36,IF(Ausbildungsbedarfsanalyse!$C$1=\"CAT B2\",'Part66 Matrix'!A36,IF(Ausbildungsbedarfsanalyse!$C$1=\"CAT B1/2\",'Part66 Matrix'!A36,\"\"))))","v":30},{"$f":"IF(Ausbildungsbedarfsanalyse!$C$1=\"CAT B1\",'Part66 Matrix'!B36,IF(Ausbildungsbedarfsanalyse!$C$1=\"CAT C\",'Part66 Matrix'!B36,IF(Ausbildungsbedarfsanalyse!$C$1=\"CAT B2\",'Part66 Matrix'!B36,IF(Ausbildungsbedarfsanalyse!$C$1=\"CAT B1/2\",'Part66 Matrix'!B36,\"\"))))","v":"30"},"30-00",{"$f":"IF(Ausbildungsbedarfsanalyse!$C$1=\"CAT B1\",'Part66 Matrix'!C36,IF(Ausbildungsbedarfsanalyse!$C$1=\"CAT C\",'Part66 Matrix'!C36,IF(Ausbildungsbedarfsanalyse!$C$1=\"CAT B2\",'Part66 Matrix'!C36,IF(Ausbildungsbedarfsanalyse!$C$1=\"CAT B1/2\",'Part66 Matrix'!C36,\"\"))))","v":"Ice and Rain Protection"},{"$f":"IF(Ausbildungsbedarfsanalyse!$C$1=\"CAT B1\",'Part66 Matrix'!D36,IF(Ausbildungsbedarfsanalyse!$C$1=\"CAT C\",'Part66 Matrix'!E36,IF(Ausbildungsbedarfsanalyse!$C$1=\"CAT B2\",'Part66 Matrix'!F36,IF(Ausbildungsbedarfsanalyse!$C$1=\"CAT B1/2\",'Part66 Matrix'!G36,\"\"))))","v":3}]
[{"$f":"IF(Ausbildungsbedarfsanalyse!$C$1=\"CAT B1\",'Part66 Matrix'!A37,IF(Ausbildungsbedarfsanalyse!$C$1=\"CAT C\",'Part66 Matrix'!A37,IF(Ausbildungsbedarfsanalyse!$C$1=\"CAT B2\",'Part66 Matrix'!A37,IF(Ausbildungsbedarfsanalyse!$C$1=\"CAT B1/2\",'Part66 Matrix'!A37,\"\"))))","v":31},{"$f":"IF(Ausbildungsbedarfsanalyse!$C$1=\"CAT B1\",'Part66 Matrix'!B37,IF(Ausbildungsbedarfsanalyse!$C$1=\"CAT C\",'Part66 Matrix'!B37,IF(Ausbildungsbedarfsanalyse!$C$1=\"CAT B2\",'Part66 Matrix'!B37,IF(Ausbildungsbedarfsanalyse!$C$1=\"CAT B1/2\",'Part66 Matrix'!B37,\"\"))))","v":"31"},"31-00",{"$f":"IF(Ausbildungsbedarfsanalyse!$C$1=\"CAT B1\",'Part66 Matrix'!C37,IF(Ausbildungsbedarfsanalyse!$C$1=\"CAT C\",'Part66 Matrix'!C37,IF(Ausbildungsbedarfsanalyse!$C$1=\"CAT B2\",'Part66 Matrix'!C37,IF(Ausbildungsbedarfsanalyse!$C$1=\"CAT B1/2\",'Part66 Matrix'!C37,\"\"))))","v":"Indicating/Recording Systems"},{"$f":"IF(Ausbildungsbedarfsanalyse!$C$1=\"CAT B1\",'Part66 Matrix'!D37,IF(Ausbildungsbedarfsanalyse!$C$1=\"CAT C\",'Part66 Matrix'!E37,IF(Ausbildungsbedarfsanalyse!$C$1=\"CAT B2\",'Part66 Matrix'!F37,IF(Ausbildungsbedarfsanalyse!$C$1=\"CAT B1/2\",'Part66 Matrix'!G37,\"\"))))","v":3}]
[{"$f":"IF(Ausbildungsbedarfsanalyse!$C$1=\"CAT B1\",'Part66 Matrix'!A38,IF(Ausbildungsbedarfsanalyse!$C$1=\"CAT C\",'Part66 Matrix'!A38,IF(Ausbildungsbedarfsanalyse!$C$1=\"CAT B2\",'Part66 Matrix'!A38,IF(Ausbildungsbedarfsanalyse!$C$1=\"CAT B1/2\",'Part66 Matrix'!A38,\"\"))))","v":32},{"$f":"IF(Ausbildungsbedarfsanalyse!$C$1=\"CAT B1\",'Part66 Matrix'!B38,IF(Ausbildungsbedarfsanalyse!$C$1=\"CAT C\",'Part66 Matrix'!B38,IF(Ausbildungsbedarfsanalyse!$C$1=\"CAT B2\",'Part66 Matrix'!B38,IF(Ausbildungsbedarfsanalyse!$C$1=\"CAT B1/2\",'Part66 Matrix'!B38,\"\"))))","v":"31A"},"31A-00",{"$f":"IF(Ausbildungsbedarfsanalyse!$C$1=\"CAT B1\",'Part66 Matrix'!C38,IF(Ausbildungsbedarfsanalyse!$C$1=\"CAT C\",'Part66 Matrix'!C38,IF(Ausbildungsbedarfsanalyse!$C$1=\"CAT B2\",'Part66 Matrix'!C38,IF(Ausbildungsbedarfsanalyse!$C$1=\"CAT B1/2\",'Part66 Matrix'!C38,\"\"))))","v":"Instrument Systems"},{"$f":"IF(Ausbildungsbedarfsanalyse!$C$1=\"CAT B1\",'Part66 Matrix'!D38,IF(Ausbildungsbedarfsanalyse!$C$1=\"CAT C\",'Part66 Matrix'!E38,IF(Ausbildungsbedarfsanalyse!$C$1=\"CAT B2\",'Part66 Matrix'!F38,IF(Ausbildungsbedarfsanalyse!$C$1=\"CAT B1/2\",'Part66 Matrix'!G38,\"\"))))","v":3}]
[{"$f":"IF(Ausbildungsbedarfsanalyse!$C$1=\"CAT B1\",'Part66 Matrix'!A39,IF(Ausbildungsbedarfsanalyse!$C$1=\"CAT C\",'Part66 Matrix'!A39,IF(Ausbildungsbedarfsanalyse!$C$1=\"CAT B2\",'Part66 Matrix'!A39,IF(Ausbildungsbedarfsanalyse!$C$1=\"CAT B1/2\",'Part66 Matrix'!A39,\"\"))))","v":33},{"$f":"IF(Ausbildungsbedarfsanalyse!$C$1=\"CAT B1\",'Part66 Matrix'!B39,IF(Ausbildungsbedarfsanalyse!$C$1=\"CAT C\",'Part66 Matrix'!B39,IF(Ausbildungsbedarfsanalyse!$C$1=\"CAT B2\",'Part66 Matrix'!B39,IF(Ausbildungsbedarfsanalyse!$C$1=\"CAT B1/2\",'Part66 Matrix'!B39,\"\"))))","v":"32"},"32-00",{"$f":"IF(Ausbildungsbedarfsanalyse!$C$1=\"CAT B1\",'Part66 Matrix'!C39,IF(Ausbildungsbedarfsanalyse!$C$1=\"CAT C\",'Part66 Matrix'!C39,IF(Ausbildungsbedarfsanalyse!$C$1=\"CAT B2\",'Part66 Matrix'!C39,IF(Ausbildungsbedarfsanalyse!$C$1=\"CAT B1/2\",'Part66 Matrix'!C39,\"\"))))","v":"Landing Gear"},{"$f":"IF(Ausbildungsbedarfsanalyse!$C$1=\"CAT B1\",'Part66 Matrix'!D39,IF(Ausbildungsbedarfsanalyse!$C$1=\"CAT C\",'Part66 Matrix'!E39,IF(Ausbildungsbedarfsanalyse!$C$1=\"CAT B2\",'Part66 Matrix'!F39,IF(Ausbildungsbedarfsanalyse!$C$1=\"CAT B1/2\",'Part66 Matrix'!G39,\"\"))))","v":3}]
[{"$f":"IF(Ausbildungsbedarfsanalyse!$C$1=\"CAT B1\",'Part66 Matrix'!A40,IF(Ausbildungsbedarfsanalyse!$C$1=\"CAT C\",'Part66 Matrix'!A40,IF(Ausbildungsbedarfsanalyse!$C$1=\"CAT B2\",'Part66 Matrix'!A40,IF(Ausbildungsbedarfsanalyse!$C$1=\"CAT B1/2\",'Part66 Matrix'!A40,\"\"))))","v":34},{"$f":"IF(Ausbildungsbedarfsanalyse!$C$1=\"CAT B1\",'Part66 Matrix'!B40,IF(Ausbildungsbedarfsanalyse!$C$1=\"CAT C\",'Part66 Matrix'!B40,IF(Ausbildungsbedarfsanalyse!$C$1=\"CAT B2\",'Part66 Matrix'!B40,IF(Ausbildungsbedarfsanalyse!$C$1=\"CAT B1/2\",'Part66 Matrix'!B40,\"\"))))","v":"32A"},"32A-00",{"$f":"IF(Ausbildungsbedarfsanalyse!$C$1=\"CAT B1\",'Part66 Matrix'!C40,IF(Ausbildungsbedarfsanalyse!$C$1=\"CAT C\",'Part66 Matrix'!C40,IF(Ausbildungsbedarfsanalyse!$C$1=\"CAT B2\",'Part66 Matrix'!C40,IF(Ausbildungsbedarfsanalyse!$C$1=\"CAT B1/2\",'Part66 Matrix'!C40,\"\"))))","v":"Landing Gear - Monitoring and Indicating"},{"$f":"IF(Ausbildungsbedarfsanalyse!$C$1=\"CAT B1\",'Part66 Matrix'!D40,IF(Ausbildungsbedarfsanalyse!$C$1=\"CAT C\",'Part66 Matrix'!E40,IF(Ausbildungsbedarfsanalyse!$C$1=\"CAT B2\",'Part66 Matrix'!F40,IF(Ausbildungsbedarfsanalyse!$C$1=\"CAT B1/2\",'Part66 Matrix'!G40,\"\"))))","v":3}]
[{"$f":"IF(Ausbildungsbedarfsanalyse!$C$1=\"CAT B1\",'Part66 Matrix'!A41,IF(Ausbildungsbedarfsanalyse!$C$1=\"CAT C\",'Part66 Matrix'!A41,IF(Ausbildungsbedarfsanalyse!$C$1=\"CAT B2\",'Part66 Matrix'!A41,IF(Ausbildungsbedarfsanalyse!$C$1=\"CAT B1/2\",'Part66 Matrix'!A41,\"\"))))","v":35},{"$f":"IF(Ausbildungsbedarfsanalyse!$C$1=\"CAT B1\",'Part66 Matrix'!B41,IF(Ausbildungsbedarfsanalyse!$C$1=\"CAT C\",'Part66 Matrix'!B41,IF(Ausbildungsbedarfsanalyse!$C$1=\"CAT B2\",'Part66 Matrix'!B41,IF(Ausbildungsbedarfsanalyse!$C$1=\"CAT B1/2\",'Part66 Matrix'!B41,\"\"))))","v":"33"},"33-00",{"$f":"IF(Ausbildungsbedarfsanalyse!$C$1=\"CAT B1\",'Part66 Matrix'!C41,IF(Ausbildungsbedarfsanalyse!$C$1=\"CAT C\",'Part66 Matrix'!C41,IF(Ausbildungsbedarfsanalyse!$C$1=\"CAT B2\",'Part66 Matrix'!C41,IF(Ausbildungsbedarfsanalyse!$C$1=\"CAT B1/2\",'Part66 Matrix'!C41,\"\"))))","v":"Lights"},{"$f":"IF(Ausbildungsbedarfsanalyse!$C$1=\"CAT B1\",'Part66 Matrix'!D41,IF(Ausbildungsbedarfsanalyse!$C$1=\"CAT C\",'Part66 Matrix'!E41,IF(Ausbildungsbedarfsanalyse!$C$1=\"CAT B2\",'Part66 Matrix'!F41,IF(Ausbildungsbedarfsanalyse!$C$1=\"CAT B1/2\",'Part66 Matrix'!G41,\"\"))))","v":3}]
[{"$f":"IF(Ausbildungsbedarfsanalyse!$C$1=\"CAT B1\",'Part66 Matrix'!A42,IF(Ausbildungsbedarfsanalyse!$C$1=\"CAT C\",'Part66 Matrix'!A42,IF(Ausbildungsbedarfsanalyse!$C$1=\"CAT B2\",'Part66 Matrix'!A42,IF(Ausbildungsbedarfsanalyse!$C$1=\"CAT B1/2\",'Part66 Matrix'!A42,\"\"))))","v":36},{"$f":"IF(Ausbildungsbedarfsanalyse!$C$1=\"CAT B1\",'Part66 Matrix'!B42,IF(Ausbildungsbedarfsanalyse!$C$1=\"CAT C\",'Part66 Matrix'!B42,IF(Ausbildungsbedarfsanalyse!$C$1=\"CAT B2\",'Part66 Matrix'!B42,IF(Ausbildungsbedarfsanalyse!$C$1=\"CAT B1/2\",'Part66 Matrix'!B42,\"\"))))","v":"34"},"34-00",{"$f":"IF(Ausbildungsbedarfsanalyse!$C$1=\"CAT B1\",'Part66 Matrix'!C42,IF(Ausbildungsbedarfsanalyse!$C$1=\"CAT C\",'Part66 Matrix'!C42,IF(Ausbildungsbedarfsanalyse!$C$1=\"CAT B2\",'Part66 Matrix'!C42,IF(Ausbildungsbedarfsanalyse!$C$1=\"CAT B1/2\",'Part66 Matrix'!C42,\"\"))))","v":"Navigation"},{"$f":"IF(Ausbildungsbedarfsanalyse!$C$1=\"CAT B1\",'Part66 Matrix'!D42,IF(Ausbildungsbedarfsanalyse!$C$1=\"CAT C\",'Part66 Matrix'!E42,IF(Ausbildungsbedarfsanalyse!$C$1=\"CAT B2\",'Part66 Matrix'!F42,IF(Ausbildungsbedarfsanalyse!$C$1=\"CAT B1/2\",'Part66 Matrix'!G42,\"\"))))","v":2}]
[{"$f":"IF(Ausbildungsbedarfsanalyse!$C$1=\"CAT B1\",'Part66 Matrix'!A43,IF(Ausbildungsbedarfsanalyse!$C$1=\"CAT C\",'Part66 Matrix'!A43,IF(Ausbildungsbedarfsanalyse!$C$1=\"CAT B2\",'Part66 Matrix'!A43,IF(Ausbildungsbedarfsanalyse!$C$1=\"CAT B1/2\",'Part66 Matrix'!A43,\"\"))))","v":37},{"$f":"IF(Ausbildungsbedarfsanalyse!$C$1=\"CAT B1\",'Part66 Matrix'!B43,IF(Ausbildungsbedarfsanalyse!$C$1=\"CAT C\",'Part66 Matrix'!B43,IF(Ausbildungsbedarfsanalyse!$C$1=\"CAT B2\",'Part66 Matrix'!B43,IF(Ausbildungsbedarfsanalyse!$C$1=\"CAT B1/2\",'Part66 Matrix'!B43,\"\"))))","v":"35"},"35-00",{"$f":"IF(Ausbildungsbedarfsanalyse!$C$1=\"CAT B1\",'Part66 Matrix'!C43,IF(Ausbildungsbedarfsanalyse!$C$1=\"CAT C\",'Part66 Matrix'!C43,IF(Ausbildungsbedarfsanalyse!$C$1=\"CAT B2\",'Part66 Matrix'!C43,IF(Ausbildungsbedarfsanalyse!$C$1=\"CAT B1/2\",'Part66 Matrix'!C43,\"\"))))","v":"Oxygen"},{"$f":"IF(Ausbildungsbedarfsanalyse!$C$1=\"CAT B1\",'Part66 Matrix'!D43,IF(Ausbildungsbedarfsanalyse!$C$1=\"CAT C\",'Part66 Matrix'!E43,IF(Ausbildungsbedarfsanalyse!$C$1=\"CAT B2\",'Part66 Matrix'!F43,IF(Ausbildungsbedarfsanalyse!$C$1=\"CAT B1/2\",'Part66 Matrix'!G43,\"\"))))","v":3}]
[{"$f":"IF(Ausbildungsbedarfsanalyse!$C$1=\"CAT B1\",'Part66 Matrix'!A44,IF(Ausbildungsbedarfsanalyse!$C$1=\"CAT C\",'Part66 Matrix'!A44,IF(Ausbildungsbedarfsanalyse!$C$1=\"CAT B2\",'Part66 Matrix'!A44,IF(Ausbildungsbedarfsanalyse!$C$1=\"CAT B1/2\",'Part66 Matrix'!A44,\"\"))))","v":38},{"$f":"IF(Ausbildungsbedarfsanalyse!$C$1=\"CAT B1\",'Part66 Matrix'!B44,IF(Ausbildungsbedarfsanalyse!$C$1=\"CAT C\",'Part66 Matrix'!B44,IF(Ausbildungsbedarfsanalyse!$C$1=\"CAT B2\",'Part66 Matrix'!B44,IF(Ausbildungsbedarfsanalyse!$C$1=\"CAT B1/2\",'Part66 Matrix'!B44,\"\"))))","v":"36"},"36-00",{"$f":"IF(Ausbildungsbedarfsanalyse!$C$1=\"CAT B1\",'Part66 Matrix'!C44,IF(Ausbildungsbedarfsanalyse!$C$1=\"CAT C\",'Part66 Matrix'!C44,IF(Ausbildungsbedarfsanalyse!$C$1=\"CAT B2\",'Part66 Matrix'!C44,IF(Ausbildungsbedarfsanalyse!$C$1=\"CAT B1/2\",'Part66 Matrix'!C44,\"\"))))","v":"Pneumatic"},{"$f":"IF(Ausbildungsbedarfsanalyse!$C$1=\"CAT B1\",'Part66 Matrix'!D44,IF(Ausbildungsbedarfsanalyse!$C$1=\"CAT C\",'Part66 Matrix'!E44,IF(Ausbildungsbedarfsanalyse!$C$1=\"CAT B2\",'Part66 Matrix'!F44,IF(Ausbildungsbedarfsanalyse!$C$1=\"CAT B1/2\",'Part66 Matrix'!G44,\"\"))))","v":3}]
[{"$f":"IF(Ausbildungsbedarfsanalyse!$C$1=\"CAT B1\",'Part66 Matrix'!A45,IF(Ausbildungsbedarfsanalyse!$C$1=\"CAT C\",'Part66 Matrix'!A45,IF(Ausbildungsbedarfsanalyse!$C$1=\"CAT B2\",'Part66 Matrix'!A45,IF(Ausbildungsbedarfsanalyse!$C$1=\"CAT B1/2\",'Part66 Matrix'!A45,\"\"))))","v":39},{"$f":"IF(Ausbildungsbedarfsanalyse!$C$1=\"CAT B1\",'Part66 Matrix'!B45,IF(Ausbildungsbedarfsanalyse!$C$1=\"CAT C\",'Part66 Matrix'!B45,IF(Ausbildungsbedarfsanalyse!$C$1=\"CAT B2\",'Part66 Matrix'!B45,IF(Ausbildungsbedarfsanalyse!$C$1=\"CAT B1/2\",'Part66 Matrix'!B45,\"\"))))","v":"36A"},"36A-00",{"$f":"IF(Ausbildungsbedarfsanalyse!$C$1=\"CAT B1\",'Part66 Matrix'!C45,IF(Ausbildungsbedarfsanalyse!$C$1=\"CAT C\",'Part66 Matrix'!C45,IF(Ausbildungsbedarfsanalyse!$C$1=\"CAT B2\",'Part66 Matrix'!C45,IF(Ausbildungsbedarfsanalyse!$C$1=\"CAT B1/2\",'Part66 Matrix'!C45,\"\"))))","v":"Pneumatic - Monitoring and Indicating"},{"$f":"IF(Ausbildungsbedarfsanalyse!$C$1=\"CAT B1\",'Part66 Matrix'!D45,IF(Ausbildungsbedarfsanalyse!$C$1=\"CAT C\",'Part66 Matrix'!E45,IF(Ausbildungsbedarfsanalyse!$C$1=\"CAT B2\",'Part66 Matrix'!F45,IF(Ausbildungsbedarfsanalyse!$C$1=\"CAT B1/2\",'Part66 Matrix'!G45,\"\"))))","v":3}]
[{"$f":"IF(Ausbildungsbedarfsanalyse!$C$1=\"CAT B1\",'Part66 Matrix'!A46,IF(Ausbildungsbedarfsanalyse!$C$1=\"CAT C\",'Part66 Matrix'!A46,IF(Ausbildungsbedarfsanalyse!$C$1=\"CAT B2\",'Part66 Matrix'!A46,IF(Ausbildungsbedarfsanalyse!$C$1=\"CAT B1/2\",'Part66 Matrix'!A46,\"\"))))","v":40},{"$f":"IF(Ausbildungsbedarfsanalyse!$C$1=\"CAT B1\",'Part66 Matrix'!B46,IF(Ausbildungsbedarfsanalyse!$C$1=\"CAT C\",'Part66 Matrix'!B46,IF(Ausbildungsbedarfsanalyse!$C$1=\"CAT B2\",'Part66 Matrix'!B46,IF(Ausbildungsbedarfsanalyse!$C$1=\"CAT B1/2\",'Part66 Matrix'!B46,\"\"))))","v":"37"},"37-00",{"$f":"IF(Ausbildungsbedarfsanalyse!$C$1=\"CAT B1\",'Part66 Matrix'!C46,IF(Ausbildungsbedarfsanalyse!$C$1=\"CAT C\",'Part66 Matrix'!C46,IF(Ausbildungsbedarfsanalyse!$C$1=\"CAT B2\",'Part66 Matrix'!C46,IF(Ausbildungsbedarfsanalyse!$C$1=\"CAT B1/2\",'Part66 Matrix'!C46,\"\"))))","v":"Vacuum"},{"$f":"IF(Ausbildungsbedarfsanalyse!$C$1=\"CAT B1\",'Part66 Matrix'!D46,IF(Ausbildungsbedarfsanalyse!$C$1=\"CAT C\",'Part66 Matrix'!E46,IF(Ausbildungsbedarfsanalyse!$C$1=\"CAT B2\",'Part66 Matrix'!F46,IF(Ausbildungsbedarfsanalyse!$C$1=\"CAT B1/2\",'Part66 Matrix'!G46,\"\"))))","v":3}]
[{"$f":"IF(Ausbildungsbedarfsanalyse!$C$1=\"CAT B1\",'Part66 Matrix'!A47,IF(Ausbildungsbedarfsanalyse!$C$1=\"CAT C\",'Part66 Matrix'!A47,IF(Ausbildungsbedarfsanalyse!$C$1=\"CAT B2\",'Part66 Matrix'!A47,IF(Ausbildungsbedarfsanalyse!$C$1=\"CAT B1/2\",'Part66 Matrix'!A47,\"\"))))","v":41},{"$f":"IF(Ausbildungsbedarfsanalyse!$C$1=\"CAT B1\",'Part66 Matrix'!B47,IF(Ausbildungsbedarfsanalyse!$C$1=\"CAT C\",'Part66 Matrix'!B47,IF(Ausbildungsbedarfsanalyse!$C$1=\"CAT B2\",'Part66 Matrix'!B47,IF(Ausbildungsbedarfsanalyse!$C$1=\"CAT B1/2\",'Part66 Matrix'!B47,\"\"))))","v":"38"},"38-00",{"$f":"IF(Ausbildungsbedarfsanalyse!$C$1=\"CAT B1\",'Part66 Matrix'!C47,IF(Ausbildungsbedarfsanalyse!$C$1=\"CAT C\",'Part66 Matrix'!C47,IF(Ausbildungsbedarfsanalyse!$C$1=\"CAT B2\",'Part66 Matrix'!C47,IF(Ausbildungsbedarfsanalyse!$C$1=\"CAT B1/2\",'Part66 Matrix'!C47,\"\"))))","v":"Water/Waste"},{"$f":"IF(Ausbildungsbedarfsanalyse!$C$1=\"CAT B1\",'Part66 Matrix'!D47,IF(Ausbildungsbedarfsanalyse!$C$1=\"CAT C\",'Part66 Matrix'!E47,IF(Ausbildungsbedarfsanalyse!$C$1=\"CAT B2\",'Part66 Matrix'!F47,IF(Ausbildungsbedarfsanalyse!$C$1=\"CAT B1/2\",'Part66 Matrix'!G47,\"\"))))","v":3}]
[{"$f":"IF(Ausbildungsbedarfsanalyse!$C$1=\"CAT B1\",'Part66 Matrix'!A48,IF(Ausbildungsbedarfsanalyse!$C$1=\"CAT C\",'Part66 Matrix'!A48,IF(Ausbildungsbedarfsanalyse!$C$1=\"CAT B2\",'Part66 Matrix'!A48,IF(Ausbildungsbedarfsanalyse!$C$1=\"CAT B1/2\",'Part66 Matrix'!A48,\"\"))))","v":42},{"$f":"IF(Ausbildungsbedarfsanalyse!$C$1=\"CAT B1\",'Part66 Matrix'!B48,IF(Ausbildungsbedarfsanalyse!$C$1=\"CAT C\",'Part66 Matrix'!B48,IF(Ausbildungsbedarfsanalyse!$C$1=\"CAT B2\",'Part66 Matrix'!B48,IF(Ausbildungsbedarfsanalyse!$C$1=\"CAT B1/2\",'Part66 Matrix'!B48,\"\"))))","v":"41"},"41-00",{"$f":"IF(Ausbildungsbedarfsanalyse!$C$1=\"CAT B1\",'Part66 Matrix'!C48,IF(Ausbildungsbedarfsanalyse!$C$1=\"CAT C\",'Part66 Matrix'!C48,IF(Ausbildungsbedarfsanalyse!$C$1=\"CAT B2\",'Part66 Matrix'!C48,IF(Ausbildungsbedarfsanalyse!$C$1=\"CAT B1/2\",'Part66 Matrix'!C48,\"\"))))","v":"Water Ballast"},{"$f":"IF(Ausbildungsbedarfsanalyse!$C$1=\"CAT B1\",'Part66 Matrix'!D48,IF(Ausbildungsbedarfsanalyse!$C$1=\"CAT C\",'Part66 Matrix'!E48,IF(Ausbildungsbedarfsanalyse!$C$1=\"CAT B2\",'Part66 Matrix'!F48,IF(Ausbildungsbedarfsanalyse!$C$1=\"CAT B1/2\",'Part66 Matrix'!G48,\"\"))))","v":3}]
[{"$f":"IF(Ausbildungsbedarfsanalyse!$C$1=\"CAT B1\",'Part66 Matrix'!A49,IF(Ausbildungsbedarfsanalyse!$C$1=\"CAT C\",'Part66 Matrix'!A49,IF(Ausbildungsbedarfsanalyse!$C$1=\"CAT B2\",'Part66 Matrix'!A49,IF(Ausbildungsbedarfsanalyse!$C$1=\"CAT B1/2\",'Part66 Matrix'!A49,\"\"))))","v":43},{"$f":"IF(Ausbildungsbedarfsanalyse!$C$1=\"CAT B1\",'Part66 Matrix'!B49,IF(Ausbildungsbedarfsanalyse!$C$1=\"CAT C\",'Part66 Matrix'!B49,IF(Ausbildungsbedarfsanalyse!$C$1=\"CAT B2\",'Part66 Matrix'!B49,IF(Ausbildungsbedarfsanalyse!$C$1=\"CAT B1/2\",'Part66 Matrix'!B49,\"\"))))","v":"42"},"42-00",{"$f":"IF(Ausbildungsbedarfsanalyse!$C$1=\"CAT B1\",'Part66 Matrix'!C49,IF(Ausbildungsbedarfsanalyse!$C$1=\"CAT C\",'Part66 Matrix'!C49,IF(Ausbildungsbedarfsanalyse!$C$1=\"CAT B2\",'Part66 Matrix'!C49,IF(Ausbildungsbedarfsanalyse!$C$1=\"CAT B1/2\",'Part66 Matrix'!C49,\"\"))))","v":"Integrated modular avionics"},{"$f":"IF(Ausbildungsbedarfsanalyse!$C$1=\"CAT B1\",'Part66 Matrix'!D49,IF(Ausbildungsbedarfsanalyse!$C$1=\"CAT C\",'Part66 Matrix'!E49,IF(Ausbildungsbedarfsanalyse!$C$1=\"CAT B2\",'Part66 Matrix'!F49,IF(Ausbildungsbedarfsanalyse!$C$1=\"CAT B1/2\",'Part66 Matrix'!G49,\"\"))))","v":2}]
[{"$f":"IF(Ausbildungsbedarfsanalyse!$C$1=\"CAT B1\",'Part66 Matrix'!A50,IF(Ausbildungsbedarfsanalyse!$C$1=\"CAT C\",'Part66 Matrix'!A50,IF(Ausbildungsbedarfsanalyse!$C$1=\"CAT B2\",'Part66 Matrix'!A50,IF(Ausbildungsbedarfsanalyse!$C$1=\"CAT B1/2\",'Part66 Matrix'!A50,\"\"))))","v":44},{"$f":"IF(Ausbildungsbedarfsanalyse!$C$1=\"CAT B1\",'Part66 Matrix'!B50,IF(Ausbildungsbedarfsanalyse!$C$1=\"CAT C\",'Part66 Matrix'!B50,IF(Ausbildungsbedarfsanalyse!$C$1=\"CAT B2\",'Part66 Matrix'!B50,IF(Ausbildungsbedarfsanalyse!$C$1=\"CAT B1/2\",'Part66 Matrix'!B50,\"\"))))","v":"44"},"44-00",{"$f":"IF(Ausbildungsbedarfsanalyse!$C$1=\"CAT B1\",'Part66 Matrix'!C50,IF(Ausbildungsbedarfsanalyse!$C$1=\"CAT C\",'Part66 Matrix'!C50,IF(Ausbildungsbedarfsanalyse!$C$1=\"CAT B2\",'Part66 Matrix'!C50,IF(Ausbildungsbedarfsanalyse!$C$1=\"CAT B1/2\",'Part66 Matrix'!C50,\"\"))))","v":"Cabin Systems"},{"$f":"IF(Ausbildungsbedarfsanalyse!$C$1=\"CAT B1\",'Part66 Matrix'!D50,IF(Ausbildungsbedarfsanalyse!$C$1=\"CAT C\",'Part66 Matrix'!E50,IF(Ausbildungsbedarfsanalyse!$C$1=\"CAT B2\",'Part66 Matrix'!F50,IF(Ausbildungsbedarfsanalyse!$C$1=\"CAT B1/2\",'Part66 Matrix'!G50,\"\"))))","v":2}]
[{"$f":"IF(Ausbildungsbedarfsanalyse!$C$1=\"CAT B1\",'Part66 Matrix'!A51,IF(Ausbildungsbedarfsanalyse!$C$1=\"CAT C\",'Part66 Matrix'!A51,IF(Ausbildungsbedarfsanalyse!$C$1=\"CAT B2\",'Part66 Matrix'!A51,IF(Ausbildungsbedarfsanalyse!$C$1=\"CAT B1/2\",'Part66 Matrix'!A51,\"\"))))","v":45},{"$f":"IF(Ausbildungsbedarfsanalyse!$C$1=\"CAT B1\",'Part66 Matrix'!B51,IF(Ausbildungsbedarfsanalyse!$C$1=\"CAT C\",'Part66 Matrix'!B51,IF(Ausbildungsbedarfsanalyse!$C$1=\"CAT B2\",'Part66 Matrix'!B51,IF(Ausbildungsbedarfsanalyse!$C$1=\"CAT B1/2\",'Part66 Matrix'!B51,\"\"))))","v":"45"},"45-00",{"$f":"IF(Ausbildungsbedarfsanalyse!$C$1=\"CAT B1\",'Part66 Matrix'!C51,IF(Ausbildungsbedarfsanalyse!$C$1=\"CAT C\",'Part66 Matrix'!C51,IF(Ausbildungsbedarfsanalyse!$C$1=\"CAT B2\",'Part66 Matrix'!C51,IF(Ausbildungsbedarfsanalyse!$C$1=\"CAT B1/2\",'Part66 Matrix'!C51,\"\"))))","v":"On-Board Maintenance System (or covered in 31)"},{"$f":"IF(Ausbildungsbedarfsanalyse!$C$1=\"CAT B1\",'Part66 Matrix'!D51,IF(Ausbildungsbedarfsanalyse!$C$1=\"CAT C\",'Part66 Matrix'!E51,IF(Ausbildungsbedarfsanalyse!$C$1=\"CAT B2\",'Part66 Matrix'!F51,IF(Ausbildungsbedarfsanalyse!$C$1=\"CAT B1/2\",'Part66 Matrix'!G51,\"\"))))","v":3}]
[{"$f":"IF(Ausbildungsbedarfsanalyse!$C$1=\"CAT B1\",'Part66 Matrix'!A52,IF(Ausbildungsbedarfsanalyse!$C$1=\"CAT C\",'Part66 Matrix'!A52,IF(Ausbildungsbedarfsanalyse!$C$1=\"CAT B2\",'Part66 Matrix'!A52,IF(Ausbildungsbedarfsanalyse!$C$1=\"CAT B1/2\",'Part66 Matrix'!A52,\"\"))))","v":46},{"$f":"IF(Ausbildungsbedarfsanalyse!$C$1=\"CAT B1\",'Part66 Matrix'!B52,IF(Ausbildungsbedarfsanalyse!$C$1=\"CAT C\",'Part66 Matrix'!B52,IF(Ausbildungsbedarfsanalyse!$C$1=\"CAT B2\",'Part66 Matrix'!B52,IF(Ausbildungsbedarfsanalyse!$C$1=\"CAT B1/2\",'Part66 Matrix'!B52,\"\"))))","v":"46"},"46-00",{"$f":"IF(Ausbildungsbedarfsanalyse!$C$1=\"CAT B1\",'Part66 Matrix'!C52,IF(Ausbildungsbedarfsanalyse!$C$1=\"CAT C\",'Part66 Matrix'!C52,IF(Ausbildungsbedarfsanalyse!$C$1=\"CAT B2\",'Part66 Matrix'!C52,IF(Ausbildungsbedarfsanalyse!$C$1=\"CAT B1/2\",'Part66 Matrix'!C52,\"\"))))","v":"Information Systems"},{"$f":"IF(Ausbildungsbedarfsanalyse!$C$1=\"CAT B1\",'Part66 Matrix'!D52,IF(Ausbildungsbedarfsanalyse!$C$1=\"CAT C\",'Part66 Matrix'!E52,IF(Ausbildungsbedarfsanalyse!$C$1=\"CAT B2\",'Part66 Matrix'!F52,IF(Ausbildungsbedarfsanalyse!$C$1=\"CAT B1/2\",'Part66 Matrix'!G52,\"\"))))","v":2}]
[{"$f":"IF(Ausbildungsbedarfsanalyse!$C$1=\"CAT B1\",'Part66 Matrix'!A53,IF(Ausbildungsbedarfsanalyse!$C$1=\"CAT C\",'Part66 Matrix'!A53,IF(Ausbildungsbedarfsanalyse!$C$1=\"CAT B2\",'Part66 Matrix'!A53,IF(Ausbildungsbedarfsanalyse!$C$1=\"CAT B1/2\",'Part66 Matrix'!A53,\"\"))))","v":47},{"$f":"IF(Ausbildungsbedarfsanalyse!$C$1=\"CAT B1\",'Part66 Matrix'!B53,IF(Ausbildungsbedarfsanalyse!$C$1=\"CAT C\",'Part66 Matrix'!B53,IF(Ausbildungsbedarfsanalyse!$C$1=\"CAT B2\",'Part66 Matrix'!B53,IF(Ausbildungsbedarfsanalyse!$C$1=\"CAT B1/2\",'Part66 Matrix'!B53,\"\"))))","v":"49"},"49-00",{"$f":"IF(Ausbildungsbedarfsanalyse!$C$1=\"CAT B1\",'Part66 Matrix'!C53,IF(Ausbildungsbedarfsanalyse!$C$1=\"CAT C\",'Part66 Matrix'!C53,IF(Ausbildungsbedarfsanalyse!$C$1=\"CAT B2\",'Part66 Matrix'!C53,IF(Ausbildungsbedarfsanalyse!$C$1=\"CAT B1/2\",'Part66 Matrix'!C53,\"\"))))","v":"Auxiliary Power Units (APUs)"},{"$f":"IF(Ausbildungsbedarfsanalyse!$C$1=\"CAT B1\",'Part66 Matrix'!D53,IF(Ausbildungsbedarfsanalyse!$C$1=\"CAT C\",'Part66 Matrix'!E53,IF(Ausbildungsbedarfsanalyse!$C$1=\"CAT B2\",'Part66 Matrix'!F53,IF(Ausbildungsbedarfsanalyse!$C$1=\"CAT B1/2\",'Part66 Matrix'!G53,\"\"))))","v":3}]
[{"$f":"IF(Ausbildungsbedarfsanalyse!$C$1=\"CAT B1\",'Part66 Matrix'!A54,IF(Ausbildungsbedarfsanalyse!$C$1=\"CAT C\",'Part66 Matrix'!A54,IF(Ausbildungsbedarfsanalyse!$C$1=\"CAT B2\",'Part66 Matrix'!A54,IF(Ausbildungsbedarfsanalyse!$C$1=\"CAT B1/2\",'Part66 Matrix'!A54,\"\"))))","v":48},{"$f":"IF(Ausbildungsbedarfsanalyse!$C$1=\"CAT B1\",'Part66 Matrix'!B54,IF(Ausbildungsbedarfsanalyse!$C$1=\"CAT C\",'Part66 Matrix'!B54,IF(Ausbildungsbedarfsanalyse!$C$1=\"CAT B2\",'Part66 Matrix'!B54,IF(Ausbildungsbedarfsanalyse!$C$1=\"CAT B1/2\",'Part66 Matrix'!B54,\"\"))))","v":50},"50-00",{"$f":"IF(Ausbildungsbedarfsanalyse!$C$1=\"CAT B1\",'Part66 Matrix'!C54,IF(Ausbildungsbedarfsanalyse!$C$1=\"CAT C\",'Part66 Matrix'!C54,IF(Ausbildungsbedarfsanalyse!$C$1=\"CAT B2\",'Part66 Matrix'!C54,IF(Ausbildungsbedarfsanalyse!$C$1=\"CAT B1/2\",'Part66 Matrix'!C54,\"\"))))","v":"Airframe Structure"},{"$f":"IF(Ausbildungsbedarfsanalyse!$C$1=\"CAT B1\",'Part66 Matrix'!D54,IF(Ausbildungsbedarfsanalyse!$C$1=\"CAT C\",'Part66 Matrix'!E54,IF(Ausbildungsbedarfsanalyse!$C$1=\"CAT B2\",'Part66 Matrix'!F54,IF(Ausbildungsbedarfsanalyse!$C$1=\"CAT B1/2\",'Part66 Matrix'!G54,\"\"))))","v":0}]
[{"$f":"IF(Ausbildungsbedarfsanalyse!$C$1=\"CAT B1\",'Part66 Matrix'!A55,IF(Ausbildungsbedarfsanalyse!$C$1=\"CAT C\",'Part66 Matrix'!A55,IF(Ausbildungsbedarfsanalyse!$C$1=\"CAT B2\",'Part66 Matrix'!A55,IF(Ausbildungsbedarfsanalyse!$C$1=\"CAT B1/2\",'Part66 Matrix'!A55,\"\"))))","v":49},{"$f":"IF(Ausbildungsbedarfsanalyse!$C$1=\"CAT B1\",'Part66 Matrix'!B55,IF(Ausbildungsbedarfsanalyse!$C$1=\"CAT C\",'Part66 Matrix'!B55,IF(Ausbildungsbedarfsanalyse!$C$1=\"CAT B2\",'Part66 Matrix'!B55,IF(Ausbildungsbedarfsanalyse!$C$1=\"CAT B1/2\",'Part66 Matrix'!B55,\"\"))))","v":"50"},"50-00",{"$f":"IF(Ausbildungsbedarfsanalyse!$C$1=\"CAT B1\",'Part66 Matrix'!C55,IF(Ausbildungsbedarfsanalyse!$C$1=\"CAT C\",'Part66 Matrix'!C55,IF(Ausbildungsbedarfsanalyse!$C$1=\"CAT B2\",'Part66 Matrix'!C55,IF(Ausbildungsbedarfsanalyse!$C$1=\"CAT B1/2\",'Part66 Matrix'!C55,\"\"))))","v":"Cargo and Accessory Compartments"},{"$f":"IF(Ausbildungsbedarfsanalyse!$C$1=\"CAT B1\",'Part66 Matrix'!D55,IF(Ausbildungsbedarfsanalyse!$C$1=\"CAT C\",'Part66 Matrix'!E55,IF(Ausbildungsbedarfsanalyse!$C$1=\"CAT B2\",'Part66 Matrix'!F55,IF(Ausbildungsbedarfsanalyse!$C$1=\"CAT B1/2\",'Part66 Matrix'!G55,\"\"))))","v":3}]
[{"$f":"IF(Ausbildungsbedarfsanalyse!$C$1=\"CAT B1\",'Part66 Matrix'!A56,IF(Ausbildungsbedarfsanalyse!$C$1=\"CAT C\",'Part66 Matrix'!A56,IF(Ausbildungsbedarfsanalyse!$C$1=\"CAT B2\",'Part66 Matrix'!A56,IF(Ausbildungsbedarfsanalyse!$C$1=\"CAT B1/2\",'Part66 Matrix'!A56,\"\"))))","v":50},{"$f":"IF(Ausbildungsbedarfsanalyse!$C$1=\"CAT B1\",'Part66 Matrix'!B56,IF(Ausbildungsbedarfsanalyse!$C$1=\"CAT C\",'Part66 Matrix'!B56,IF(Ausbildungsbedarfsanalyse!$C$1=\"CAT B2\",'Part66 Matrix'!B56,IF(Ausbildungsbedarfsanalyse!$C$1=\"CAT B1/2\",'Part66 Matrix'!B56,\"\"))))","v":51},"51-00",{"$f":"IF(Ausbildungsbedarfsanalyse!$C$1=\"CAT B1\",'Part66 Matrix'!C56,IF(Ausbildungsbedarfsanalyse!$C$1=\"CAT C\",'Part66 Matrix'!C56,IF(Ausbildungsbedarfsanalyse!$C$1=\"CAT B2\",'Part66 Matrix'!C56,IF(Ausbildungsbedarfsanalyse!$C$1=\"CAT B1/2\",'Part66 Matrix'!C56,\"\"))))","v":"Standard practices and structures (damage classification, assessment and repair)"},{"$f":"IF(Ausbildungsbedarfsanalyse!$C$1=\"CAT B1\",'Part66 Matrix'!D56,IF(Ausbildungsbedarfsanalyse!$C$1=\"CAT C\",'Part66 Matrix'!E56,IF(Ausbildungsbedarfsanalyse!$C$1=\"CAT B2\",'Part66 Matrix'!F56,IF(Ausbildungsbedarfsanalyse!$C$1=\"CAT B1/2\",'Part66 Matrix'!G56,\"\"))))","v":3}]
[{"$f":"IF(Ausbildungsbedarfsanalyse!$C$1=\"CAT B1\",'Part66 Matrix'!A57,IF(Ausbildungsbedarfsanalyse!$C$1=\"CAT C\",'Part66 Matrix'!A57,IF(Ausbildungsbedarfsanalyse!$C$1=\"CAT B2\",'Part66 Matrix'!A57,IF(Ausbildungsbedarfsanalyse!$C$1=\"CAT B1/2\",'Part66 Matrix'!A57,\"\"))))","v":51},{"$f":"IF(Ausbildungsbedarfsanalyse!$C$1=\"CAT B1\",'Part66 Matrix'!B57,IF(Ausbildungsbedarfsanalyse!$C$1=\"CAT C\",'Part66 Matrix'!B57,IF(Ausbildungsbedarfsanalyse!$C$1=\"CAT B2\",'Part66 Matrix'!B57,IF(Ausbildungsbedarfsanalyse!$C$1=\"CAT B1/2\",'Part66 Matrix'!B57,\"\"))))","v":"52"},"52-00",{"$f":"IF(Ausbildungsbedarfsanalyse!$C$1=\"CAT B1\",'Part66 Matrix'!C57,IF(Ausbildungsbedarfsanalyse!$C$1=\"CAT C\",'Part66 Matrix'!C57,IF(Ausbildungsbedarfsanalyse!$C$1=\"CAT B2\",'Part66 Matrix'!C57,IF(Ausbildungsbedarfsanalyse!$C$1=\"CAT B1/2\",'Part66 Matrix'!C57,\"\"))))","v":"Doors"},{"$f":"IF(Ausbildungsbedarfsanalyse!$C$1=\"CAT B1\",'Part66 Matrix'!D57,IF(Ausbildungsbedarfsanalyse!$C$1=\"CAT C\",'Part66 Matrix'!E57,IF(Ausbildungsbedarfsanalyse!$C$1=\"CAT B2\",'Part66 Matrix'!F57,IF(Ausbildungsbedarfsanalyse!$C$1=\"CAT B1/2\",'Part66 Matrix'!G57,\"\"))))","v":3}]
[{"$f":"IF(Ausbildungsbedarfsanalyse!$C$1=\"CAT B1\",'Part66 Matrix'!A58,IF(Ausbildungsbedarfsanalyse!$C$1=\"CAT C\",'Part66 Matrix'!A58,IF(Ausbildungsbedarfsanalyse!$C$1=\"CAT B2\",'Part66 Matrix'!A58,IF(Ausbildungsbedarfsanalyse!$C$1=\"CAT B1/2\",'Part66 Matrix'!A58,\"\"))))","v":52},{"$f":"IF(Ausbildungsbedarfsanalyse!$C$1=\"CAT B1\",'Part66 Matrix'!B58,IF(Ausbildungsbedarfsanalyse!$C$1=\"CAT C\",'Part66 Matrix'!B58,IF(Ausbildungsbedarfsanalyse!$C$1=\"CAT B2\",'Part66 Matrix'!B58,IF(Ausbildungsbedarfsanalyse!$C$1=\"CAT B1/2\",'Part66 Matrix'!B58,\"\"))))","v":"53"},"53-00",{"$f":"IF(Ausbildungsbedarfsanalyse!$C$1=\"CAT B1\",'Part66 Matrix'!C58,IF(Ausbildungsbedarfsanalyse!$C$1=\"CAT C\",'Part66 Matrix'!C58,IF(Ausbildungsbedarfsanalyse!$C$1=\"CAT B2\",'Part66 Matrix'!C58,IF(Ausbildungsbedarfsanalyse!$C$1=\"CAT B1/2\",'Part66 Matrix'!C58,\"\"))))","v":"Fuselage"},{"$f":"IF(Ausbildungsbedarfsanalyse!$C$1=\"CAT B1\",'Part66 Matrix'!D58,IF(Ausbildungsbedarfsanalyse!$C$1=\"CAT C\",'Part66 Matrix'!E58,IF(Ausbildungsbedarfsanalyse!$C$1=\"CAT B2\",'Part66 Matrix'!F58,IF(Ausbildungsbedarfsanalyse!$C$1=\"CAT B1/2\",'Part66 Matrix'!G58,\"\"))))","v":3}]
[{"$f":"IF(Ausbildungsbedarfsanalyse!$C$1=\"CAT B1\",'Part66 Matrix'!A59,IF(Ausbildungsbedarfsanalyse!$C$1=\"CAT C\",'Part66 Matrix'!A59,IF(Ausbildungsbedarfsanalyse!$C$1=\"CAT B2\",'Part66 Matrix'!A59,IF(Ausbildungsbedarfsanalyse!$C$1=\"CAT B1/2\",'Part66 Matrix'!A59,\"\"))))","v":53},{"$f":"IF(Ausbildungsbedarfsanalyse!$C$1=\"CAT B1\",'Part66 Matrix'!B59,IF(Ausbildungsbedarfsanalyse!$C$1=\"CAT C\",'Part66 Matrix'!B59,IF(Ausbildungsbedarfsanalyse!$C$1=\"CAT B2\",'Part66 Matrix'!B59,IF(Ausbildungsbedarfsanalyse!$C$1=\"CAT B1/2\",'Part66 Matrix'!B59,\"\"))))","v":"54"},"54-00",{"$f":"IF(Ausbildungsbedarfsanalyse!$C$1=\"CAT B1\",'Part66 Matrix'!C59,IF(Ausbildungsbedarfsanalyse!$C$1=\"CAT C\",'Part66 Matrix'!C59,IF(Ausbildungsbedarfsanalyse!$C$1=\"CAT B2\",'Part66 Matrix'!C59,IF(Ausbildungsbedarfsanalyse!$C$1=\"CAT B1/2\",'Part66 Matrix'!C59,\"\"))))","v":"Nacelles/Pylons"},{"$f":"IF(Ausbildungsbedarfsanalyse!$C$1=\"CAT B1\",'Part66 Matrix'!D59,IF(Ausbildungsbedarfsanalyse!$C$1=\"CAT C\",'Part66 Matrix'!E59,IF(Ausbildungsbedarfsanalyse!$C$1=\"CAT B2\",'Part66 Matrix'!F59,IF(Ausbildungsbedarfsanalyse!$C$1=\"CAT B1/2\",'Part66 Matrix'!G59,\"\"))))","v":3}]
[{"$f":"IF(Ausbildungsbedarfsanalyse!$C$1=\"CAT B1\",'Part66 Matrix'!A60,IF(Ausbildungsbedarfsanalyse!$C$1=\"CAT C\",'Part66 Matrix'!A60,IF(Ausbildungsbedarfsanalyse!$C$1=\"CAT B2\",'Part66 Matrix'!A60,IF(Ausbildungsbedarfsanalyse!$C$1=\"CAT B1/2\",'Part66 Matrix'!A60,\"\"))))","v":54},{"$f":"IF(Ausbildungsbedarfsanalyse!$C$1=\"CAT B1\",'Part66 Matrix'!B60,IF(Ausbildungsbedarfsanalyse!$C$1=\"CAT C\",'Part66 Matrix'!B60,IF(Ausbildungsbedarfsanalyse!$C$1=\"CAT B2\",'Part66 Matrix'!B60,IF(Ausbildungsbedarfsanalyse!$C$1=\"CAT B1/2\",'Part66 Matrix'!B60,\"\"))))","v":"55"},"55-00",{"$f":"IF(Ausbildungsbedarfsanalyse!$C$1=\"CAT B1\",'Part66 Matrix'!C60,IF(Ausbildungsbedarfsanalyse!$C$1=\"CAT C\",'Part66 Matrix'!C60,IF(Ausbildungsbedarfsanalyse!$C$1=\"CAT B2\",'Part66 Matrix'!C60,IF(Ausbildungsbedarfsanalyse!$C$1=\"CAT B1/2\",'Part66 Matrix'!C60,\"\"))))","v":"Stabilisers"},{"$f":"IF(Ausbildungsbedarfsanalyse!$C$1=\"CAT B1\",'Part66 Matrix'!D60,IF(Ausbildungsbedarfsanalyse!$C$1=\"CAT C\",'Part66 Matrix'!E60,IF(Ausbildungsbedarfsanalyse!$C$1=\"CAT B2\",'Part66 Matrix'!F60,IF(Ausbildungsbedarfsanalyse!$C$1=\"CAT B1/2\",'Part66 Matrix'!G60,\"\"))))","v":3}]
[{"$f":"IF(Ausbildungsbedarfsanalyse!$C$1=\"CAT B1\",'Part66 Matrix'!A61,IF(Ausbildungsbedarfsanalyse!$C$1=\"CAT C\",'Part66 Matrix'!A61,IF(Ausbildungsbedarfsanalyse!$C$1=\"CAT B2\",'Part66 Matrix'!A61,IF(Ausbildungsbedarfsanalyse!$C$1=\"CAT B1/2\",'Part66 Matrix'!A61,\"\"))))","v":55},{"$f":"IF(Ausbildungsbedarfsanalyse!$C$1=\"CAT B1\",'Part66 Matrix'!B61,IF(Ausbildungsbedarfsanalyse!$C$1=\"CAT C\",'Part66 Matrix'!B61,IF(Ausbildungsbedarfsanalyse!$C$1=\"CAT B2\",'Part66 Matrix'!B61,IF(Ausbildungsbedarfsanalyse!$C$1=\"CAT B1/2\",'Part66 Matrix'!B61,\"\"))))","v":"56"},"56-00",{"$f":"IF(Ausbildungsbedarfsanalyse!$C$1=\"CAT B1\",'Part66 Matrix'!C61,IF(Ausbildungsbedarfsanalyse!$C$1=\"CAT C\",'Part66 Matrix'!C61,IF(Ausbildungsbedarfsanalyse!$C$1=\"CAT B2\",'Part66 Matrix'!C61,IF(Ausbildungsbedarfsanalyse!$C$1=\"CAT B1/2\",'Part66 Matrix'!C61,\"\"))))","v":"Windows"},{"$f":"IF(Ausbildungsbedarfsanalyse!$C$1=\"CAT B1\",'Part66 Matrix'!D61,IF(Ausbildungsbedarfsanalyse!$C$1=\"CAT C\",'Part66 Matrix'!E61,IF(Ausbildungsbedarfsanalyse!$C$1=\"CAT B2\",'Part66 Matrix'!F61,IF(Ausbildungsbedarfsanalyse!$C$1=\"CAT B1/2\",'Part66 Matrix'!G61,\"\"))))","v":3}]
[{"$f":"IF(Ausbildungsbedarfsanalyse!$C$1=\"CAT B1\",'Part66 Matrix'!A62,IF(Ausbildungsbedarfsanalyse!$C$1=\"CAT C\",'Part66 Matrix'!A62,IF(Ausbildungsbedarfsanalyse!$C$1=\"CAT B2\",'Part66 Matrix'!A62,IF(Ausbildungsbedarfsanalyse!$C$1=\"CAT B1/2\",'Part66 Matrix'!A62,\"\"))))","v":56},{"$f":"IF(Ausbildungsbedarfsanalyse!$C$1=\"CAT B1\",'Part66 Matrix'!B62,IF(Ausbildungsbedarfsanalyse!$C$1=\"CAT C\",'Part66 Matrix'!B62,IF(Ausbildungsbedarfsanalyse!$C$1=\"CAT B2\",'Part66 Matrix'!B62,IF(Ausbildungsbedarfsanalyse!$C$1=\"CAT B1/2\",'Part66 Matrix'!B62,\"\"))))","v":"57"},"57-00",{"$f":"IF(Ausbildungsbedarfsanalyse!$C$1=\"CAT B1\",'Part66 Matrix'!C62,IF(Ausbildungsbedarfsanalyse!$C$1=\"CAT C\",'Part66 Matrix'!C62,IF(Ausbildungsbedarfsanalyse!$C$1=\"CAT B2\",'Part66 Matrix'!C62,IF(Ausbildungsbedarfsanalyse!$C$1=\"CAT B1/2\",'Part66 Matrix'!C62,\"\"))))","v":"Wings"},{"$f":"IF(Ausbildungsbedarfsanalyse!$C$1=\"CAT B1\",'Part66 Matrix'!D62,IF(Ausbildungsbedarfsanalyse!$C$1=\"CAT C\",'Part66 Matrix'!E62,IF(Ausbildungsbedarfsanalyse!$C$1=\"CAT B2\",'Part66 Matrix'!F62,IF(Ausbildungsbedarfsanalyse!$C$1=\"CAT B1/2\",'Part66 Matrix'!G62,\"\"))))","v":3}]
[{"$f":"IF(Ausbildungsbedarfsanalyse!$C$1=\"CAT B1\",'Part66 Matrix'!A63,IF(Ausbildungsbedarfsanalyse!$C$1=\"CAT C\",'Part66 Matrix'!A63,IF(Ausbildungsbedarfsanalyse!$C$1=\"CAT B2\",'Part66 Matrix'!A63,IF(Ausbildungsbedarfsanalyse!$C$1=\"CAT B1/2\",'Part66 Matrix'!A63,\"\"))))","v":57},{"$f":"IF(Ausbildungsbedarfsanalyse!$C$1=\"CAT B1\",'Part66 Matrix'!B63,IF(Ausbildungsbedarfsanalyse!$C$1=\"CAT C\",'Part66 Matrix'!B63,IF(Ausbildungsbedarfsanalyse!$C$1=\"CAT B2\",'Part66 Matrix'!B63,IF(Ausbildungsbedarfsanalyse!$C$1=\"CAT B1/2\",'Part66 Matrix'!B63,\"\"))))","v":"60A"},"60A-00",{"$f":"IF(Ausbildungsbedarfsanalyse!$C$1=\"CAT B1\",'Part66 Matrix'!C63,IF(Ausbildungsbedarfsanalyse!$C$1=\"CAT C\",'Part66 Matrix'!C63,IF(Ausbildungsbedarfsanalyse!$C$1=\"CAT B2\",'Part66 Matrix'!C63,IF(Ausbildungsbedarfsanalyse!$C$1=\"CAT B1/2\",'Part66 Matrix'!C63,\"\"))))","v":"Standards Practices - Propeller"},{"$f":"IF(Ausbildungsbedarfsanalyse!$C$1=\"CAT B1\",'Part66 Matrix'!D63,IF(Ausbildungsbedarfsanalyse!$C$1=\"CAT C\",'Part66 Matrix'!E63,IF(Ausbildungsbedarfsanalyse!$C$1=\"CAT B2\",'Part66 Matrix'!F63,IF(Ausbildungsbedarfsanalyse!$C$1=\"CAT B1/2\",'Part66 Matrix'!G63,\"\"))))","v":3}]
[{"$f":"IF(Ausbildungsbedarfsanalyse!$C$1=\"CAT B1\",'Part66 Matrix'!A64,IF(Ausbildungsbedarfsanalyse!$C$1=\"CAT C\",'Part66 Matrix'!A64,IF(Ausbildungsbedarfsanalyse!$C$1=\"CAT B2\",'Part66 Matrix'!A64,IF(Ausbildungsbedarfsanalyse!$C$1=\"CAT B1/2\",'Part66 Matrix'!A64,\"\"))))","v":58},{"$f":"IF(Ausbildungsbedarfsanalyse!$C$1=\"CAT B1\",'Part66 Matrix'!B64,IF(Ausbildungsbedarfsanalyse!$C$1=\"CAT C\",'Part66 Matrix'!B64,IF(Ausbildungsbedarfsanalyse!$C$1=\"CAT B2\",'Part66 Matrix'!B64,IF(Ausbildungsbedarfsanalyse!$C$1=\"CAT B1/2\",'Part66 Matrix'!B64,\"\"))))","v":"61"},"61-00",{"$f":"IF(Ausbildungsbedarfsanalyse!$C$1=\"CAT B1\",'Part66 Matrix'!C64,IF(Ausbildungsbedarfsanalyse!$C$1=\"CAT C\",'Part66 Matrix'!C64,IF(Ausbildungsbedarfsanalyse!$C$1=\"CAT B2\",'Part66 Matrix'!C64,IF(Ausbildungsbedarfsanalyse!$C$1=\"CAT B1/2\",'Part66 Matrix'!C64,\"\"))))","v":"Propellers/Propulsion (General)"},{"$f":"IF(Ausbildungsbedarfsanalyse!$C$1=\"CAT B1\",'Part66 Matrix'!D64,IF(Ausbildungsbedarfsanalyse!$C$1=\"CAT C\",'Part66 Matrix'!E64,IF(Ausbildungsbedarfsanalyse!$C$1=\"CAT B2\",'Part66 Matrix'!F64,IF(Ausbildungsbedarfsanalyse!$C$1=\"CAT B1/2\",'Part66 Matrix'!G64,\"\"))))","v":3}]
[{"$f":"IF(Ausbildungsbedarfsanalyse!$C$1=\"CAT B1\",'Part66 Matrix'!A65,IF(Ausbildungsbedarfsanalyse!$C$1=\"CAT C\",'Part66 Matrix'!A65,IF(Ausbildungsbedarfsanalyse!$C$1=\"CAT B2\",'Part66 Matrix'!A65,IF(Ausbildungsbedarfsanalyse!$C$1=\"CAT B1/2\",'Part66 Matrix'!A65,\"\"))))","v":59},{"$f":"IF(Ausbildungsbedarfsanalyse!$C$1=\"CAT B1\",'Part66 Matrix'!B65,IF(Ausbildungsbedarfsanalyse!$C$1=\"CAT C\",'Part66 Matrix'!B65,IF(Ausbildungsbedarfsanalyse!$C$1=\"CAT B2\",'Part66 Matrix'!B65,IF(Ausbildungsbedarfsanalyse!$C$1=\"CAT B1/2\",'Part66 Matrix'!B65,\"\"))))","v":"61A"},"61A-00",{"$f":"IF(Ausbildungsbedarfsanalyse!$C$1=\"CAT B1\",'Part66 Matrix'!C65,IF(Ausbildungsbedarfsanalyse!$C$1=\"CAT C\",'Part66 Matrix'!C65,IF(Ausbildungsbedarfsanalyse!$C$1=\"CAT B2\",'Part66 Matrix'!C65,IF(Ausbildungsbedarfsanalyse!$C$1=\"CAT B1/2\",'Part66 Matrix'!C65,\"\"))))","v":"Propeller construction"},{"$f":"IF(Ausbildungsbedarfsanalyse!$C$1=\"CAT B1\",'Part66 Matrix'!D65,IF(Ausbildungsbedarfsanalyse!$C$1=\"CAT C\",'Part66 Matrix'!E65,IF(Ausbildungsbedarfsanalyse!$C$1=\"CAT B2\",'Part66 Matrix'!F65,IF(Ausbildungsbedarfsanalyse!$C$1=\"CAT B1/2\",'Part66 Matrix'!G65,\"\"))))","v":3}]
[{"$f":"IF(Ausbildungsbedarfsanalyse!$C$1=\"CAT B1\",'Part66 Matrix'!A66,IF(Ausbildungsbedarfsanalyse!$C$1=\"CAT C\",'Part66 Matrix'!A66,IF(Ausbildungsbedarfsanalyse!$C$1=\"CAT B2\",'Part66 Matrix'!A66,IF(Ausbildungsbedarfsanalyse!$C$1=\"CAT B1/2\",'Part66 Matrix'!A66,\"\"))))","v":60},{"$f":"IF(Ausbildungsbedarfsanalyse!$C$1=\"CAT B1\",'Part66 Matrix'!B66,IF(Ausbildungsbedarfsanalyse!$C$1=\"CAT C\",'Part66 Matrix'!B66,IF(Ausbildungsbedarfsanalyse!$C$1=\"CAT B2\",'Part66 Matrix'!B66,IF(Ausbildungsbedarfsanalyse!$C$1=\"CAT B1/2\",'Part66 Matrix'!B66,\"\"))))","v":"61B"},"61B-00",{"$f":"IF(Ausbildungsbedarfsanalyse!$C$1=\"CAT B1\",'Part66 Matrix'!C66,IF(Ausbildungsbedarfsanalyse!$C$1=\"CAT C\",'Part66 Matrix'!C66,IF(Ausbildungsbedarfsanalyse!$C$1=\"CAT B2\",'Part66 Matrix'!C66,IF(Ausbildungsbedarfsanalyse!$C$1=\"CAT B1/2\",'Part66 Matrix'!C66,\"\"))))","v":"Propeller pitch control"},{"$f":"IF(Ausbildungsbedarfsanalyse!$C$1=\"CAT B1\",'Part66 Matrix'!D66,IF(Ausbildungsbedarfsanalyse!$C$1=\"CAT C\",'Part66 Matrix'!E66,IF(Ausbildungsbedarfsanalyse!$C$1=\"CAT B2\",'Part66 Matrix'!F66,IF(Ausbildungsbedarfsanalyse!$C$1=\"CAT B1/2\",'Part66 Matrix'!G66,\"\"))))","v":3}]
[{"$f":"IF(Ausbildungsbedarfsanalyse!$C$1=\"CAT B1\",'Part66 Matrix'!A67,IF(Ausbildungsbedarfsanalyse!$C$1=\"CAT C\",'Part66 Matrix'!A67,IF(Ausbildungsbedarfsanalyse!$C$1=\"CAT B2\",'Part66 Matrix'!A67,IF(Ausbildungsbedarfsanalyse!$C$1=\"CAT B1/2\",'Part66 Matrix'!A67,\"\"))))","v":61},{"$f":"IF(Ausbildungsbedarfsanalyse!$C$1=\"CAT B1\",'Part66 Matrix'!B67,IF(Ausbildungsbedarfsanalyse!$C$1=\"CAT C\",'Part66 Matrix'!B67,IF(Ausbildungsbedarfsanalyse!$C$1=\"CAT B2\",'Part66 Matrix'!B67,IF(Ausbildungsbedarfsanalyse!$C$1=\"CAT B1/2\",'Part66 Matrix'!B67,\"\"))))","v":"61C"},"61C-00",{"$f":"IF(Ausbildungsbedarfsanalyse!$C$1=\"CAT B1\",'Part66 Matrix'!C67,IF(Ausbildungsbedarfsanalyse!$C$1=\"CAT C\",'Part66 Matrix'!C67,IF(Ausbildungsbedarfsanalyse!$C$1=\"CAT B2\",'Part66 Matrix'!C67,IF(Ausbildungsbedarfsanalyse!$C$1=\"CAT B1/2\",'Part66 Matrix'!C67,\"\"))))","v":"Propeller synchronising"},{"$f":"IF(Ausbildungsbedarfsanalyse!$C$1=\"CAT B1\",'Part66 Matrix'!D67,IF(Ausbildungsbedarfsanalyse!$C$1=\"CAT C\",'Part66 Matrix'!E67,IF(Ausbildungsbedarfsanalyse!$C$1=\"CAT B2\",'Part66 Matrix'!F67,IF(Ausbildungsbedarfsanalyse!$C$1=\"CAT B1/2\",'Part66 Matrix'!G67,\"\"))))","v":3}]
[{"$f":"IF(Ausbildungsbedarfsanalyse!$C$1=\"CAT B1\",'Part66 Matrix'!A68,IF(Ausbildungsbedarfsanalyse!$C$1=\"CAT C\",'Part66 Matrix'!A68,IF(Ausbildungsbedarfsanalyse!$C$1=\"CAT B2\",'Part66 Matrix'!A68,IF(Ausbildungsbedarfsanalyse!$C$1=\"CAT B1/2\",'Part66 Matrix'!A68,\"\"))))","v":62},{"$f":"IF(Ausbildungsbedarfsanalyse!$C$1=\"CAT B1\",'Part66 Matrix'!B68,IF(Ausbildungsbedarfsanalyse!$C$1=\"CAT C\",'Part66 Matrix'!B68,IF(Ausbildungsbedarfsanalyse!$C$1=\"CAT B2\",'Part66 Matrix'!B68,IF(Ausbildungsbedarfsanalyse!$C$1=\"CAT B1/2\",'Part66 Matrix'!B68,\"\"))))","v":"61D"},"61D-00",{"$f":"IF(Ausbildungsbedarfsanalyse!$C$1=\"CAT B1\",'Part66 Matrix'!C68,IF(Ausbildungsbedarfsanalyse!$C$1=\"CAT C\",'Part66 Matrix'!C68,IF(Ausbildungsbedarfsanalyse!$C$1=\"CAT B2\",'Part66 Matrix'!C68,IF(Ausbildungsbedarfsanalyse!$C$1=\"CAT B1/2\",'Part66 Matrix'!C68,\"\"))))","v":"Propeller electronic control"},{"$f":"IF(Ausbildungsbedarfsanalyse!$C$1=\"CAT B1\",'Part66 Matrix'!D68,IF(Ausbildungsbedarfsanalyse!$C$1=\"CAT C\",'Part66 Matrix'!E68,IF(Ausbildungsbedarfsanalyse!$C$1=\"CAT B2\",'Part66 Matrix'!F68,IF(Ausbildungsbedarfsanalyse!$C$1=\"CAT B1/2\",'Part66 Matrix'!G68,\"\"))))","v":2}]
[{"$f":"IF(Ausbildungsbedarfsanalyse!$C$1=\"CAT B1\",'Part66 Matrix'!A69,IF(Ausbildungsbedarfsanalyse!$C$1=\"CAT C\",'Part66 Matrix'!A69,IF(Ausbildungsbedarfsanalyse!$C$1=\"CAT B2\",'Part66 Matrix'!A69,IF(Ausbildungsbedarfsanalyse!$C$1=\"CAT B1/2\",'Part66 Matrix'!A69,\"\"))))","v":63},{"$f":"IF(Ausbildungsbedarfsanalyse!$C$1=\"CAT B1\",'Part66 Matrix'!B69,IF(Ausbildungsbedarfsanalyse!$C$1=\"CAT C\",'Part66 Matrix'!B69,IF(Ausbildungsbedarfsanalyse!$C$1=\"CAT B2\",'Part66 Matrix'!B69,IF(Ausbildungsbedarfsanalyse!$C$1=\"CAT B1/2\",'Part66 Matrix'!B69,\"\"))))","v":"61E"},"61E-00",{"$f":"IF(Ausbildungsbedarfsanalyse!$C$1=\"CAT B1\",'Part66 Matrix'!C69,IF(Ausbildungsbedarfsanalyse!$C$1=\"CAT C\",'Part66 Matrix'!C69,IF(Ausbildungsbedarfsanalyse!$C$1=\"CAT B2\",'Part66 Matrix'!C69,IF(Ausbildungsbedarfsanalyse!$C$1=\"CAT B1/2\",'Part66 Matrix'!C69,\"\"))))","v":"Propeller ice protection"},{"$f":"IF(Ausbildungsbedarfsanalyse!$C$1=\"CAT B1\",'Part66 Matrix'!D69,IF(Ausbildungsbedarfsanalyse!$C$1=\"CAT C\",'Part66 Matrix'!E69,IF(Ausbildungsbedarfsanalyse!$C$1=\"CAT B2\",'Part66 Matrix'!F69,IF(Ausbildungsbedarfsanalyse!$C$1=\"CAT B1/2\",'Part66 Matrix'!G69,\"\"))))","v":3}]
[{"$f":"IF(Ausbildungsbedarfsanalyse!$C$1=\"CAT B1\",'Part66 Matrix'!A70,IF(Ausbildungsbedarfsanalyse!$C$1=\"CAT C\",'Part66 Matrix'!A70,IF(Ausbildungsbedarfsanalyse!$C$1=\"CAT B2\",'Part66 Matrix'!A70,IF(Ausbildungsbedarfsanalyse!$C$1=\"CAT B1/2\",'Part66 Matrix'!A70,\"\"))))","v":64},{"$f":"IF(Ausbildungsbedarfsanalyse!$C$1=\"CAT B1\",'Part66 Matrix'!B70,IF(Ausbildungsbedarfsanalyse!$C$1=\"CAT C\",'Part66 Matrix'!B70,IF(Ausbildungsbedarfsanalyse!$C$1=\"CAT B2\",'Part66 Matrix'!B70,IF(Ausbildungsbedarfsanalyse!$C$1=\"CAT B1/2\",'Part66 Matrix'!B70,\"\"))))","v":"61F"},"61F-00",{"$f":"IF(Ausbildungsbedarfsanalyse!$C$1=\"CAT B1\",'Part66 Matrix'!C70,IF(Ausbildungsbedarfsanalyse!$C$1=\"CAT C\",'Part66 Matrix'!C70,IF(Ausbildungsbedarfsanalyse!$C$1=\"CAT B2\",'Part66 Matrix'!C70,IF(Ausbildungsbedarfsanalyse!$C$1=\"CAT B1/2\",'Part66 Matrix'!C70,\"\"))))","v":"Propeller maintenance"},{"$f":"IF(Ausbildungsbedarfsanalyse!$C$1=\"CAT B1\",'Part66 Matrix'!D70,IF(Ausbildungsbedarfsanalyse!$C$1=\"CAT C\",'Part66 Matrix'!E70,IF(Ausbildungsbedarfsanalyse!$C$1=\"CAT B2\",'Part66 Matrix'!F70,IF(Ausbildungsbedarfsanalyse!$C$1=\"CAT B1/2\",'Part66 Matrix'!G70,\"\"))))","v":3}]
[{"$f":"IF(Ausbildungsbedarfsanalyse!$C$1=\"CAT B1\",'Part66 Matrix'!A71,IF(Ausbildungsbedarfsanalyse!$C$1=\"CAT C\",'Part66 Matrix'!A71,IF(Ausbildungsbedarfsanalyse!$C$1=\"CAT B2\",'Part66 Matrix'!A71,IF(Ausbildungsbedarfsanalyse!$C$1=\"CAT B1/2\",'Part66 Matrix'!A71,\"\"))))","v":65},{"$f":"IF(Ausbildungsbedarfsanalyse!$C$1=\"CAT B1\",'Part66 Matrix'!B71,IF(Ausbildungsbedarfsanalyse!$C$1=\"CAT C\",'Part66 Matrix'!B71,IF(Ausbildungsbedarfsanalyse!$C$1=\"CAT B2\",'Part66 Matrix'!B71,IF(Ausbildungsbedarfsanalyse!$C$1=\"CAT B1/2\",'Part66 Matrix'!B71,\"\"))))","v":0},"0-00",{"$f":"IF(Ausbildungsbedarfsanalyse!$C$1=\"CAT B1\",'Part66 Matrix'!C71,IF(Ausbildungsbedarfsanalyse!$C$1=\"CAT C\",'Part66 Matrix'!C71,IF(Ausbildungsbedarfsanalyse!$C$1=\"CAT B2\",'Part66 Matrix'!C71,IF(Ausbildungsbedarfsanalyse!$C$1=\"CAT B1/2\",'Part66 Matrix'!C71,\"\"))))","v":0},{"$f":"IF(Ausbildungsbedarfsanalyse!$C$1=\"CAT B1\",'Part66 Matrix'!D71,IF(Ausbildungsbedarfsanalyse!$C$1=\"CAT C\",'Part66 Matrix'!E71,IF(Ausbildungsbedarfsanalyse!$C$1=\"CAT B2\",'Part66 Matrix'!F71,IF(Ausbildungsbedarfsanalyse!$C$1=\"CAT B1/2\",'Part66 Matrix'!G71,\"\"))))","v":0}]
[{"$f":"IF(Ausbildungsbedarfsanalyse!$C$1=\"CAT B1\",'Part66 Matrix'!A72,IF(Ausbildungsbedarfsanalyse!$C$1=\"CAT C\",'Part66 Matrix'!A72,IF(Ausbildungsbedarfsanalyse!$C$1=\"CAT B2\",'Part66 Matrix'!A72,IF(Ausbildungsbedarfsanalyse!$C$1=\"CAT B1/2\",'Part66 Matrix'!A72,\"\"))))","v":66},{"$f":"IF(Ausbildungsbedarfsanalyse!$C$1=\"CAT B1\",'Part66 Matrix'!B72,IF(Ausbildungsbedarfsanalyse!$C$1=\"CAT C\",'Part66 Matrix'!B72,IF(Ausbildungsbedarfsanalyse!$C$1=\"CAT B2\",'Part66 Matrix'!B72,IF(Ausbildungsbedarfsanalyse!$C$1=\"CAT B1/2\",'Part66 Matrix'!B72,\"\"))))","v":"70"},"70-00",{"$f":"IF(Ausbildungsbedarfsanalyse!$C$1=\"CAT B1\",'Part66 Matrix'!C72,IF(Ausbildungsbedarfsanalyse!$C$1=\"CAT C\",'Part66 Matrix'!C72,IF(Ausbildungsbedarfsanalyse!$C$1=\"CAT B2\",'Part66 Matrix'!C72,IF(Ausbildungsbedarfsanalyse!$C$1=\"CAT B1/2\",'Part66 Matrix'!C72,\"\"))))","v":"Standard Practices - Engines"},{"$f":"IF(Ausbildungsbedarfsanalyse!$C$1=\"CAT B1\",'Part66 Matrix'!D72,IF(Ausbildungsbedarfsanalyse!$C$1=\"CAT C\",'Part66 Matrix'!E72,IF(Ausbildungsbedarfsanalyse!$C$1=\"CAT B2\",'Part66 Matrix'!F72,IF(Ausbildungsbedarfsanalyse!$C$1=\"CAT B1/2\",'Part66 Matrix'!G72,\"\"))))","v":3}]
[{"$f":"IF(Ausbildungsbedarfsanalyse!$C$1=\"CAT B1\",'Part66 Matrix'!A73,IF(Ausbildungsbedarfsanalyse!$C$1=\"CAT C\",'Part66 Matrix'!A73,IF(Ausbildungsbedarfsanalyse!$C$1=\"CAT B2\",'Part66 Matrix'!A73,IF(Ausbildungsbedarfsanalyse!$C$1=\"CAT B1/2\",'Part66 Matrix'!A73,\"\"))))","v":67},{"$f":"IF(Ausbildungsbedarfsanalyse!$C$1=\"CAT B1\",'Part66 Matrix'!B73,IF(Ausbildungsbedarfsanalyse!$C$1=\"CAT C\",'Part66 Matrix'!B73,IF(Ausbildungsbedarfsanalyse!$C$1=\"CAT B2\",'Part66 Matrix'!B73,IF(Ausbildungsbedarfsanalyse!$C$1=\"CAT B1/2\",'Part66 Matrix'!B73,\"\"))))","v":0},"0-00",{"$f":"IF(Ausbildungsbedarfsanalyse!$C$1=\"CAT B1\",'Part66 Matrix'!C73,IF(Ausbildungsbedarfsanalyse!$C$1=\"CAT C\",'Part66 Matrix'!C73,IF(Ausbildungsbedarfsanalyse!$C$1=\"CAT B2\",'Part66 Matrix'!C73,IF(Ausbildungsbedarfsanalyse!$C$1=\"CAT B1/2\",'Part66 Matrix'!C73,\"\"))))","v":0},{"$f":"IF(Ausbildungsbedarfsanalyse!$C$1=\"CAT B1\",'Part66 Matrix'!D73,IF(Ausbildungsbedarfsanalyse!$C$1=\"CAT C\",'Part66 Matrix'!E73,IF(Ausbildungsbedarfsanalyse!$C$1=\"CAT B2\",'Part66 Matrix'!F73,IF(Ausbildungsbedarfsanalyse!$C$1=\"CAT B1/2\",'Part66 Matrix'!G73,\"\"))))","v":0}]
[{"$f":"IF(Ausbildungsbedarfsanalyse!$C$1=\"CAT B1\",'Part66 Matrix'!A74,IF(Ausbildungsbedarfsanalyse!$C$1=\"CAT C\",'Part66 Matrix'!A74,IF(Ausbildungsbedarfsanalyse!$C$1=\"CAT B2\",'Part66 Matrix'!A74,IF(Ausbildungsbedarfsanalyse!$C$1=\"CAT B1/2\",'Part66 Matrix'!A74,\"\"))))","v":68},{"$f":"IF(Ausbildungsbedarfsanalyse!$C$1=\"CAT B1\",'Part66 Matrix'!B74,IF(Ausbildungsbedarfsanalyse!$C$1=\"CAT C\",'Part66 Matrix'!B74,IF(Ausbildungsbedarfsanalyse!$C$1=\"CAT B2\",'Part66 Matrix'!B74,IF(Ausbildungsbedarfsanalyse!$C$1=\"CAT B1/2\",'Part66 Matrix'!B74,\"\"))))","v":0},{"$f":"B71&\"-00\"","v":"0-00"},{"$f":"IF(Ausbildungsbedarfsanalyse!$C$1=\"CAT B1\",'Part66 Matrix'!C74,IF(Ausbildungsbedarfsanalyse!$C$1=\"CAT C\",'Part66 Matrix'!C74,IF(Ausbildungsbedarfsanalyse!$C$1=\"CAT B2\",'Part66 Matrix'!C74,IF(Ausbildungsbedarfsanalyse!$C$1=\"CAT B1/2\",'Part66 Matrix'!C74,\"\"))))","v":0},{"$f":"IF(Ausbildungsbedarfsanalyse!$C$1=\"CAT B1\",'Part66 Matrix'!D74,IF(Ausbildungsbedarfsanalyse!$C$1=\"CAT C\",'Part66 Matrix'!E74,IF(Ausbildungsbedarfsanalyse!$C$1=\"CAT B2\",'Part66 Matrix'!F74,IF(Ausbildungsbedarfsanalyse!$C$1=\"CAT B1/2\",'Part66 Matrix'!G74,\"\"))))","v":0}]
[{"$f":"IF(Ausbildungsbedarfsanalyse!$C$1=\"CAT B1\",'Part66 Matrix'!A75,IF(Ausbildungsbedarfsanalyse!$C$1=\"CAT C\",'Part66 Matrix'!A75,IF(Ausbildungsbedarfsanalyse!$C$1=\"CAT B2\",'Part66 Matrix'!A75,IF(Ausbildungsbedarfsanalyse!$C$1=\"CAT B1/2\",'Part66 Matrix'!A75,\"\"))))","v":69},{"$f":"IF(Ausbildungsbedarfsanalyse!$C$1=\"CAT B1\",'Part66 Matrix'!B75,IF(Ausbildungsbedarfsanalyse!$C$1=\"CAT C\",'Part66 Matrix'!B75,IF(Ausbildungsbedarfsanalyse!$C$1=\"CAT B2\",'Part66 Matrix'!B75,IF(Ausbildungsbedarfsanalyse!$C$1=\"CAT B1/2\",'Part66 Matrix'!B75,\"\"))))","v":"70A"},"70A-00",{"$f":"IF(Ausbildungsbedarfsanalyse!$C$1=\"CAT B1\",'Part66 Matrix'!C75,IF(Ausbildungsbedarfsanalyse!$C$1=\"CAT C\",'Part66 Matrix'!C75,IF(Ausbildungsbedarfsanalyse!$C$1=\"CAT B2\",'Part66 Matrix'!C75,IF(Ausbildungsbedarfsanalyse!$C$1=\"CAT B1/2\",'Part66 Matrix'!C75,\"\"))))","v":"Constructional arrangement and operation (Installation Inlet, Compressors, Combustion Section, Turbine Section, Bearings and Seals, Lubrication Systems)."},{"$f":"IF(Ausbildungsbedarfsanalyse!$C$1=\"CAT B1\",'Part66 Matrix'!D75,IF(Ausbildungsbedarfsanalyse!$C$1=\"CAT C\",'Part66 Matrix'!E75,IF(Ausbildungsbedarfsanalyse!$C$1=\"CAT B2\",'Part66 Matrix'!F75,IF(Ausbildungsbedarfsanalyse!$C$1=\"CAT B1/2\",'Part66 Matrix'!G75,\"\"))))","v":3}]
[{"$f":"IF(Ausbildungsbedarfsanalyse!$C$1=\"CAT B1\",'Part66 Matrix'!A76,IF(Ausbildungsbedarfsanalyse!$C$1=\"CAT C\",'Part66 Matrix'!A76,IF(Ausbildungsbedarfsanalyse!$C$1=\"CAT B2\",'Part66 Matrix'!A76,IF(Ausbildungsbedarfsanalyse!$C$1=\"CAT B1/2\",'Part66 Matrix'!A76,\"\"))))","v":70},{"$f":"IF(Ausbildungsbedarfsanalyse!$C$1=\"CAT B1\",'Part66 Matrix'!B76,IF(Ausbildungsbedarfsanalyse!$C$1=\"CAT C\",'Part66 Matrix'!B76,IF(Ausbildungsbedarfsanalyse!$C$1=\"CAT B2\",'Part66 Matrix'!B76,IF(Ausbildungsbedarfsanalyse!$C$1=\"CAT B1/2\",'Part66 Matrix'!B76,\"\"))))","v":"70B"},"70B-00",{"$f":"IF(Ausbildungsbedarfsanalyse!$C$1=\"CAT B1\",'Part66 Matrix'!C76,IF(Ausbildungsbedarfsanalyse!$C$1=\"CAT C\",'Part66 Matrix'!C76,IF(Ausbildungsbedarfsanalyse!$C$1=\"CAT B2\",'Part66 Matrix'!C76,IF(Ausbildungsbedarfsanalyse!$C$1=\"CAT B1/2\",'Part66 Matrix'!C76,\"\"))))","v":"Engine Performance"},{"$f":"IF(Ausbildungsbedarfsanalyse!$C$1=\"CAT B1\",'Part66 Matrix'!D76,IF(Ausbildungsbedarfsanalyse!$C$1=\"CAT C\",'Part66 Matrix'!E76,IF(Ausbildungsbedarfsanalyse!$C$1=\"CAT B2\",'Part66 Matrix'!F76,IF(Ausbildungsbedarfsanalyse!$C$1=\"CAT B1/2\",'Part66 Matrix'!G76,\"\"))))","v":3}]
[{"$f":"IF(Ausbildungsbedarfsanalyse!$C$1=\"CAT B1\",'Part66 Matrix'!A77,IF(Ausbildungsbedarfsanalyse!$C$1=\"CAT C\",'Part66 Matrix'!A77,IF(Ausbildungsbedarfsanalyse!$C$1=\"CAT B2\",'Part66 Matrix'!A77,IF(Ausbildungsbedarfsanalyse!$C$1=\"CAT B1/2\",'Part66 Matrix'!A77,\"\"))))","v":71},{"$f":"IF(Ausbildungsbedarfsanalyse!$C$1=\"CAT B1\",'Part66 Matrix'!B77,IF(Ausbildungsbedarfsanalyse!$C$1=\"CAT C\",'Part66 Matrix'!B77,IF(Ausbildungsbedarfsanalyse!$C$1=\"CAT B2\",'Part66 Matrix'!B77,IF(Ausbildungsbedarfsanalyse!$C$1=\"CAT B1/2\",'Part66 Matrix'!B77,\"\"))))","v":"71"},"71-00",{"$f":"IF(Ausbildungsbedarfsanalyse!$C$1=\"CAT B1\",'Part66 Matrix'!C77,IF(Ausbildungsbedarfsanalyse!$C$1=\"CAT C\",'Part66 Matrix'!C77,IF(Ausbildungsbedarfsanalyse!$C$1=\"CAT B2\",'Part66 Matrix'!C77,IF(Ausbildungsbedarfsanalyse!$C$1=\"CAT B1/2\",'Part66 Matrix'!C77,\"\"))))","v":"Powerplant"},{"$f":"IF(Ausbildungsbedarfsanalyse!$C$1=\"CAT B1\",'Part66 Matrix'!D77,IF(Ausbildungsbedarfsanalyse!$C$1=\"CAT C\",'Part66 Matrix'!E77,IF(Ausbildungsbedarfsanalyse!$C$1=\"CAT B2\",'Part66 Matrix'!F77,IF(Ausbildungsbedarfsanalyse!$C$1=\"CAT B1/2\",'Part66 Matrix'!G77,\"\"))))","v":3}]
[{"$f":"IF(Ausbildungsbedarfsanalyse!$C$1=\"CAT B1\",'Part66 Matrix'!A78,IF(Ausbildungsbedarfsanalyse!$C$1=\"CAT C\",'Part66 Matrix'!A78,IF(Ausbildungsbedarfsanalyse!$C$1=\"CAT B2\",'Part66 Matrix'!A78,IF(Ausbildungsbedarfsanalyse!$C$1=\"CAT B1/2\",'Part66 Matrix'!A78,\"\"))))","v":72},{"$f":"IF(Ausbildungsbedarfsanalyse!$C$1=\"CAT B1\",'Part66 Matrix'!B78,IF(Ausbildungsbedarfsanalyse!$C$1=\"CAT C\",'Part66 Matrix'!B78,IF(Ausbildungsbedarfsanalyse!$C$1=\"CAT B2\",'Part66 Matrix'!B78,IF(Ausbildungsbedarfsanalyse!$C$1=\"CAT B1/2\",'Part66 Matrix'!B78,\"\"))))","v":"72"},"72-00",{"$f":"IF(Ausbildungsbedarfsanalyse!$C$1=\"CAT B1\",'Part66 Matrix'!C78,IF(Ausbildungsbedarfsanalyse!$C$1=\"CAT C\",'Part66 Matrix'!C78,IF(Ausbildungsbedarfsanalyse!$C$1=\"CAT B2\",'Part66 Matrix'!C78,IF(Ausbildungsbedarfsanalyse!$C$1=\"CAT B1/2\",'Part66 Matrix'!C78,\"\"))))","v":"Engine Turbine/Turbo Prop/Ducted Fan/Unducted fan"},{"$f":"IF(Ausbildungsbedarfsanalyse!$C$1=\"CAT B1\",'Part66 Matrix'!D78,IF(Ausbildungsbedarfsanalyse!$C$1=\"CAT C\",'Part66 Matrix'!E78,IF(Ausbildungsbedarfsanalyse!$C$1=\"CAT B2\",'Part66 Matrix'!F78,IF(Ausbildungsbedarfsanalyse!$C$1=\"CAT B1/2\",'Part66 Matrix'!G78,\"\"))))","v":3}]
[{"$f":"IF(Ausbildungsbedarfsanalyse!$C$1=\"CAT B1\",'Part66 Matrix'!A79,IF(Ausbildungsbedarfsanalyse!$C$1=\"CAT C\",'Part66 Matrix'!A79,IF(Ausbildungsbedarfsanalyse!$C$1=\"CAT B2\",'Part66 Matrix'!A79,IF(Ausbildungsbedarfsanalyse!$C$1=\"CAT B1/2\",'Part66 Matrix'!A79,\"\"))))","v":73},{"$f":"IF(Ausbildungsbedarfsanalyse!$C$1=\"CAT B1\",'Part66 Matrix'!B79,IF(Ausbildungsbedarfsanalyse!$C$1=\"CAT C\",'Part66 Matrix'!B79,IF(Ausbildungsbedarfsanalyse!$C$1=\"CAT B2\",'Part66 Matrix'!B79,IF(Ausbildungsbedarfsanalyse!$C$1=\"CAT B1/2\",'Part66 Matrix'!B79,\"\"))))","v":"73"},"73-00",{"$f":"IF(Ausbildungsbedarfsanalyse!$C$1=\"CAT B1\",'Part66 Matrix'!C79,IF(Ausbildungsbedarfsanalyse!$C$1=\"CAT C\",'Part66 Matrix'!C79,IF(Ausbildungsbedarfsanalyse!$C$1=\"CAT B2\",'Part66 Matrix'!C79,IF(Ausbildungsbedarfsanalyse!$C$1=\"CAT B1/2\",'Part66 Matrix'!C79,\"\"))))","v":"Engine Fuel and Control"},{"$f":"IF(Ausbildungsbedarfsanalyse!$C$1=\"CAT B1\",'Part66 Matrix'!D79,IF(Ausbildungsbedarfsanalyse!$C$1=\"CAT C\",'Part66 Matrix'!E79,IF(Ausbildungsbedarfsanalyse!$C$1=\"CAT B2\",'Part66 Matrix'!F79,IF(Ausbildungsbedarfsanalyse!$C$1=\"CAT B1/2\",'Part66 Matrix'!G79,\"\"))))","v":3}]
[{"$f":"IF(Ausbildungsbedarfsanalyse!$C$1=\"CAT B1\",'Part66 Matrix'!A80,IF(Ausbildungsbedarfsanalyse!$C$1=\"CAT C\",'Part66 Matrix'!A80,IF(Ausbildungsbedarfsanalyse!$C$1=\"CAT B2\",'Part66 Matrix'!A80,IF(Ausbildungsbedarfsanalyse!$C$1=\"CAT B1/2\",'Part66 Matrix'!A80,\"\"))))","v":74},{"$f":"IF(Ausbildungsbedarfsanalyse!$C$1=\"CAT B1\",'Part66 Matrix'!B80,IF(Ausbildungsbedarfsanalyse!$C$1=\"CAT C\",'Part66 Matrix'!B80,IF(Ausbildungsbedarfsanalyse!$C$1=\"CAT B2\",'Part66 Matrix'!B80,IF(Ausbildungsbedarfsanalyse!$C$1=\"CAT B1/2\",'Part66 Matrix'!B80,\"\"))))","v":"73A"},"73A-00",{"$f":"IF(Ausbildungsbedarfsanalyse!$C$1=\"CAT B1\",'Part66 Matrix'!C80,IF(Ausbildungsbedarfsanalyse!$C$1=\"CAT C\",'Part66 Matrix'!C80,IF(Ausbildungsbedarfsanalyse!$C$1=\"CAT B2\",'Part66 Matrix'!C80,IF(Ausbildungsbedarfsanalyse!$C$1=\"CAT B1/2\",'Part66 Matrix'!C80,\"\"))))","v":"FADEC"},{"$f":"IF(Ausbildungsbedarfsanalyse!$C$1=\"CAT B1\",'Part66 Matrix'!D80,IF(Ausbildungsbedarfsanalyse!$C$1=\"CAT C\",'Part66 Matrix'!E80,IF(Ausbildungsbedarfsanalyse!$C$1=\"CAT B2\",'Part66 Matrix'!F80,IF(Ausbildungsbedarfsanalyse!$C$1=\"CAT B1/2\",'Part66 Matrix'!G80,\"\"))))","v":3}]
[{"$f":"IF(Ausbildungsbedarfsanalyse!$C$1=\"CAT B1\",'Part66 Matrix'!A81,IF(Ausbildungsbedarfsanalyse!$C$1=\"CAT C\",'Part66 Matrix'!A81,IF(Ausbildungsbedarfsanalyse!$C$1=\"CAT B2\",'Part66 Matrix'!A81,IF(Ausbildungsbedarfsanalyse!$C$1=\"CAT B1/2\",'Part66 Matrix'!A81,\"\"))))","v":75},{"$f":"IF(Ausbildungsbedarfsanalyse!$C$1=\"CAT B1\",'Part66 Matrix'!B81,IF(Ausbildungsbedarfsanalyse!$C$1=\"CAT C\",'Part66 Matrix'!B81,IF(Ausbildungsbedarfsanalyse!$C$1=\"CAT B2\",'Part66 Matrix'!B81,IF(Ausbildungsbedarfsanalyse!$C$1=\"CAT B1/2\",'Part66 Matrix'!B81,\"\"))))","v":"74"},"74-00",{"$f":"IF(Ausbildungsbedarfsanalyse!$C$1=\"CAT B1\",'Part66 Matrix'!C81,IF(Ausbildungsbedarfsanalyse!$C$1=\"CAT C\",'Part66 Matrix'!C81,IF(Ausbildungsbedarfsanalyse!$C$1=\"CAT B2\",'Part66 Matrix'!C81,IF(Ausbildungsbedarfsanalyse!$C$1=\"CAT B1/2\",'Part66 Matrix'!C81,\"\"))))","v":"Ignition"},{"$f":"IF(Ausbildungsbedarfsanalyse!$C$1=\"CAT B1\",'Part66 Matrix'!D81,IF(Ausbildungsbedarfsanalyse!$C$1=\"CAT C\",'Part66 Matrix'!E81,IF(Ausbildungsbedarfsanalyse!$C$1=\"CAT B2\",'Part66 Matrix'!F81,IF(Ausbildungsbedarfsanalyse!$C$1=\"CAT B1/2\",'Part66 Matrix'!G81,\"\"))))","v":3}]
[{"$f":"IF(Ausbildungsbedarfsanalyse!$C$1=\"CAT B1\",'Part66 Matrix'!A82,IF(Ausbildungsbedarfsanalyse!$C$1=\"CAT C\",'Part66 Matrix'!A82,IF(Ausbildungsbedarfsanalyse!$C$1=\"CAT B2\",'Part66 Matrix'!A82,IF(Ausbildungsbedarfsanalyse!$C$1=\"CAT B1/2\",'Part66 Matrix'!A82,\"\"))))","v":76},{"$f":"IF(Ausbildungsbedarfsanalyse!$C$1=\"CAT B1\",'Part66 Matrix'!B82,IF(Ausbildungsbedarfsanalyse!$C$1=\"CAT C\",'Part66 Matrix'!B82,IF(Ausbildungsbedarfsanalyse!$C$1=\"CAT B2\",'Part66 Matrix'!B82,IF(Ausbildungsbedarfsanalyse!$C$1=\"CAT B1/2\",'Part66 Matrix'!B82,\"\"))))","v":"75"},"75-00",{"$f":"IF(Ausbildungsbedarfsanalyse!$C$1=\"CAT B1\",'Part66 Matrix'!C82,IF(Ausbildungsbedarfsanalyse!$C$1=\"CAT C\",'Part66 Matrix'!C82,IF(Ausbildungsbedarfsanalyse!$C$1=\"CAT B2\",'Part66 Matrix'!C82,IF(Ausbildungsbedarfsanalyse!$C$1=\"CAT B1/2\",'Part66 Matrix'!C82,\"\"))))","v":"Air"},{"$f":"IF(Ausbildungsbedarfsanalyse!$C$1=\"CAT B1\",'Part66 Matrix'!D82,IF(Ausbildungsbedarfsanalyse!$C$1=\"CAT C\",'Part66 Matrix'!E82,IF(Ausbildungsbedarfsanalyse!$C$1=\"CAT B2\",'Part66 Matrix'!F82,IF(Ausbildungsbedarfsanalyse!$C$1=\"CAT B1/2\",'Part66 Matrix'!G82,\"\"))))","v":3}]
[{"$f":"IF(Ausbildungsbedarfsanalyse!$C$1=\"CAT B1\",'Part66 Matrix'!A83,IF(Ausbildungsbedarfsanalyse!$C$1=\"CAT C\",'Part66 Matrix'!A83,IF(Ausbildungsbedarfsanalyse!$C$1=\"CAT B2\",'Part66 Matrix'!A83,IF(Ausbildungsbedarfsanalyse!$C$1=\"CAT B1/2\",'Part66 Matrix'!A83,\"\"))))","v":77},{"$f":"IF(Ausbildungsbedarfsanalyse!$C$1=\"CAT B1\",'Part66 Matrix'!B83,IF(Ausbildungsbedarfsanalyse!$C$1=\"CAT C\",'Part66 Matrix'!B83,IF(Ausbildungsbedarfsanalyse!$C$1=\"CAT B2\",'Part66 Matrix'!B83,IF(Ausbildungsbedarfsanalyse!$C$1=\"CAT B1/2\",'Part66 Matrix'!B83,\"\"))))","v":"76"},"76-00",{"$f":"IF(Ausbildungsbedarfsanalyse!$C$1=\"CAT B1\",'Part66 Matrix'!C83,IF(Ausbildungsbedarfsanalyse!$C$1=\"CAT C\",'Part66 Matrix'!C83,IF(Ausbildungsbedarfsanalyse!$C$1=\"CAT B2\",'Part66 Matrix'!C83,IF(Ausbildungsbedarfsanalyse!$C$1=\"CAT B1/2\",'Part66 Matrix'!C83,\"\"))))","v":"Engine controls"},{"$f":"IF(Ausbildungsbedarfsanalyse!$C$1=\"CAT B1\",'Part66 Matrix'!D83,IF(Ausbildungsbedarfsanalyse!$C$1=\"CAT C\",'Part66 Matrix'!E83,IF(Ausbildungsbedarfsanalyse!$C$1=\"CAT B2\",'Part66 Matrix'!F83,IF(Ausbildungsbedarfsanalyse!$C$1=\"CAT B1/2\",'Part66 Matrix'!G83,\"\"))))","v":3}]
[{"$f":"IF(Ausbildungsbedarfsanalyse!$C$1=\"CAT B1\",'Part66 Matrix'!A84,IF(Ausbildungsbedarfsanalyse!$C$1=\"CAT C\",'Part66 Matrix'!A84,IF(Ausbildungsbedarfsanalyse!$C$1=\"CAT B2\",'Part66 Matrix'!A84,IF(Ausbildungsbedarfsanalyse!$C$1=\"CAT B1/2\",'Part66 Matrix'!A84,\"\"))))","v":78},{"$f":"IF(Ausbildungsbedarfsanalyse!$C$1=\"CAT B1\",'Part66 Matrix'!B84,IF(Ausbildungsbedarfsanalyse!$C$1=\"CAT C\",'Part66 Matrix'!B84,IF(Ausbildungsbedarfsanalyse!$C$1=\"CAT B2\",'Part66 Matrix'!B84,IF(Ausbildungsbedarfsanalyse!$C$1=\"CAT B1/2\",'Part66 Matrix'!B84,\"\"))))","v":"77"},"77-00",{"$f":"IF(Ausbildungsbedarfsanalyse!$C$1=\"CAT B1\",'Part66 Matrix'!C84,IF(Ausbildungsbedarfsanalyse!$C$1=\"CAT C\",'Part66 Matrix'!C84,IF(Ausbildungsbedarfsanalyse!$C$1=\"CAT B2\",'Part66 Matrix'!C84,IF(Ausbildungsbedarfsanalyse!$C$1=\"CAT B1/2\",'Part66 Matrix'!C84,\"\"))))","v":"Engine Indicating Systems"},{"$f":"IF(Ausbildungsbedarfsanalyse!$C$1=\"CAT B1\",'Part66 Matrix'!D84,IF(Ausbildungsbedarfsanalyse!$C$1=\"CAT C\",'Part66 Matrix'!E84,IF(Ausbildungsbedarfsanalyse!$C$1=\"CAT B2\",'Part66 Matrix'!F84,IF(Ausbildungsbedarfsanalyse!$C$1=\"CAT B1/2\",'Part66 Matrix'!G84,\"\"))))","v":3}]
[{"$f":"IF(Ausbildungsbedarfsanalyse!$C$1=\"CAT B1\",'Part66 Matrix'!A85,IF(Ausbildungsbedarfsanalyse!$C$1=\"CAT C\",'Part66 Matrix'!A85,IF(Ausbildungsbedarfsanalyse!$C$1=\"CAT B2\",'Part66 Matrix'!A85,IF(Ausbildungsbedarfsanalyse!$C$1=\"CAT B1/2\",'Part66 Matrix'!A85,\"\"))))","v":79},{"$f":"IF(Ausbildungsbedarfsanalyse!$C$1=\"CAT B1\",'Part66 Matrix'!B85,IF(Ausbildungsbedarfsanalyse!$C$1=\"CAT C\",'Part66 Matrix'!B85,IF(Ausbildungsbedarfsanalyse!$C$1=\"CAT B2\",'Part66 Matrix'!B85,IF(Ausbildungsbedarfsanalyse!$C$1=\"CAT B1/2\",'Part66 Matrix'!B85,\"\"))))","v":"78"},"78-00",{"$f":"IF(Ausbildungsbedarfsanalyse!$C$1=\"CAT B1\",'Part66 Matrix'!C85,IF(Ausbildungsbedarfsanalyse!$C$1=\"CAT C\",'Part66 Matrix'!C85,IF(Ausbildungsbedarfsanalyse!$C$1=\"CAT B2\",'Part66 Matrix'!C85,IF(Ausbildungsbedarfsanalyse!$C$1=\"CAT B1/2\",'Part66 Matrix'!C85,\"\"))))","v":"Exhaust"},{"$f":"IF(Ausbildungsbedarfsanalyse!$C$1=\"CAT B1\",'Part66 Matrix'!D85,IF(Ausbildungsbedarfsanalyse!$C$1=\"CAT C\",'Part66 Matrix'!E85,IF(Ausbildungsbedarfsanalyse!$C$1=\"CAT B2\",'Part66 Matrix'!F85,IF(Ausbildungsbedarfsanalyse!$C$1=\"CAT B1/2\",'Part66 Matrix'!G85,\"\"))))","v":3}]
[{"$f":"IF(Ausbildungsbedarfsanalyse!$C$1=\"CAT B1\",'Part66 Matrix'!A86,IF(Ausbildungsbedarfsanalyse!$C$1=\"CAT C\",'Part66 Matrix'!A86,IF(Ausbildungsbedarfsanalyse!$C$1=\"CAT B2\",'Part66 Matrix'!A86,IF(Ausbildungsbedarfsanalyse!$C$1=\"CAT B1/2\",'Part66 Matrix'!A86,\"\"))))","v":80},{"$f":"IF(Ausbildungsbedarfsanalyse!$C$1=\"CAT B1\",'Part66 Matrix'!B86,IF(Ausbildungsbedarfsanalyse!$C$1=\"CAT C\",'Part66 Matrix'!B86,IF(Ausbildungsbedarfsanalyse!$C$1=\"CAT B2\",'Part66 Matrix'!B86,IF(Ausbildungsbedarfsanalyse!$C$1=\"CAT B1/2\",'Part66 Matrix'!B86,\"\"))))","v":"79"},"79-00",{"$f":"IF(Ausbildungsbedarfsanalyse!$C$1=\"CAT B1\",'Part66 Matrix'!C86,IF(Ausbildungsbedarfsanalyse!$C$1=\"CAT C\",'Part66 Matrix'!C86,IF(Ausbildungsbedarfsanalyse!$C$1=\"CAT B2\",'Part66 Matrix'!C86,IF(Ausbildungsbedarfsanalyse!$C$1=\"CAT B1/2\",'Part66 Matrix'!C86,\"\"))))","v":"Oil"},{"$f":"IF(Ausbildungsbedarfsanalyse!$C$1=\"CAT B1\",'Part66 Matrix'!D86,IF(Ausbildungsbedarfsanalyse!$C$1=\"CAT C\",'Part66 Matrix'!E86,IF(Ausbildungsbedarfsanalyse!$C$1=\"CAT B2\",'Part66 Matrix'!F86,IF(Ausbildungsbedarfsanalyse!$C$1=\"CAT B1/2\",'Part66 Matrix'!G86,\"\"))))","v":3}]
[{"$f":"IF(Ausbildungsbedarfsanalyse!$C$1=\"CAT B1\",'Part66 Matrix'!A87,IF(Ausbildungsbedarfsanalyse!$C$1=\"CAT C\",'Part66 Matrix'!A87,IF(Ausbildungsbedarfsanalyse!$C$1=\"CAT B2\",'Part66 Matrix'!A87,IF(Ausbildungsbedarfsanalyse!$C$1=\"CAT B1/2\",'Part66 Matrix'!A87,\"\"))))","v":81},{"$f":"IF(Ausbildungsbedarfsanalyse!$C$1=\"CAT B1\",'Part66 Matrix'!B87,IF(Ausbildungsbedarfsanalyse!$C$1=\"CAT C\",'Part66 Matrix'!B87,IF(Ausbildungsbedarfsanalyse!$C$1=\"CAT B2\",'Part66 Matrix'!B87,IF(Ausbildungsbedarfsanalyse!$C$1=\"CAT B1/2\",'Part66 Matrix'!B87,\"\"))))","v":0},"0-00",{"$f":"IF(Ausbildungsbedarfsanalyse!$C$1=\"CAT B1\",'Part66 Matrix'!C87,IF(Ausbildungsbedarfsanalyse!$C$1=\"CAT C\",'Part66 Matrix'!C87,IF(Ausbildungsbedarfsanalyse!$C$1=\"CAT B2\",'Part66 Matrix'!C87,IF(Ausbildungsbedarfsanalyse!$C$1=\"CAT B1/2\",'Part66 Matrix'!C87,\"\"))))","v":0},{"$f":"IF(Ausbildungsbedarfsanalyse!$C$1=\"CAT B1\",'Part66 Matrix'!D87,IF(Ausbildungsbedarfsanalyse!$C$1=\"CAT C\",'Part66 Matrix'!E87,IF(Ausbildungsbedarfsanalyse!$C$1=\"CAT B2\",'Part66 Matrix'!F87,IF(Ausbildungsbedarfsanalyse!$C$1=\"CAT B1/2\",'Part66 Matrix'!G87,\"\"))))","v":0}]
[{"$f":"IF(Ausbildungsbedarfsanalyse!$C$1=\"CAT B1\",'Part66 Matrix'!A88,IF(Ausbildungsbedarfsanalyse!$C$1=\"CAT C\",'Part66 Matrix'!A88,IF(Ausbildungsbedarfsanalyse!$C$1=\"CAT B2\",'Part66 Matrix'!A88,IF(Ausbildungsbedarfsanalyse!$C$1=\"CAT B1/2\",'Part66 Matrix'!A88,\"\"))))","v":82},{"$f":"IF(Ausbildungsbedarfsanalyse!$C$1=\"CAT B1\",'Part66 Matrix'!B88,IF(Ausbildungsbedarfsanalyse!$C$1=\"CAT C\",'Part66 Matrix'!B88,IF(Ausbildungsbedarfsanalyse!$C$1=\"CAT B2\",'Part66 Matrix'!B88,IF(Ausbildungsbedarfsanalyse!$C$1=\"CAT B1/2\",'Part66 Matrix'!B88,\"\"))))","v":0},"0-00",{"$f":"IF(Ausbildungsbedarfsanalyse!$C$1=\"CAT B1\",'Part66 Matrix'!C88,IF(Ausbildungsbedarfsanalyse!$C$1=\"CAT C\",'Part66 Matrix'!C88,IF(Ausbildungsbedarfsanalyse!$C$1=\"CAT B2\",'Part66 Matrix'!C88,IF(Ausbildungsbedarfsanalyse!$C$1=\"CAT B1/2\",'Part66 Matrix'!C88,\"\"))))","v":0},{"$f":"IF(Ausbildungsbedarfsanalyse!$C$1=\"CAT B1\",'Part66 Matrix'!D88,IF(Ausbildungsbedarfsanalyse!$C$1=\"CAT C\",'Part66 Matrix'!E88,IF(Ausbildungsbedarfsanalyse!$C$1=\"CAT B2\",'Part66 Matrix'!F88,IF(Ausbildungsbedarfsanalyse!$C$1=\"CAT B1/2\",'Part66 Matrix'!G88,\"\"))))","v":0}]
[{"$f":"IF(Ausbildungsbedarfsanalyse!$C$1=\"CAT B1\",'Part66 Matrix'!A89,IF(Ausbildungsbedarfsanalyse!$C$1=\"CAT C\",'Part66 Matrix'!A89,IF(Ausbildungsbedarfsanalyse!$C$1=\"CAT B2\",'Part66 Matrix'!A89,IF(Ausbildungsbedarfsanalyse!$C$1=\"CAT B1/2\",'Part66 Matrix'!A89,\"\"))))","v":83},{"$f":"IF(Ausbildungsbedarfsanalyse!$C$1=\"CAT B1\",'Part66 Matrix'!B89,IF(Ausbildungsbedarfsanalyse!$C$1=\"CAT C\",'Part66 Matrix'!B89,IF(Ausbildungsbedarfsanalyse!$C$1=\"CAT B2\",'Part66 Matrix'!B89,IF(Ausbildungsbedarfsanalyse!$C$1=\"CAT B1/2\",'Part66 Matrix'!B89,\"\"))))","v":0},"0-00",{"$f":"IF(Ausbildungsbedarfsanalyse!$C$1=\"CAT B1\",'Part66 Matrix'!C89,IF(Ausbildungsbedarfsanalyse!$C$1=\"CAT C\",'Part66 Matrix'!C89,IF(Ausbildungsbedarfsanalyse!$C$1=\"CAT B2\",'Part66 Matrix'!C89,IF(Ausbildungsbedarfsanalyse!$C$1=\"CAT B1/2\",'Part66 Matrix'!C89,\"\"))))","v":0},{"$f":"IF(Ausbildungsbedarfsanalyse!$C$1=\"CAT B1\",'Part66 Matrix'!D89,IF(Ausbildungsbedarfsanalyse!$C$1=\"CAT C\",'Part66 Matrix'!E89,IF(Ausbildungsbedarfsanalyse!$C$1=\"CAT B2\",'Part66 Matrix'!F89,IF(Ausbildungsbedarfsanalyse!$C$1=\"CAT B1/2\",'Part66 Matrix'!G89,\"\"))))","v":0}]
[{"$f":"IF(Ausbildungsbedarfsanalyse!$C$1=\"CAT B1\",'Part66 Matrix'!A90,IF(Ausbildungsbedarfsanalyse!$C$1=\"CAT C\",'Part66 Matrix'!A90,IF(Ausbildungsbedarfsanalyse!$C$1=\"CAT B2\",'Part66 Matrix'!A90,IF(Ausbildungsbedarfsanalyse!$C$1=\"CAT B1/2\",'Part66 Matrix'!A90,\"\"))))","v":84},{"$f":"IF(Ausbildungsbedarfsanalyse!$C$1=\"CAT B1\",'Part66 Matrix'!B90,IF(Ausbildungsbedarfsanalyse!$C$1=\"CAT C\",'Part66 Matrix'!B90,IF(Ausbildungsbedarfsanalyse!$C$1=\"CAT B2\",'Part66 Matrix'!B90,IF(Ausbildungsbedarfsanalyse!$C$1=\"CAT B1/2\",'Part66 Matrix'!B90,\"\"))))","v":"80"},"80-00",{"$f":"IF(Ausbildungsbedarfsanalyse!$C$1=\"CAT B1\",'Part66 Matrix'!C90,IF(Ausbildungsbedarfsanalyse!$C$1=\"CAT C\",'Part66 Matrix'!C90,IF(Ausbildungsbedarfsanalyse!$C$1=\"CAT B2\",'Part66 Matrix'!C90,IF(Ausbildungsbedarfsanalyse!$C$1=\"CAT B1/2\",'Part66 Matrix'!C90,\"\"))))","v":"Starting"},{"$f":"IF(Ausbildungsbedarfsanalyse!$C$1=\"CAT B1\",'Part66 Matrix'!D90,IF(Ausbildungsbedarfsanalyse!$C$1=\"CAT C\",'Part66 Matrix'!E90,IF(Ausbildungsbedarfsanalyse!$C$1=\"CAT B2\",'Part66 Matrix'!F90,IF(Ausbildungsbedarfsanalyse!$C$1=\"CAT B1/2\",'Part66 Matrix'!G90,\"\"))))","v":3}]
[{"$f":"IF(Ausbildungsbedarfsanalyse!$C$1=\"CAT B1\",'Part66 Matrix'!A91,IF(Ausbildungsbedarfsanalyse!$C$1=\"CAT C\",'Part66 Matrix'!A91,IF(Ausbildungsbedarfsanalyse!$C$1=\"CAT B2\",'Part66 Matrix'!A91,IF(Ausbildungsbedarfsanalyse!$C$1=\"CAT B1/2\",'Part66 Matrix'!A91,\"\"))))","v":85},{"$f":"IF(Ausbildungsbedarfsanalyse!$C$1=\"CAT B1\",'Part66 Matrix'!B91,IF(Ausbildungsbedarfsanalyse!$C$1=\"CAT C\",'Part66 Matrix'!B91,IF(Ausbildungsbedarfsanalyse!$C$1=\"CAT B2\",'Part66 Matrix'!B91,IF(Ausbildungsbedarfsanalyse!$C$1=\"CAT B1/2\",'Part66 Matrix'!B91,\"\"))))","v":0},"0-00",{"$f":"IF(Ausbildungsbedarfsanalyse!$C$1=\"CAT B1\",'Part66 Matrix'!C91,IF(Ausbildungsbedarfsanalyse!$C$1=\"CAT C\",'Part66 Matrix'!C91,IF(Ausbildungsbedarfsanalyse!$C$1=\"CAT B2\",'Part66 Matrix'!C91,IF(Ausbildungsbedarfsanalyse!$C$1=\"CAT B1/2\",'Part66 Matrix'!C91,\"\"))))","v":0},{"$f":"IF(Ausbildungsbedarfsanalyse!$C$1=\"CAT B1\",'Part66 Matrix'!D91,IF(Ausbildungsbedarfsanalyse!$C$1=\"CAT C\",'Part66 Matrix'!E91,IF(Ausbildungsbedarfsanalyse!$C$1=\"CAT B2\",'Part66 Matrix'!F91,IF(Ausbildungsbedarfsanalyse!$C$1=\"CAT B1/2\",'Part66 Matrix'!G91,\"\"))))","v":0}]
[{"$f":"IF(Ausbildungsbedarfsanalyse!$C$1=\"CAT B1\",'Part66 Matrix'!A92,IF(Ausbildungsbedarfsanalyse!$C$1=\"CAT C\",'Part66 Matrix'!A92,IF(Ausbildungsbedarfsanalyse!$C$1=\"CAT B2\",'Part66 Matrix'!A92,IF(Ausbildungsbedarfsanalyse!$C$1=\"CAT B1/2\",'Part66 Matrix'!A92,\"\"))))","v":86},{"$f":"IF(Ausbildungsbedarfsanalyse!$C$1=\"CAT B1\",'Part66 Matrix'!B92,IF(Ausbildungsbedarfsanalyse!$C$1=\"CAT C\",'Part66 Matrix'!B92,IF(Ausbildungsbedarfsanalyse!$C$1=\"CAT B2\",'Part66 Matrix'!B92,IF(Ausbildungsbedarfsanalyse!$C$1=\"CAT B1/2\",'Part66 Matrix'!B92,\"\"))))","v":"82"},"82-00",{"$f":"IF(Ausbildungsbedarfsanalyse!$C$1=\"CAT B1\",'Part66 Matrix'!C92,IF(Ausbildungsbedarfsanalyse!$C$1=\"CAT C\",'Part66 Matrix'!C92,IF(Ausbildungsbedarfsanalyse!$C$1=\"CAT B2\",'Part66 Matrix'!C92,IF(Ausbildungsbedarfsanalyse!$C$1=\"CAT B1/2\",'Part66 Matrix'!C92,\"\"))))","v":"Water Injections"},{"$f":"IF(Ausbildungsbedarfsanalyse!$C$1=\"CAT B1\",'Part66 Matrix'!D92,IF(Ausbildungsbedarfsanalyse!$C$1=\"CAT C\",'Part66 Matrix'!E92,IF(Ausbildungsbedarfsanalyse!$C$1=\"CAT B2\",'Part66 Matrix'!F92,IF(Ausbildungsbedarfsanalyse!$C$1=\"CAT B1/2\",'Part66 Matrix'!G92,\"\"))))","v":3}]
[{"$f":"IF(Ausbildungsbedarfsanalyse!$C$1=\"CAT B1\",'Part66 Matrix'!A93,IF(Ausbildungsbedarfsanalyse!$C$1=\"CAT C\",'Part66 Matrix'!A93,IF(Ausbildungsbedarfsanalyse!$C$1=\"CAT B2\",'Part66 Matrix'!A93,IF(Ausbildungsbedarfsanalyse!$C$1=\"CAT B1/2\",'Part66 Matrix'!A93,\"\"))))","v":87},{"$f":"IF(Ausbildungsbedarfsanalyse!$C$1=\"CAT B1\",'Part66 Matrix'!B93,IF(Ausbildungsbedarfsanalyse!$C$1=\"CAT C\",'Part66 Matrix'!B93,IF(Ausbildungsbedarfsanalyse!$C$1=\"CAT B2\",'Part66 Matrix'!B93,IF(Ausbildungsbedarfsanalyse!$C$1=\"CAT B1/2\",'Part66 Matrix'!B93,\"\"))))","v":83},"83-00",{"$f":"IF(Ausbildungsbedarfsanalyse!$C$1=\"CAT B1\",'Part66 Matrix'!C93,IF(Ausbildungsbedarfsanalyse!$C$1=\"CAT C\",'Part66 Matrix'!C93,IF(Ausbildungsbedarfsanalyse!$C$1=\"CAT B2\",'Part66 Matrix'!C93,IF(Ausbildungsbedarfsanalyse!$C$1=\"CAT B1/2\",'Part66 Matrix'!C93,\"\"))))","v":"Accessory Gear Boxes"},{"$f":"IF(Ausbildungsbedarfsanalyse!$C$1=\"CAT B1\",'Part66 Matrix'!D93,IF(Ausbildungsbedarfsanalyse!$C$1=\"CAT C\",'Part66 Matrix'!E93,IF(Ausbildungsbedarfsanalyse!$C$1=\"CAT B2\",'Part66 Matrix'!F93,IF(Ausbildungsbedarfsanalyse!$C$1=\"CAT B1/2\",'Part66 Matrix'!G93,\"\"))))","v":3}]
[{"$f":"IF(Ausbildungsbedarfsanalyse!$C$1=\"CAT B1\",'Part66 Matrix'!A94,IF(Ausbildungsbedarfsanalyse!$C$1=\"CAT C\",'Part66 Matrix'!A94,IF(Ausbildungsbedarfsanalyse!$C$1=\"CAT B2\",'Part66 Matrix'!A94,IF(Ausbildungsbedarfsanalyse!$C$1=\"CAT B1/2\",'Part66 Matrix'!A94,\"\"))))","v":88},{"$f":"IF(Ausbildungsbedarfsanalyse!$C$1=\"CAT B1\",'Part66 Matrix'!B94,IF(Ausbildungsbedarfsanalyse!$C$1=\"CAT C\",'Part66 Matrix'!B94,IF(Ausbildungsbedarfsanalyse!$C$1=\"CAT B2\",'Part66 Matrix'!B94,IF(Ausbildungsbedarfsanalyse!$C$1=\"CAT B1/2\",'Part66 Matrix'!B94,\"\"))))","v":84},"84-00",{"$f":"IF(Ausbildungsbedarfsanalyse!$C$1=\"CAT B1\",'Part66 Matrix'!C94,IF(Ausbildungsbedarfsanalyse!$C$1=\"CAT C\",'Part66 Matrix'!C94,IF(Ausbildungsbedarfsanalyse!$C$1=\"CAT B2\",'Part66 Matrix'!C94,IF(Ausbildungsbedarfsanalyse!$C$1=\"CAT B1/2\",'Part66 Matrix'!C94,\"\"))))","v":"Propulsion Augmentation"},{"$f":"IF(Ausbildungsbedarfsanalyse!$C$1=\"CAT B1\",'Part66 Matrix'!D94,IF(Ausbildungsbedarfsanalyse!$C$1=\"CAT C\",'Part66 Matrix'!E94,IF(Ausbildungsbedarfsanalyse!$C$1=\"CAT B2\",'Part66 Matrix'!F94,IF(Ausbildungsbedarfsanalyse!$C$1=\"CAT B1/2\",'Part66 Matrix'!G94,\"\"))))","v":3}]
[{"$f":"IF(Ausbildungsbedarfsanalyse!$C$1=\"CAT B1\",'Part66 Matrix'!A95,IF(Ausbildungsbedarfsanalyse!$C$1=\"CAT C\",'Part66 Matrix'!A95,IF(Ausbildungsbedarfsanalyse!$C$1=\"CAT B2\",'Part66 Matrix'!A95,IF(Ausbildungsbedarfsanalyse!$C$1=\"CAT B1/2\",'Part66 Matrix'!A95,\"\"))))","v":0},{"$f":"IF(Ausbildungsbedarfsanalyse!$C$1=\"CAT B1\",'Part66 Matrix'!B95,IF(Ausbildungsbedarfsanalyse!$C$1=\"CAT C\",'Part66 Matrix'!B95,IF(Ausbildungsbedarfsanalyse!$C$1=\"CAT B2\",'Part66 Matrix'!B95,IF(Ausbildungsbedarfsanalyse!$C$1=\"CAT B1/2\",'Part66 Matrix'!B95,\"\"))))","v":0},"0-00",{"$f":"IF(Ausbildungsbedarfsanalyse!$C$1=\"CAT B1\",'Part66 Matrix'!C95,IF(Ausbildungsbedarfsanalyse!$C$1=\"CAT C\",'Part66 Matrix'!C95,IF(Ausbildungsbedarfsanalyse!$C$1=\"CAT B2\",'Part66 Matrix'!C95,IF(Ausbildungsbedarfsanalyse!$C$1=\"CAT B1/2\",'Part66 Matrix'!C95,\"\"))))","v":0},{"$f":"IF(Ausbildungsbedarfsanalyse!$C$1=\"CAT B1\",'Part66 Matrix'!D95,IF(Ausbildungsbedarfsanalyse!$C$1=\"CAT C\",'Part66 Matrix'!E95,IF(Ausbildungsbedarfsanalyse!$C$1=\"CAT B2\",'Part66 Matrix'!F95,IF(Ausbildungsbedarfsanalyse!$C$1=\"CAT B1/2\",'Part66 Matrix'!G95,\"\"))))","v":0}]
[{"$f":"IF(Ausbildungsbedarfsanalyse!$C$1=\"CAT B1\",'Part66 Matrix'!A96,IF(Ausbildungsbedarfsanalyse!$C$1=\"CAT C\",'Part66 Matrix'!A96,IF(Ausbildungsbedarfsanalyse!$C$1=\"CAT B2\",'Part66 Matrix'!A96,IF(Ausbildungsbedarfsanalyse!$C$1=\"CAT B1/2\",'Part66 Matrix'!A96,\"\"))))","v":0},{"$f":"IF(Ausbildungsbedarfsanalyse!$C$1=\"CAT B1\",'Part66 Matrix'!B96,IF(Ausbildungsbedarfsanalyse!$C$1=\"CAT C\",'Part66 Matrix'!B96,IF(Ausbildungsbedarfsanalyse!$C$1=\"CAT B2\",'Part66 Matrix'!B96,IF(Ausbildungsbedarfsanalyse!$C$1=\"CAT B1/2\",'Part66 Matrix'!B96,\"\"))))","v":0},"0-00",{"$f":"IF(Ausbildungsbedarfsanalyse!$C$1=\"CAT B1\",'Part66 Matrix'!C96,IF(Ausbildungsbedarfsanalyse!$C$1=\"CAT C\",'Part66 Matrix'!C96,IF(Ausbildungsbedarfsanalyse!$C$1=\"CAT B2\",'Part66 Matrix'!C96,IF(Ausbildungsbedarfsanalyse!$C$1=\"CAT B1/2\",'Part66 Matrix'!C96,\"\"))))","v":0},{"$f":"IF(Ausbildungsbedarfsanalyse!$C$1=\"CAT B1\",'Part66 Matrix'!D96,IF(Ausbildungsbedarfsanalyse!$C$1=\"CAT C\",'Part66 Matrix'!E96,IF(Ausbildungsbedarfsanalyse!$C$1=\"CAT B2\",'Part66 Matrix'!F96,IF(Ausbildungsbedarfsanalyse!$C$1=\"CAT B1/2\",'Part66 Matrix'!G96,\"\"))))","v":0}]
[{"$f":"IF(Ausbildungsbedarfsanalyse!$C$1=\"CAT B1\",'Part66 Matrix'!A97,IF(Ausbildungsbedarfsanalyse!$C$1=\"CAT C\",'Part66 Matrix'!A97,IF(Ausbildungsbedarfsanalyse!$C$1=\"CAT B2\",'Part66 Matrix'!A97,IF(Ausbildungsbedarfsanalyse!$C$1=\"CAT B1/2\",'Part66 Matrix'!A97,\"\"))))","v":0},{"$f":"IF(Ausbildungsbedarfsanalyse!$C$1=\"CAT B1\",'Part66 Matrix'!B97,IF(Ausbildungsbedarfsanalyse!$C$1=\"CAT C\",'Part66 Matrix'!B97,IF(Ausbildungsbedarfsanalyse!$C$1=\"CAT B2\",'Part66 Matrix'!B97,IF(Ausbildungsbedarfsanalyse!$C$1=\"CAT B1/2\",'Part66 Matrix'!B97,\"\"))))","v":0},"0-00",{"$f":"IF(Ausbildungsbedarfsanalyse!$C$1=\"CAT B1\",'Part66 Matrix'!C97,IF(Ausbildungsbedarfsanalyse!$C$1=\"CAT C\",'Part66 Matrix'!C97,IF(Ausbildungsbedarfsanalyse!$C$1=\"CAT B2\",'Part66 Matrix'!C97,IF(Ausbildungsbedarfsanalyse!$C$1=\"CAT B1/2\",'Part66 Matrix'!C97,\"\"))))","v":0},{"$f":"IF(Ausbildungsbedarfsanalyse!$C$1=\"CAT B1\",'Part66 Matrix'!D97,IF(Ausbildungsbedarfsanalyse!$C$1=\"CAT C\",'Part66 Matrix'!E97,IF(Ausbildungsbedarfsanalyse!$C$1=\"CAT B2\",'Part66 Matrix'!F97,IF(Ausbildungsbedarfsanalyse!$C$1=\"CAT B1/2\",'Part66 Matrix'!G97,\"\"))))","v":0}]
[{"$f":"IF(Ausbildungsbedarfsanalyse!$C$1=\"CAT B1\",'Part66 Matrix'!A98,IF(Ausbildungsbedarfsanalyse!$C$1=\"CAT C\",'Part66 Matrix'!A98,IF(Ausbildungsbedarfsanalyse!$C$1=\"CAT B2\",'Part66 Matrix'!A98,IF(Ausbildungsbedarfsanalyse!$C$1=\"CAT B1/2\",'Part66 Matrix'!A98,\"\"))))","v":0},{"$f":"IF(Ausbildungsbedarfsanalyse!$C$1=\"CAT B1\",'Part66 Matrix'!B98,IF(Ausbildungsbedarfsanalyse!$C$1=\"CAT C\",'Part66 Matrix'!B98,IF(Ausbildungsbedarfsanalyse!$C$1=\"CAT B2\",'Part66 Matrix'!B98,IF(Ausbildungsbedarfsanalyse!$C$1=\"CAT B1/2\",'Part66 Matrix'!B98,\"\"))))","v":0},"0-00",{"$f":"IF(Ausbildungsbedarfsanalyse!$C$1=\"CAT B1\",'Part66 Matrix'!C98,IF(Ausbildungsbedarfsanalyse!$C$1=\"CAT C\",'Part66 Matrix'!C98,IF(Ausbildungsbedarfsanalyse!$C$1=\"CAT B2\",'Part66 Matrix'!C98,IF(Ausbildungsbedarfsanalyse!$C$1=\"CAT B1/2\",'Part66 Matrix'!C98,\"\"))))","v":0},{"$f":"IF(Ausbildungsbedarfsanalyse!$C$1=\"CAT B1\",'Part66 Matrix'!D98,IF(Ausbildungsbedarfsanalyse!$C$1=\"CAT C\",'Part66 Matrix'!E98,IF(Ausbildungsbedarfsanalyse!$C$1=\"CAT B2\",'Part66 Matrix'!F98,IF(Ausbildungsbedarfsanalyse!$C$1=\"CAT B1/2\",'Part66 Matrix'!G98,\"\"))))","v":0}]
[{"$f":"IF(Ausbildungsbedarfsanalyse!$C$1=\"CAT B1\",'Part66 Matrix'!A99,IF(Ausbildungsbedarfsanalyse!$C$1=\"CAT C\",'Part66 Matrix'!A99,IF(Ausbildungsbedarfsanalyse!$C$1=\"CAT B2\",'Part66 Matrix'!A99,IF(Ausbildungsbedarfsanalyse!$C$1=\"CAT B1/2\",'Part66 Matrix'!A99,\"\"))))","v":0},{"$f":"IF(Ausbildungsbedarfsanalyse!$C$1=\"CAT B1\",'Part66 Matrix'!B99,IF(Ausbildungsbedarfsanalyse!$C$1=\"CAT C\",'Part66 Matrix'!B99,IF(Ausbildungsbedarfsanalyse!$C$1=\"CAT B2\",'Part66 Matrix'!B99,IF(Ausbildungsbedarfsanalyse!$C$1=\"CAT B1/2\",'Part66 Matrix'!B99,\"\"))))","v":0},"0-00",{"$f":"IF(Ausbildungsbedarfsanalyse!$C$1=\"CAT B1\",'Part66 Matrix'!C99,IF(Ausbildungsbedarfsanalyse!$C$1=\"CAT C\",'Part66 Matrix'!C99,IF(Ausbildungsbedarfsanalyse!$C$1=\"CAT B2\",'Part66 Matrix'!C99,IF(Ausbildungsbedarfsanalyse!$C$1=\"CAT B1/2\",'Part66 Matrix'!C99,\"\"))))","v":0},{"$f":"IF(Ausbildungsbedarfsanalyse!$C$1=\"CAT B1\",'Part66 Matrix'!D99,IF(Ausbildungsbedarfsanalyse!$C$1=\"CAT C\",'Part66 Matrix'!E99,IF(Ausbildungsbedarfsanalyse!$C$1=\"CAT B2\",'Part66 Matrix'!F99,IF(Ausbildungsbedarfsanalyse!$C$1=\"CAT B1/2\",'Part66 Matrix'!G99,\"\"))))","v":0}]
[{"$f":"IF(Ausbildungsbedarfsanalyse!$C$1=\"CAT B1\",'Part66 Matrix'!A100,IF(Ausbildungsbedarfsanalyse!$C$1=\"CAT C\",'Part66 Matrix'!A100,IF(Ausbildungsbedarfsanalyse!$C$1=\"CAT B2\",'Part66 Matrix'!A100,IF(Ausbildungsbedarfsanalyse!$C$1=\"CAT B1/2\",'Part66 Matrix'!A100,\"\"))))","v":0},{"$f":"IF(Ausbildungsbedarfsanalyse!$C$1=\"CAT B1\",'Part66 Matrix'!B100,IF(Ausbildungsbedarfsanalyse!$C$1=\"CAT C\",'Part66 Matrix'!B100,IF(Ausbildungsbedarfsanalyse!$C$1=\"CAT B2\",'Part66 Matrix'!B100,IF(Ausbildungsbedarfsanalyse!$C$1=\"CAT B1/2\",'Part66 Matrix'!B100,\"\"))))","v":0},"0-00",{"$f":"IF(Ausbildungsbedarfsanalyse!$C$1=\"CAT B1\",'Part66 Matrix'!C100,IF(Ausbildungsbedarfsanalyse!$C$1=\"CAT C\",'Part66 Matrix'!C100,IF(Ausbildungsbedarfsanalyse!$C$1=\"CAT B2\",'Part66 Matrix'!C100,IF(Ausbildungsbedarfsanalyse!$C$1=\"CAT B1/2\",'Part66 Matrix'!C100,\"\"))))","v":0},{"$f":"IF(Ausbildungsbedarfsanalyse!$C$1=\"CAT B1\",'Part66 Matrix'!D100,IF(Ausbildungsbedarfsanalyse!$C$1=\"CAT C\",'Part66 Matrix'!E100,IF(Ausbildungsbedarfsanalyse!$C$1=\"CAT B2\",'Part66 Matrix'!F100,IF(Ausbildungsbedarfsanalyse!$C$1=\"CAT B1/2\",'Part66 Matrix'!G100,\"\"))))","v":0}]
[{"$f":"IF(Ausbildungsbedarfsanalyse!$C$1=\"CAT B1\",'Part66 Matrix'!A101,IF(Ausbildungsbedarfsanalyse!$C$1=\"CAT C\",'Part66 Matrix'!A101,IF(Ausbildungsbedarfsanalyse!$C$1=\"CAT B2\",'Part66 Matrix'!A101,IF(Ausbildungsbedarfsanalyse!$C$1=\"CAT B1/2\",'Part66 Matrix'!A101,\"\"))))","v":0},{"$f":"IF(Ausbildungsbedarfsanalyse!$C$1=\"CAT B1\",'Part66 Matrix'!B101,IF(Ausbildungsbedarfsanalyse!$C$1=\"CAT C\",'Part66 Matrix'!B101,IF(Ausbildungsbedarfsanalyse!$C$1=\"CAT B2\",'Part66 Matrix'!B101,IF(Ausbildungsbedarfsanalyse!$C$1=\"CAT B1/2\",'Part66 Matrix'!B101,\"\"))))","v":0},"0-00",{"$f":"IF(Ausbildungsbedarfsanalyse!$C$1=\"CAT B1\",'Part66 Matrix'!C101,IF(Ausbildungsbedarfsanalyse!$C$1=\"CAT C\",'Part66 Matrix'!C101,IF(Ausbildungsbedarfsanalyse!$C$1=\"CAT B2\",'Part66 Matrix'!C101,IF(Ausbildungsbedarfsanalyse!$C$1=\"CAT B1/2\",'Part66 Matrix'!C101,\"\"))))","v":0},{"$f":"IF(Ausbildungsbedarfsanalyse!$C$1=\"CAT B1\",'Part66 Matrix'!D101,IF(Ausbildungsbedarfsanalyse!$C$1=\"CAT C\",'Part66 Matrix'!E101,IF(Ausbildungsbedarfsanalyse!$C$1=\"CAT B2\",'Part66 Matrix'!F101,IF(Ausbildungsbedarfsanalyse!$C$1=\"CAT B1/2\",'Part66 Matrix'!G101,\"\"))))","v":0}]
[{"$f":"IF(Ausbildungsbedarfsanalyse!$C$1=\"CAT B1\",'Part66 Matrix'!A102,IF(Ausbildungsbedarfsanalyse!$C$1=\"CAT C\",'Part66 Matrix'!A102,IF(Ausbildungsbedarfsanalyse!$C$1=\"CAT B2\",'Part66 Matrix'!A102,IF(Ausbildungsbedarfsanalyse!$C$1=\"CAT B1/2\",'Part66 Matrix'!A102,\"\"))))","v":0},{"$f":"IF(Ausbildungsbedarfsanalyse!$C$1=\"CAT B1\",'Part66 Matrix'!B102,IF(Ausbildungsbedarfsanalyse!$C$1=\"CAT C\",'Part66 Matrix'!B102,IF(Ausbildungsbedarfsanalyse!$C$1=\"CAT B2\",'Part66 Matrix'!B102,IF(Ausbildungsbedarfsanalyse!$C$1=\"CAT B1/2\",'Part66 Matrix'!B102,\"\"))))","v":0},"0-00",{"$f":"IF(Ausbildungsbedarfsanalyse!$C$1=\"CAT B1\",'Part66 Matrix'!C102,IF(Ausbildungsbedarfsanalyse!$C$1=\"CAT C\",'Part66 Matrix'!C102,IF(Ausbildungsbedarfsanalyse!$C$1=\"CAT B2\",'Part66 Matrix'!C102,IF(Ausbildungsbedarfsanalyse!$C$1=\"CAT B1/2\",'Part66 Matrix'!C102,\"\"))))","v":0},{"$f":"IF(Ausbildungsbedarfsanalyse!$C$1=\"CAT B1\",'Part66 Matrix'!D102,IF(Ausbildungsbedarfsanalyse!$C$1=\"CAT C\",'Part66 Matrix'!E102,IF(Ausbildungsbedarfsanalyse!$C$1=\"CAT B2\",'Part66 Matrix'!F102,IF(Ausbildungsbedarfsanalyse!$C$1=\"CAT B1/2\",'Part66 Matrix'!G102,\"\"))))","v":0}]
[{"$f":"IF(Ausbildungsbedarfsanalyse!$C$1=\"CAT B1\",'Part66 Matrix'!A103,IF(Ausbildungsbedarfsanalyse!$C$1=\"CAT C\",'Part66 Matrix'!A103,IF(Ausbildungsbedarfsanalyse!$C$1=\"CAT B2\",'Part66 Matrix'!A103,IF(Ausbildungsbedarfsanalyse!$C$1=\"CAT B1/2\",'Part66 Matrix'!A103,\"\"))))","v":0},{"$f":"IF(Ausbildungsbedarfsanalyse!$C$1=\"CAT B1\",'Part66 Matrix'!B103,IF(Ausbildungsbedarfsanalyse!$C$1=\"CAT C\",'Part66 Matrix'!B103,IF(Ausbildungsbedarfsanalyse!$C$1=\"CAT B2\",'Part66 Matrix'!B103,IF(Ausbildungsbedarfsanalyse!$C$1=\"CAT B1/2\",'Part66 Matrix'!B103,\"\"))))","v":0},"0-00",{"$f":"IF(Ausbildungsbedarfsanalyse!$C$1=\"CAT B1\",'Part66 Matrix'!C103,IF(Ausbildungsbedarfsanalyse!$C$1=\"CAT C\",'Part66 Matrix'!C103,IF(Ausbildungsbedarfsanalyse!$C$1=\"CAT B2\",'Part66 Matrix'!C103,IF(Ausbildungsbedarfsanalyse!$C$1=\"CAT B1/2\",'Part66 Matrix'!C103,\"\"))))","v":0},{"$f":"IF(Ausbildungsbedarfsanalyse!$C$1=\"CAT B1\",'Part66 Matrix'!D103,IF(Ausbildungsbedarfsanalyse!$C$1=\"CAT C\",'Part66 Matrix'!E103,IF(Ausbildungsbedarfsanalyse!$C$1=\"CAT B2\",'Part66 Matrix'!F103,IF(Ausbildungsbedarfsanalyse!$C$1=\"CAT B1/2\",'Part66 Matrix'!G103,\"\"))))","v":0}]
[{"$f":"IF(Ausbildungsbedarfsanalyse!$C$1=\"CAT B1\",'Part66 Matrix'!A104,IF(Ausbildungsbedarfsanalyse!$C$1=\"CAT C\",'Part66 Matrix'!A104,IF(Ausbildungsbedarfsanalyse!$C$1=\"CAT B2\",'Part66 Matrix'!A104,IF(Ausbildungsbedarfsanalyse!$C$1=\"CAT B1/2\",'Part66 Matrix'!A104,\"\"))))","v":0},{"$f":"IF(Ausbildungsbedarfsanalyse!$C$1=\"CAT B1\",'Part66 Matrix'!B104,IF(Ausbildungsbedarfsanalyse!$C$1=\"CAT C\",'Part66 Matrix'!B104,IF(Ausbildungsbedarfsanalyse!$C$1=\"CAT B2\",'Part66 Matrix'!B104,IF(Ausbildungsbedarfsanalyse!$C$1=\"CAT B1/2\",'Part66 Matrix'!B104,\"\"))))","v":0},"0-00",{"$f":"IF(Ausbildungsbedarfsanalyse!$C$1=\"CAT B1\",'Part66 Matrix'!C104,IF(Ausbildungsbedarfsanalyse!$C$1=\"CAT C\",'Part66 Matrix'!C104,IF(Ausbildungsbedarfsanalyse!$C$1=\"CAT B2\",'Part66 Matrix'!C104,IF(Ausbildungsbedarfsanalyse!$C$1=\"CAT B1/2\",'Part66 Matrix'!C104,\"\"))))","v":0},{"$f":"IF(Ausbildungsbedarfsanalyse!$C$1=\"CAT B1\",'Part66 Matrix'!D104,IF(Ausbildungsbedarfsanalyse!$C$1=\"CAT C\",'Part66 Matrix'!E104,IF(Ausbildungsbedarfsanalyse!$C$1=\"CAT B2\",'Part66 Matrix'!F104,IF(Ausbildungsbedarfsanalyse!$C$1=\"CAT B1/2\",'Part66 Matrix'!G104,\"\"))))","v":0}]
[{"$f":"IF(Ausbildungsbedarfsanalyse!$C$1=\"CAT B1\",'Part66 Matrix'!A105,IF(Ausbildungsbedarfsanalyse!$C$1=\"CAT C\",'Part66 Matrix'!A105,IF(Ausbildungsbedarfsanalyse!$C$1=\"CAT B2\",'Part66 Matrix'!A105,IF(Ausbildungsbedarfsanalyse!$C$1=\"CAT B1/2\",'Part66 Matrix'!A105,\"\"))))","v":0},{"$f":"IF(Ausbildungsbedarfsanalyse!$C$1=\"CAT B1\",'Part66 Matrix'!B105,IF(Ausbildungsbedarfsanalyse!$C$1=\"CAT C\",'Part66 Matrix'!B105,IF(Ausbildungsbedarfsanalyse!$C$1=\"CAT B2\",'Part66 Matrix'!B105,IF(Ausbildungsbedarfsanalyse!$C$1=\"CAT B1/2\",'Part66 Matrix'!B105,\"\"))))","v":0},"0-00",{"$f":"IF(Ausbildungsbedarfsanalyse!$C$1=\"CAT B1\",'Part66 Matrix'!C105,IF(Ausbildungsbedarfsanalyse!$C$1=\"CAT C\",'Part66 Matrix'!C105,IF(Ausbildungsbedarfsanalyse!$C$1=\"CAT B2\",'Part66 Matrix'!C105,IF(Ausbildungsbedarfsanalyse!$C$1=\"CAT B1/2\",'Part66 Matrix'!C105,\"\"))))","v":0},{"$f":"IF(Ausbildungsbedarfsanalyse!$C$1=\"CAT B1\",'Part66 Matrix'!D105,IF(Ausbildungsbedarfsanalyse!$C$1=\"CAT C\",'Part66 Matrix'!E105,IF(Ausbildungsbedarfsanalyse!$C$1=\"CAT B2\",'Part66 Matrix'!F105,IF(Ausbildungsbedarfsanalyse!$C$1=\"CAT B1/2\",'Part66 Matrix'!G105,\"\"))))","v":0}]

{"sheet":"Form 3","index":2,"n_rows":100,"n_cols":9,"rows_kept":100,"cut":false,"hidden":false,"merged":[[96,1,96,2],[96,3,96,8],[95,4,95,6],[95,7,95,8],[14,2,14,3],[15,2,15,3],[6,1,6,2],[7,1,7,2],[8,1,8,2],[9,1,9,2],[10,1,10,2],[12,2,12,3],[13,2,13,3],[20,2,20,3],[21,2,21,3],[22,2,22,3],[23,2,23,3],[16,2,16,3],[17,2,17,3],[18,2,18,3],[19,2,19,3],[28,2,28,3],[29,2,29,3],[30,2,30,3],[40,2,40,3],[41,2,41,3],[42,2,42,3],[43,2,43,3],[52,2,52,3],[31,2,31,3],[24,2,24,3],[25,2,25,3],[26,2,26,3],[27,2,27,3],[36,2,36,3],[37,2,37,3],[38,2,38,3],[39,2,39,3],[32,2,32,3],[33,2,33,3],[34,2,34,3],[35,2,35,3],[48,2,48,3],[49,2,49,3],[50,2,50,3],[51,2,51,3],[60,2,60,3],[61,2,61,3],[44,2,44,3],[45,2,45,3],[46,2,46,3],[47,2,47,3],[56,2,56,3],[57,2,57,3],[58,2,58,3],[59,2,59,3],[68,2,68,3],[69,2,69,3],[70,2,70,3],[53,2,53,3],[54,2,54,3],[55,2,55,3],[98,1,98,2],[99,1,99,2],[97,3,97,8],[98,3,98,8],[99,3,99,8],[14,8,94,8],[95,1,95,2],[97,1,97,2],[93,2,93,3],[94,2,94,3],[91,2,91,3],[88,2,88,3],[89,2,89,3],[90,2,90,3],[82,2,82,3],[83,2,83,3],[71,2,71,3],[64,2,64,3],[65,2,65,3],[66,2,66,3],[67,2,67,3],[76,2,76,3],[77,2,77,3],[78,2,78,3],[0,1,1,8],[5,1,5,2],[6,3,6,8],[7,3,7,8],[3,3,4,8],[8,3,8,8],[5,3,5,8],[92,2,92,3],[84,2,84,3],[85,2,85,3],[86,2,86,3],[87,2,87,3],[80,2,80,3],[81,2,81,3],[9,3,9,8],[10,3,10,8],[11,3,11,8],[79,2,79,3],[72,2,72,3],[73,2,73,3],[74,2,74,3],[75,2,75,3],[62,2,62,3],[63,2,63,3]]}
[null,"Referat T2\nSachgebiet T22 - Technisches Personal"]
[]
[]
[null,null,null,"LBA Form 147.003 Musterlehrgänge"]
[]
[]
[null,"Company Name"]
[null,"Approval Number"]
[null,"Course Titel and Revision No."]
[null,"MTOE Amendment No."]
[null,"Date of Application"]
[null,"Select","CAT B1"]
["Nr","Chapter","ATA Name",null,"LEVEL","MINIMUM DURATION PER ATA CHAPTER in theory","Multiple choice questions per ATA Chapter","COMMENTS","Training Manager Validation"]
["fortlaufend","ATA Chapter","ATA Chapter Name",null,"1\n2\n3","\"tution hours\" in minutes per ATA Chapter (min. 5 minutes)","number of questions per Chapter","important Keypoints, special teaching methode if applicable, deviation to Part66"]
[1,{"$f":"Ausbildungsbedarfsanalyse!B6","v":"05"},{"$f":"Ausbildungsbedarfsanalyse!D6","v":"Time limits/Maintenance checks"},null,{"$f":"Ausbildungsbedarfsanalyse!E6","v":1},{"$f":"Ausbildungsbedarfsanalyse!AC6","v":0},{"$f":"Ausbildungsbedarfsanalyse!AD6","v":0},{"$f":"Ausbildungsbedarfsanalyse!AG6","v":0}]
[2,{"$f":"Ausbildungsbedarfsanalyse!B7","v":"06A"},{"$f":"Ausbildungsbedarfsanalyse!D7","v":"Dimensions/Areas (MTOM, etc.)"},null,{"$f":"Ausbildungsbedarfsanalyse!E7","v":1},{"$f":"Ausbildungsbedarfsanalyse!AC7","v":0},{"$f":"Ausbildungsbedarfsanalyse!AD7","v":0},{"$f":"Ausbildungsbedarfsanalyse!AG7","v":0}]
[3,{"$f":"Ausbildungsbedarfsanalyse!B8","v":"06B"},{"$f":"Ausbildungsbedarfsanalyse!D8","v":"Zonal and Station Identification Systems"},null,{"$f":"Ausbildungsbedarfsanalyse!E8","v":1},{"$f":"Ausbildungsbedarfsanalyse!AC8","v":0},{"$f":"Ausbildungsbedarfsanalyse!AD8","v":0},{"$f":"Ausbildungsbedarfsanalyse!AG8","v":0}]
[4,{"$f":"Ausbildungsbedarfsanalyse!B9","v":"07"},{"$f":"Ausbildungsbedarfsanalyse!D9","v":"Lifting and Shoring"},null,{"$f":"Ausbildungsbedarfsanalyse!E9","v":1},{"$f":"Ausbildungsbedarfsanalyse!AC9","v":0},{"$f":"Ausbildungsbedarfsanalyse!AD9","v":0},{"$f":"Ausbildungsbedarfsanalyse!AG9","v":0}]
[5,{"$f":"Ausbildungsbedarfsanalyse!B10","v":"08"},{"$f":"Ausbildungsbedarfsanalyse!D10","v":"Levelling and weighing"},null,{"$f":"Ausbildungsbedarfsanalyse!E10","v":1},{"$f":"Ausbildungsbedarfsanalyse!AC10","v":0},{"$f":"Ausbildungsbedarfsanalyse!AD10","v":0},{"$f":"Ausbildungsbedarfsanalyse!AG10","v":0}]
[6,{"$f":"Ausbildungsbedarfsanalyse!B11","v":"09"},{"$f":"Ausbildungsbedarfsanalyse!D11","v":"Towing and taxiing"},null,{"$f":"Ausbildungsbedarfsanalyse!E11","v":1},{"$f":"Ausbildungsbedarfsanalyse!AC11","v":0},{"$f":"Ausbildungsbedarfsanalyse!AD11","v":0},{"$f":"Ausbildungsbedarfsanalyse!AG11","v":0}]
[7,{"$f":"Ausbildungsbedarfsanalyse!B12","v":"10"},{"$f":"Ausbildungsbedarfsanalyse!D12","v":"Parking/Mooring, Storing and Return to Service"},null,{"$f":"Ausbildungsbedarfsanalyse!E12","v":1},{"$f":"Ausbildungsbedarfsanalyse!AC12","v":0},{"$f":"Ausbildungsbedarfsanalyse!AD12","v":0},{"$f":"Ausbildungsbedarfsanalyse!AG12","v":0}]
[8,{"$f":"Ausbildungsbedarfsanalyse!B13","v":"11"},{"$f":"Ausbildungsbedarfsanalyse!D13","v":"Placards and Markings"},null,{"$f":"Ausbildungsbedarfsanalyse!E13","v":1},{"$f":"Ausbildungsbedarfsanalyse!AC13","v":0},{"$f":"Ausbildungsbedarfsanalyse!AD13","v":0},{"$f":"Ausbildungsbedarfsanalyse!AG13","v":0}]
[9,{"$f":"Ausbildungsbedarfsanalyse!B14","v":"12"},{"$f":"Ausbildungsbedarfsanalyse!D14","v":"Servicing"},null,{"$f":"Ausbildungsbedarfsanalyse!E14","v":1},{"$f":"Ausbildungsbedarfsanalyse!AC14","v":0},{"$f":"Ausbildungsbedarfsanalyse!AD14","v":0},{"$f":"Ausbildungsbedarfsanalyse!AG14","v":0}]
[10,{"$f":"Ausbildungsbedarfsanalyse!B15","v":"20"},{"$f":"Ausbildungsbedarfsanalyse!D15","v":"Standard practices - Only type particular"},null,{"$f":"Ausbildungsbedarfsanalyse!E15","v":1},{"$f":"Ausbildungsbedarfsanalyse!AC15","v":0},{"$f":"Ausbildungsbedarfsanalyse!AD15","v":0},{"$f":"Ausbildungsbedarfsanalyse!AG15","v":0}]
[11,{"$f":"Ausbildungsbedarfsanalyse!B16","v":"21"},{"$f":"Ausbildungsbedarfsanalyse!D16","v":"Air Conditioning"},null,{"$f":"Ausbildungsbedarfsanalyse!E16","v":3},{"$f":"Ausbildungsbedarfsanalyse!AC16","v":0},{"$f":"Ausbildungsbedarfsanalyse!AD16","v":0},{"$f":"Ausbildungsbedarfsanalyse!AG16","v":0}]
[12,{"$f":"Ausbildungsbedarfsanalyse!B17","v":"21A"},{"$f":"Ausbildungsbedarfsanalyse!D17","v":"Air Supply"},null,{"$f":"Ausbildungsbedarfsanalyse!E17","v":3},{"$f":"Ausbildungsbedarfsanalyse!AC17","v":0},{"$f":"Ausbildungsbedarfsanalyse!AD17","v":0},{"$f":"Ausbildungsbedarfsanalyse!AG17","v":0}]
[13,{"$f":"Ausbildungsbedarfsanalyse!B18","v":"21B"},{"$f":"Ausbildungsbedarfsanalyse!D18","v":"Pressurisation"},null,{"$f":"Ausbildungsbedarfsanalyse!E18","v":3},{"$f":"Ausbildungsbedarfsanalyse!AC18","v":0},{"$f":"Ausbildungsbedarfsanalyse!AD18","v":0},{"$f":"Ausbildungsbedarfsanalyse!AG18","v":0}]
[14,{"$f":"Ausbildungsbedarfsanalyse!B19","v":"21C"},{"$f":"Ausbildungsbedarfsanalyse!D19","v":"Safety and Warning Devices"},null,{"$f":"Ausbildungsbedarfsanalyse!E19","v":3},{"$f":"Ausbildungsbedarfsanalyse!AC19","v":0},{"$f":"Ausbildungsbedarfsanalyse!AD19","v":0},{"$f":"Ausbildungsbedarfsanalyse!AG19","v":0}]
[15,{"$f":"Ausbildungsbedarfsanalyse!B20","v":"22"},{"$f":"Ausbildungsbedarfsanalyse!D20","v":"Autoflight"},null,{"$f":"Ausbildungsbedarfsanalyse!E20","v":2},{"$f":"Ausbildungsbedarfsanalyse!AC20","v":0},{"$f":"Ausbildungsbedarfsanalyse!AD20","v":0},{"$f":"Ausbildungsbedarfsanalyse!AG20","v":0}]
[16,{"$f":"Ausbildungsbedarfsanalyse!B21","v":"23"},{"$f":"Ausbildungsbedarfsanalyse!D21","v":"Communications"},null,{"$f":"Ausbildungsbedarfsanalyse!E21","v":2},{"$f":"Ausbildungsbedarfsanalyse!AC21","v":0},{"$f":"Ausbildungsbedarfsanalyse!AD21","v":0},{"$f":"Ausbildungsbedarfsanalyse!AG21","v":0}]
[17,{"$f":"Ausbildungsbedarfsanalyse!B22","v":"24"},{"$f":"Ausbildungsbedarfsanalyse!D22","v":"Electrical Power"},null,{"$f":"Ausbildungsbedarfsanalyse!E22","v":3},{"$f":"Ausbildungsbedarfsanalyse!AC22","v":0},{"$f":"Ausbildungsbedarfsanalyse!AD22","v":0},{"$f":"Ausbildungsbedarfsanalyse!AG22","v":0}]
[18,{"$f":"Ausbildungsbedarfsanalyse!B23","v":"25"},{"$f":"Ausbildungsbedarfsanalyse!D23","v":"Equipment and Furnishings"},null,{"$f":"Ausbildungsbedarfsanalyse!E23","v":3},{"$f":"Ausbildungsbedarfsanalyse!AC23","v":0},{"$f":"Ausbildungsbedarfsanalyse!AD23","v":0},{"$f":"Ausbildungsbedarfsanalyse!AG23","v":0}]
[19,{"$f":"Ausbildungsbedarfsanalyse!B24","v":"25A"},{"$f":"Ausbildungsbedarfsanalyse!D24","v":"Electronic Equipment including emergency equipment"},null,{"$f":"Ausbildungsbedarfsanalyse!E24","v":1},{"$f":"Ausbildungsbedarfsanalyse!AC24","v":0},{"$f":"Ausbildungsbedarfsanalyse!AD24","v":0},{"$f":"Ausbildungsbedarfsanalyse!AG24","v":0}]
[20,{"$f":"Ausbildungsbedarfsanalyse!B25","v":"26"},{"$f":"Ausbildungsbedarfsanalyse!D25","v":"Fire Protection"},null,{"$f":"Ausbildungsbedarfsanalyse!E25","v":3},{"$f":"Ausbildungsbedarfsanalyse!AC25","v":0},{"$f":"Ausbildungsbedarfsanalyse!AD25","v":0},{"$f":"Ausbildungsbedarfsanalyse!AG25","v":0}]
[21,{"$f":"Ausbildungsbedarfsanalyse!B26","v":"27"},{"$f":"Ausbildungsbedarfsanalyse!D26","v":"Flight Controls"},null,{"$f":"Ausbildungsbedarfsanalyse!E26","v":3},{"$f":"Ausbildungsbedarfsanalyse!AC26","v":0},{"$f":"Ausbildungsbedarfsanalyse!AD26","v":0},{"$f":"Ausbildungsbedarfsanalyse!AG26","v":0}]
[22,{"$f":"Ausbildungsbedarfsanalyse!B27","v":"27A"},{"$f":"Ausbildungsbedarfsanalyse!D27","v":"Sys. Operation: Electrical/Fly-by-Wire"},null,{"$f":"Ausbildungsbedarfsanalyse!E27","v":3},{"$f":"Ausbildungsbedarfsanalyse!AC27","v":0},{"$f":"Ausbildungsbedarfsanalyse!AD27","v":0},{"$f":"Ausbildungsbedarfsanalyse!AG27","v":0}]
[23,{"$f":"Ausbildungsbedarfsanalyse!B28","v":"27S"},{"$f":"Ausbildungsbedarfsanalyse!D28","v":"Flight Control Surfaces"},null,{"$f":"Ausbildungsbedarfsanalyse!E28","v":3},{"$f":"Ausbildungsbedarfsanalyse!AC28","v":0},{"$f":"Ausbildungsbedarfsanalyse!AD28","v":0},{"$f":"Ausbildungsbedarfsanalyse!AG28","v":0}]
[24,{"$f":"Ausbildungsbedarfsanalyse!B29","v":"28"},{"$f":"Ausbildungsbedarfsanalyse!D29","v":"Fuel Systems (FUEL)"},null,{"$f":"Ausbildungsbedarfsanalyse!E29","v":3},{"$f":"Ausbildungsbedarfsanalyse!AC29","v":0},{"$f":"Ausbildungsbedarfsanalyse!AD29","v":0},{"$f":"Ausbildungsbedarfsanalyse!AG29","v":0}]
[25,{"$f":"Ausbildungsbedarfsanalyse!B30","v":"28A"},{"$f":"Ausbildungsbedarfsanalyse!D30","v":"Fuel Systems - Monitoring and Indicating"},null,{"$f":"Ausbildungsbedarfsanalyse!E30","v":3},{"$f":"Ausbildungsbedarfsanalyse!AC30","v":0},{"$f":"Ausbildungsbedarfsanalyse!AD30","v":0},{"$f":"Ausbildungsbedarfsanalyse!AG30","v":0}]
[26,{"$f":"Ausbildungsbedarfsanalyse!B31","v":"29"},{"$f":"Ausbildungsbedarfsanalyse!D31","v":"Hydraulic Power"},null,{"$f":"Ausbildungsbedarfsanalyse!E31","v":3},{"$f":"Ausbildungsbedarfsanalyse!AC31","v":0},{"$f":"Ausbildungsbedarfsanalyse!AD31","v":0},{"$f":"Ausbildungsbedarfsanalyse!AG31","v":0}]
[27,{"$f":"Ausbildungsbedarfsanalyse!B32","v":"29A"},{"$f":"Ausbildungsbedarfsanalyse!D32","v":"Hydraulic Power - Monitoring and Indicating"},null,{"$f":"Ausbildungsbedarfsanalyse!E32","v":3},{"$f":"Ausbildungsbedarfsanalyse!AC32","v":0},{"$f":"Ausbildungsbedarfsanalyse!AD32","v":0},{"$f":"Ausbildungsbedarfsanalyse!AG32","v":0}]
[28,{"$f":"Ausbildungsbedarfsanalyse!B33","v":"30"},{"$f":"Ausbildungsbedarfsanalyse!D33","v":"Ice and Rain Protection"},null,{"$f":"Ausbildungsbedarfsanalyse!E33","v":3},{"$f":"Ausbildungsbedarfsanalyse!AC33","v":0},{"$f":"Ausbildungsbedarfsanalyse!AD33","v":0},{"$f":"Ausbildungsbedarfsanalyse!AG33","v":0}]
[29,{"$f":"Ausbildungsbedarfsanalyse!B34","v":"31"},{"$f":"Ausbildungsbedarfsanalyse!D34","v":"Indicating/Recording Systems"},null,{"$f":"Ausbildungsbedarfsanalyse!E34","v":3},{"$f":"Ausbildungsbedarfsanalyse!AC34","v":0},{"$f":"Ausbildungsbedarfsanalyse!AD34","v":0},{"$f":"Ausbildungsbedarfsanalyse!AG34","v":0}]
[30,{"$f":"Ausbildungsbedarfsanalyse!B35","v":"31A"},{"$f":"Ausbildungsbedarfsanalyse!D35","v":"Instrument Systems"},null,{"$f":"Ausbildungsbedarfsanalyse!E35","v":3},{"$f":"Ausbildungsbedarfsanalyse!AC35","v":0},{"$f":"Ausbildungsbedarfsanalyse!AD35","v":0},{"$f":"Ausbildungsbedarfsanalyse!AG35","v":0}]
[31,{"$f":"Ausbildungsbedarfsanalyse!B36","v":"32"},{"$f":"Ausbildungsbedarfsanalyse!D36","v":"Landing Gear"},null,{"$f":"Ausbildungsbedarfsanalyse!E36","v":3},{"$f":"Ausbildungsbedarfsanalyse!AC36","v":0},{"$f":"Ausbildungsbedarfsanalyse!AD36","v":0},{"$f":"Ausbildungsbedarfsanalyse!AG36","v":0}]
[32,{"$f":"Ausbildungsbedarfsanalyse!B37","v":"32A"},{"$f":"Ausbildungsbedarfsanalyse!D37","v":"Landing Gear - Monitoring and Indicating"},null,{"$f":"Ausbildungsbedarfsanalyse!E37","v":3},{"$f":"Ausbildungsbedarfsanalyse!AC37","v":0},{"$f":"Ausbildungsbedarfsanalyse!AD37","v":0},{"$f":"Ausbildungsbedarfsanalyse!AG37","v":0}]
[33,{"$f":"Ausbildungsbedarfsanalyse!B38","v":"33"},{"$f":"Ausbildungsbedarfsanalyse!D38","v":"Lights"},null,{"$f":"Ausbildungsbedarfsanalyse!E38","v":3},{"$f":"Ausbildungsbedarfsanalyse!AC38","v":0},{"$f":"Ausbildungsbedarfsanalyse!AD38","v":0},{"$f":"Ausbildungsbedarfsanalyse!AG38","v":0}]
[34,{"$f":"Ausbildungsbedarfsanalyse!B39","v":"34"},{"$f":"Ausbildungsbedarfsanalyse!D39","v":"Navigation"},null,{"$f":"Ausbildungsbedarfsanalyse!E39","v":2},{"$f":"Ausbildungsbedarfsanalyse!AC39","v":0},{"$f":"Ausbildungsbedarfsanalyse!AD39","v":0},{"$f":"Ausbildungsbedarfsanalyse!AG39","v":0}]
[35,{"$f":"Ausbildungsbedarfsanalyse!B40","v":"35"},{"$f":"Ausbildungsbedarfsanalyse!D40","v":"Oxygen"},null,{"$f":"Ausbildungsbedarfsanalyse!E40","v":3},{"$f":"Ausbildungsbedarfsanalyse!AC40","v":0},{"$f":"Ausbildungsbedarfsanalyse!AD40","v":0},{"$f":"Ausbildungsbedarfsanalyse!AG40","v":0}]
[36,{"$f":"Ausbildungsbedarfsanalyse!B41","v":"36"},{"$f":"Ausbildungsbedarfsanalyse!D41","v":"Pneumatic"},null,{"$f":"Ausbildungsbedarfsanalyse!E41","v":3},{"$f":"Ausbildungsbedarfsanalyse!AC41","v":0},{"$f":"Ausbildungsbedarfsanalyse!AD41","v":0},{"$f":"Ausbildungsbedarfsanalyse!AG41","v":0}]
[37,{"$f":"Ausbildungsbedarfsanalyse!B42","v":"36A"},{"$f":"Ausbildungsbedarfsanalyse!D42","v":"Pneumatic - Monitoring and Indicating"},null,{"$f":"Ausbildungsbedarfsanalyse!E42","v":3},{"$f":"Ausbildungsbedarfsanalyse!AC42","v":0},{"$f":"Ausbildungsbedarfsanalyse!AD42","v":0},{"$f":"Ausbildungsbedarfsanalyse!AG42","v":0}]
[38,{"$f":"Ausbildungsbedarfsanalyse!B43","v":"37"},{"$f":"Ausbildungsbedarfsanalyse!D43","v":"Vacuum"},null,{"$f":"Ausbildungsbedarfsanalyse!E43","v":3},{"$f":"Ausbildungsbedarfsanalyse!AC43","v":0},{"$f":"Ausbildungsbedarfsanalyse!AD43","v":0},{"$f":"Ausbildungsbedarfsanalyse!AG43","v":0}]
[39,{"$f":"Ausbildungsbedarfsanalyse!B44","v":"38"},{"$f":"Ausbildungsbedarfsanalyse!D44","v":"Water/Waste"},null,{"$f":"Ausbildungsbedarfsanalyse!E44","v":3},{"$f":"Ausbildungsbedarfsanalyse!AC44","v":0},{"$f":"Ausbildungsbedarfsanalyse!AD44","v":0},{"$f":"Ausbildungsbedarfsanalyse!AG44","v":0}]
[40,{"$f":"Ausbildungsbedarfsanalyse!B45","v":"41"},{"$f":"Ausbildungsbedarfsanalyse!D45","v":"Water Ballast"},null,{"$f":"Ausbildungsbedarfsanalyse!E45","v":3},{"$f":"Ausbildungsbedarfsanalyse!AC45","v":0},{"$f":"Ausbildungsbedarfsanalyse!AD45","v":0},{"$f":"Ausbildungsbedarfsanalyse!AG45","v":0}]
[41,{"$f":"Ausbildungsbedarfsanalyse!B46","v":"42"},{"$f":"Ausbildungsbedarfsanalyse!D46","v":"Integrated modular avionics"},null,{"$f":"Ausbildungsbedarfsanalyse!E46","v":2},{"$f":"Ausbildungsbedarfsanalyse!AC46","v":0},{"$f":"Ausbildungsbedarfsanalyse!AD46","v":0},{"$f":"Ausbildungsbedarfsanalyse!AG46","v":0}]
[42,{"$f":"Ausbildungsbedarfsanalyse!B47","v":"44"},{"$f":"Ausbildungsbedarfsanalyse!D47","v":"Cabin Systems"},null,{"$f":"Ausbildungsbedarfsanalyse!E47","v":2},{"$f":"Ausbildungsbedarfsanalyse!AC47","v":0},{"$f":"Ausbildungsbedarfsanalyse!AD47","v":0},{"$f":"Ausbildungsbedarfsanalyse!AG47","v":0}]
[43,{"$f":"Ausbildungsbedarfsanalyse!B48","v":"45"},{"$f":"Ausbildungsbedarfsanalyse!D48","v":"On-Board Maintenance System (or covered in 31)"},null,{"$f":"Ausbildungsbedarfsanalyse!E48","v":3},{"$f":"Ausbildungsbedarfsanalyse!AC48","v":0},{"$f":"Ausbildungsbedarfsanalyse!AD48","v":0},{"$f":"Ausbildungsbedarfsanalyse!AG48","v":0}]
[44,{"$f":"Ausbildungsbedarfsanalyse!B49","v":"46"},{"$f":"Ausbildungsbedarfsanalyse!D49","v":"Information Systems"},null,{"$f":"Ausbildungsbedarfsanalyse!E49","v":2},{"$f":"Ausbildungsbedarfsanalyse!AC49","v":0},{"$f":"Ausbildungsbedarfsanalyse!AD49","v":0},{"$f":"Ausbildungsbedarfsanalyse!AG49","v":0}]
[45,{"$f":"Ausbildungsbedarfsanalyse!B50","v":"49"},{"$f":"Ausbildungsbedarfsanalyse!D50","v":"Auxiliary Power Units (APUs)"},null,{"$f":"Ausbildungsbedarfsanalyse!E50","v":3},{"$f":"Ausbildungsbedarfsanalyse!AC50","v":0},{"$f":"Ausbildungsbedarfsanalyse!AD50","v":0},{"$f":"Ausbildungsbedarfsanalyse!AG50","v":0}]
[46,{"$f":"Ausbildungsbedarfsanalyse!B51","v":50},{"$f":"Ausbildungsbedarfsanalyse!D51","v":"Airframe Structure"},null,{"$f":"Ausbildungsbedarfsanalyse!E51","v":0},{"$f":"Ausbildungsbedarfsanalyse!AC51","v":0},{"$f":"Ausbildungsbedarfsanalyse!AD51","v":0},{"$f":"Ausbildungsbedarfsanalyse!AG51","v":0}]
[47,{"$f":"Ausbildungsbedarfsanalyse!B52","v":"50"},{"$f":"Ausbildungsbedarfsanalyse!D52","v":"Cargo and Accessory Compartments"},null,{"$f":"Ausbildungsbedarfsanalyse!E52","v":3},{"$f":"Ausbildungsbedarfsanalyse!AC52","v":0},{"$f":"Ausbildungsbedarfsanalyse!AD52","v":0},{"$f":"Ausbildungsbedarfsanalyse!AG52","v":0}]
[48,{"$f":"Ausbildungsbedarfsanalyse!B53","v":51},{"$f":"Ausbildungsbedarfsanalyse!D53","v":"Standard practices and structures (damage classification, assessment and repair)"},null,{"$f":"Ausbildungsbedarfsanalyse!E53","v":3},{"$f":"Ausbildungsbedarfsanalyse!AC53","v":0},{"$f":"Ausbildungsbedarfsanalyse!AD53","v":0},{"$f":"Ausbildungsbedarfsanalyse!AG53","v":0}]
[49,{"$f":"Ausbildungsbedarfsanalyse!B54","v":"52"},{"$f":"Ausbildungsbedarfsanalyse!D54","v":"Doors"},null,{"$f":"Ausbildungsbedarfsanalyse!E54","v":3},{"$f":"Ausbildungsbedarfsanalyse!AC54","v":0},{"$f":"Ausbildungsbedarfsanalyse!AD54","v":0},{"$f":"Ausbildungsbedarfsanalyse!AG54","v":0}]
[50,{"$f":"Ausbildungsbedarfsanalyse!B55","v":"53"},{"$f":"Ausbildungsbedarfsanalyse!D55","v":"Fuselage"},null,{"$f":"Ausbildungsbedarfsanalyse!E55","v":3},{"$f":"Ausbildungsbedarfsanalyse!AC55","v":0},{"$f":"Ausbildungsbedarfsanalyse!AD55","v":0},{"$f":"Ausbildungsbedarfsanalyse!AG55","v":0}]
[51,{"$f":"Ausbildungsbedarfsanalyse!B56","v":"54"},{"$f":"Ausbildungsbedarfsanalyse!D56","v":"Nacelles/Pylons"},null,{"$f":"Ausbildungsbedarfsanalyse!E56","v":3},{"$f":"Ausbildungsbedarfsanalyse!AC56","v":0},{"$f":"Ausbildungsbedarfsanalyse!AD56","v":0},{"$f":"Ausbildungsbedarfsanalyse!AG56","v":0}]
[52,{"$f":"Ausbildungsbedarfsanalyse!B57","v":"55"},{"$f":"Ausbildungsbedarfsanalyse!D57","v":"Stabilisers"},null,{"$f":"Ausbildungsbedarfsanalyse!E57","v":3},{"$f":"Ausbildungsbedarfsanalyse!AC57","v":0},{"$f":"Ausbildungsbedarfsanalyse!AD57","v":0},{"$f":"Ausbildungsbedarfsanalyse!AG57","v":0}]
[53,{"$f":"Ausbildungsbedarfsanalyse!B58","v":"56"},{"$f":"Ausbildungsbedarfsanalyse!D58","v":"Windows"},null,{"$f":"Ausbildungsbedarfsanalyse!E58","v":3},{"$f":"Ausbildungsbedarfsanalyse!AC58","v":0},{"$f":"Ausbildungsbedarfsanalyse!AD58","v":0},{"$f":"Ausbildungsbedarfsanalyse!AG58","v":0}]
[54,{"$f":"Ausbildungsbedarfsanalyse!B59","v":"57"},{"$f":"Ausbildungsbedarfsanalyse!D59","v":"Wings"},null,{"$f":"Ausbildungsbedarfsanalyse!E59","v":3},{"$f":"Ausbildungsbedarfsanalyse!AC59","v":0},{"$f":"Ausbildungsbedarfsanalyse!AD59","v":0},{"$f":"Ausbildungsbedarfsanalyse!AG59","v":0}]
[55,{"$f":"Ausbildungsbedarfsanalyse!B60","v":"60A"},{"$f":"Ausbildungsbedarfsanalyse!D60","v":"Standards Practices - Propeller"},null,{"$f":"Ausbildungsbedarfsanalyse!E60","v":3},{"$f":"Ausbildungsbedarfsanalyse!AC60","v":0},{"$f":"Ausbildungsbedarfsanalyse!AD60","v":0},{"$f":"Ausbildungsbedarfsanalyse!AG60","v":0}]
[56,{"$f":"Ausbildungsbedarfsanalyse!B61","v":"61"},{"$f":"Ausbildungsbedarfsanalyse!D61","v":"Propellers/Propulsion (General)"},null,{"$f":"Ausbildungsbedarfsanalyse!E61","v":3},{"$f":"Ausbildungsbedarfsanalyse!AC61","v":0},{"$f":"Ausbildungsbedarfsanalyse!AD61","v":0},{"$f":"Ausbildungsbedarfsanalyse!AG61","v":0}]
[57,{"$f":"Ausbildungsbedarfsanalyse!B62","v":"61A"},{"$f":"Ausbildungsbedarfsanalyse!D62","v":"Propeller construction"},null,{"$f":"Ausbildungsbedarfsanalyse!E62","v":3},{"$f":"Ausbildungsbedarfsanalyse!AC62","v":0},{"$f":"Ausbildungsbedarfsanalyse!AD62","v":0},{"$f":"Ausbildungsbedarfsanalyse!AG62","v":0}]
[58,{"$f":"Ausbildungsbedarfsanalyse!B63","v":"61B"},{"$f":"Ausbildungsbedarfsanalyse!D63","v":"Propeller pitch control"},null,{"$f":"Ausbildungsbedarfsanalyse!E63","v":3},{"$f":"Ausbildungsbedarfsanalyse!AC63","v":0},{"$f":"Ausbildungsbedarfsanalyse!AD63","v":0},{"$f":"Ausbildungsbedarfsanalyse!AG63","v":0}]
[59,{"$f":"Ausbildungsbedarfsanalyse!B64","v":"61C"},{"$f":"Ausbildungsbedarfsanalyse!D64","v":"Propeller synchronising"},null,{"$f":"Ausbildungsbedarfsanalyse!E64","v":3},{"$f":"Ausbildungsbedarfsanalyse!AC64","v":0},{"$f":"Ausbildungsbedarfsanalyse!AD64","v":0},{"$f":"Ausbildungsbedarfsanalyse!AG64","v":0}]
[60,{"$f":"Ausbildungsbedarfsanalyse!B65","v":"61D"},{"$f":"Ausbildungsbedarfsanalyse!D65","v":"Propeller electronic control"},null,{"$f":"Ausbildungsbedarfsanalyse!E65","v":2},{"$f":"Ausbildungsbedarfsanalyse!AC65","v":0},{"$f":"Ausbildungsbedarfsanalyse!AD65","v":0},{"$f":"Ausbildungsbedarfsanalyse!AG65","v":0}]
[61,{"$f":"Ausbildungsbedarfsanalyse!B66","v":"61E"},{"$f":"Ausbildungsbedarfsanalyse!D66","v":"Propeller ice protection"},null,{"$f":"Ausbildungsbedarfsanalyse!E66","v":3},{"$f":"Ausbildungsbedarfsanalyse!AC66","v":0},{"$f":"Ausbildungsbedarfsanalyse!AD66","v":0},{"$f":"Ausbildungsbedarfsanalyse!AG66","v":0}]
[62,{"$f":"Ausbildungsbedarfsanalyse!B67","v":"61F"},{"$f":"Ausbildungsbedarfsanalyse!D67","v":"Propeller maintenance"},null,{"$f":"Ausbildungsbedarfsanalyse!E67","v":3},{"$f":"Ausbildungsbedarfsanalyse!AC67","v":0},{"$f":"Ausbildungsbedarfsanalyse!AD67","v":0},{"$f":"Ausbildungsbedarfsanalyse!AG67","v":0}]
[63,{"$f":"Ausbildungsbedarfsanalyse!B68","v":0},{"$f":"Ausbildungsbedarfsanalyse!D68","v":0},null,{"$f":"Ausbildungsbedarfsanalyse!E68","v":0},{"$f":"Ausbildungsbedarfsanalyse!AC68","v":0},{"$f":"Ausbildungsbedarfsanalyse!AD68","v":0},{"$f":"Ausbildungsbedarfsanalyse!AG68","v":0}]
[64,{"$f":"Ausbildungsbedarfsanalyse!B69","v":"70"},{"$f":"Ausbildungsbedarfsanalyse!D69","v":"Standard Practices - Engines"},null,{"$f":"Ausbildungsbedarfsanalyse!E69","v":3},{"$f":"Ausbildungsbedarfsanalyse!AC69","v":0},{"$f":"Ausbildungsbedarfsanalyse!AD69","v":0},{"$f":"Ausbildungsbedarfsanalyse!AG69","v":0}]
[65,{"$f":"Ausbildungsbedarfsanalyse!B70","v":0},{"$f":"Ausbildungsbedarfsanalyse!D70","v":0},null,{"$f":"Ausbildungsbedarfsanalyse!E70","v":0},{"$f":"Ausbildungsbedarfsanalyse!AC70","v":0},{"$f":"Ausbildungsbedarfsanalyse!AD70","v":0},{"$f":"Ausbildungsbedarfsanalyse!AG70","v":0}]
[66,{"$f":"Ausbildungsbedarfsanalyse!B71","v":0},{"$f":"Ausbildungsbedarfsanalyse!D71","v":0},null,{"$f":"Ausbildungsbedarfsanalyse!E71","v":0},{"$f":"Ausbildungsbedarfsanalyse!AC71","v":0},{"$f":"Ausbildungsbedarfsanalyse!AD71","v":0},{"$f":"Ausbildungsbedarfsanalyse!AG71","v":0}]
[67,{"$f":"Ausbildungsbedarfsanalyse!B72","v":"70A"},{"$f":"Ausbildungsbedarfsanalyse!D72","v":"Constructional arrangement and operation (Installation Inlet, Compressors, Combustion Section, Turbine Section, Bearings and Seals, Lubrication Systems)."},null,{"$f":"Ausbildungsbedarfsanalyse!E72","v":3},{"$f":"Ausbildungsbedarfsanalyse!AC72","v":0},{"$f":"Ausbildungsbedarfsanalyse!AD72","v":0},{"$f":"Ausbildungsbedarfsanalyse!AG72","v":0}]
[68,{"$f":"Ausbildungsbedarfsanalyse!B73","v":"70B"},{"$f":"Ausbildungsbedarfsanalyse!D73","v":"Engine Performance"},null,{"$f":"Ausbildungsbedarfsanalyse!E73","v":3},{"$f":"Ausbildungsbedarfsanalyse!AC73","v":0},{"$f":"Ausbildungsbedarfsanalyse!AD73","v":0},{"$f":"Ausbildungsbedarfsanalyse!AG73","v":0}]
[69,{"$f":"Ausbildungsbedarfsanalyse!B74","v":"71"},{"$f":"Ausbildungsbedarfsanalyse!D74","v":"Powerplant"},null,{"$f":"Ausbildungsbedarfsanalyse!E74","v":3},{"$f":"Ausbildungsbedarfsanalyse!AC74","v":0},{"$f":"Ausbildungsbedarfsanalyse!AD74","v":0},{"$f":"Ausbildungsbedarfsanalyse!AG74","v":0}]
[70,{"$f":"Ausbildungsbedarfsanalyse!B75","v":"72"},{"$f":"Ausbildungsbedarfsanalyse!D75","v":"Engine Turbine/Turbo Prop/Ducted Fan/Unducted fan"},null,{"$f":"Ausbildungsbedarfsanalyse!E75","v":3},{"$f":"Ausbildungsbedarfsanalyse!AC75","v":0},{"$f":"Ausbildungsbedarfsanalyse!AD75","v":0},{"$f":"Ausbildungsbedarfsanalyse!AG75","v":0}]
[71,{"$f":"Ausbildungsbedarfsanalyse!B76","v":"73"},{"$f":"Ausbildungsbedarfsanalyse!D76","v":"Engine Fuel and Control"},null,{"$f":"Ausbildungsbedarfsanalyse!E76","v":3},{"$f":"Ausbildungsbedarfsanalyse!AC76","v":0},{"$f":"Ausbildungsbedarfsanalyse!AD76","v":0},{"$f":"Ausbildungsbedarfsanalyse!AG76","v":0}]
[72,{"$f":"Ausbildungsbedarfsanalyse!B77","v":"73A"},{"$f":"Ausbildungsbedarfsanalyse!D77","v":"FADEC"},null,{"$f":"Ausbildungsbedarfsanalyse!E77","v":3},{"$f":"Ausbildungsbedarfsanalyse!AC77","v":0},{"$f":"Ausbildungsbedarfsanalyse!AD77","v":0},{"$f":"Ausbildungsbedarfsanalyse!AG77","v":0}]
[73,{"$f":"Ausbildungsbedarfsanalyse!B78","v":"74"},{"$f":"Ausbildungsbedarfsanalyse!D78","v":"Ignition"},null,{"$f":"Ausbildungsbedarfsanalyse!E78","v":3},{"$f":"Ausbildungsbedarfsanalyse!AC78","v":0},{"$f":"Ausbildungsbedarfsanalyse!AD78","v":0},{"$f":"Ausbildungsbedarfsanalyse!AG78","v":0}]
[74,{"$f":"Ausbildungsbedarfsanalyse!B79","v":"75"},{"$f":"Ausbildungsbedarfsanalyse!D79","v":"Air"},null,{"$f":"Ausbildungsbedarfsanalyse!E79","v":3},{"$f":"Ausbildungsbedarfsanalyse!AC79","v":0},{"$f":"Ausbildungsbedarfsanalyse!AD79","v":0},{"$f":"Ausbildungsbedarfsanalyse!AG79","v":0}]
[75,{"$f":"Ausbildungsbedarfsanalyse!B80","v":"76"},{"$f":"Ausbildungsbedarfsanalyse!D80","v":"Engine controls"},null,{"$f":"Ausbildungsbedarfsanalyse!E80","v":3},{"$f":"Ausbildungsbedarfsanalyse!AC80","v":0},{"$f":"Ausbildungsbedarfsanalyse!AD80","v":0},{"$f":"Ausbildungsbedarfsanalyse!AG80","v":0}]
[76,{"$f":"Ausbildungsbedarfsanalyse!B81","v":"77"},{"$f":"Ausbildungsbedarfsanalyse!D81","v":"Engine Indicating Systems"},null,{"$f":"Ausbildungsbedarfsanalyse!E81","v":3},{"$f":"Ausbildungsbedarfsanalyse!AC81","v":0},{"$f":"Ausbildungsbedarfsanalyse!AD81","v":0},{"$f":"Ausbildungsbedarfsanalyse!AG81","v":0}]
[77,{"$f":"Ausbildungsbedarfsanalyse!B82","v":"78"},{"$f":"Ausbildungsbedarfsanalyse!D82","v":"Exhaust"},null,{"$f":"Ausbildungsbedarfsanalyse!E82","v":3},{"$f":"Ausbildungsbedarfsanalyse!AC82","v":0},{"$f":"Ausbildungsbedarfsanalyse!AD82","v":0},{"$f":"Ausbildungsbedarfsanalyse!AG82","v":0}]
[78,{"$f":"Ausbildungsbedarfsanalyse!B83","v":"79"},{"$f":"Ausbildungsbedarfsanalyse!D83","v":"Oil"},null,{"$f":"Ausbildungsbedarfsanalyse!E83","v":3},{"$f":"Ausbildungsbedarfsanalyse!AC83","v":0},{"$f":"Ausbildungsbedarfsanalyse!AD83","v":0},{"$f":"Ausbildungsbedarfsanalyse!AG83","v":0}]
[79,{"$f":"Ausbildungsbedarfsanalyse!B84","v":0},null,null,{"$f":"Ausbildungsbedarfsanalyse!E84","v":0},{"$f":"Ausbildungsbedarfsanalyse!AC84","v":0},{"$f":"Ausbildungsbedarfsanalyse!AD84","v":0},{"$f":"Ausbildungsbedarfsanalyse!AG84","v":0}]
[80,{"$f":"Ausbildungsbedarfsanalyse!B85","v":0},null,null,{"$f":"Ausbildungsbedarfsanalyse!E85","v":0},{"$f":"Ausbildungsbedarfsanalyse!AC85","v":0},{"$f":"Ausbildungsbedarfsanalyse!AD85","v":0},{"$f":"Ausbildungsbedarfsanalyse!AG85","v":0}]
[81,{"$f":"Ausbildungsbedarfsanalyse!B86","v":0},null,null,{"$f":"Ausbildungsbedarfsanalyse!E86","v":0},{"$f":"Ausbildungsbedarfsanalyse!AC86","v":0},{"$f":"Ausbildungsbedarfsanalyse!AD86","v":0},{"$f":"Ausbildungsbedarfsanalyse!AG86","v":0}]
[null,"Total hours",null,{"$f":"SUM(F15:F92)","v":0},"Total MCQ",null,null,{"$f":"SUM(G15:G92)","v":0}]
[null,"MTOE Reference and Amendment Status"]
[null,"Date"]
[null,"Accountable Manager"]
[null,"NAA"]

{"sheet":"Learning Objectives","index":3,"n_rows":11,"n_cols":3,"rows_kept":11,"cut":false,"hidden":false,"merged":[]}
["A brief overview of the airframe, systems and powerplant as outlined in the Systems Description Section of the Aircraft Maintenance Manual/Instructions for Continued Airworthiness.","Basic system overview of controls, indicators, principal components, including their location and purpose, servicing and minor troubleshooting. General knowledge of the theoretical and practical aspects of the subject. \n(a)understand the theoretical fundamentals; apply knowledge in a practical manner using detailed procedures)","Detailed description, operation, component location, removal/installation and bite and troubleshooting procedures to maintenance manual level.\n"]
["Objectives Level 1","Objectives Level 2","Objectives Level 3"]
["Provide simple description of whole subject","recall the safety precautions","recall the safety precautions"]
["identify safety precautions","describe systems and aircraft handling particularly access, power availability and sources","provide detailed description of systems, structures and powerplant and their interrelationships"]
["Identify aircraft manuals and important maintenance practices","usage, interpretation and application of appropriate documentation","usage, interpretation and application of appropriate documentation incl. SRM, TSM etc."]
["Identify special tooling and test equipment","Identify special tooling and test equipment","Identify special tooling and test equipment"]
["define the general layout of the aircraft´s major systems","explain the normal function of each major/powerplant system","identify the location of principal components"]
["define the general layout and characteristics of the powerplant","identify the location of the principal components","correlate information from various sources for trouble shooting to maintenance manual level"]
[null,"demonstate proficiency of minor trouble shooting and determine status per MEL/CDL","describe the procedures for servicing"]
[null,"describe the procedures for servicing","describe typical functional checks per AMM"]
[null,null,"describe removal/installation procedures unique to aircraft type"]

{"sheet":"Part66 Matrix","index":4,"n_rows":94,"n_cols":19,"rows_kept":94,"cut":false,"hidden":false,"merged":[[1,6,1,9]]}
[null,null,null,null,null,null,null,null,null,null,null,null,null,null,"Legende der Differenzen:"]
[null,null,null,null,null,null,"FOR INFO ONLY",null,null,null,null,null,null,null,"0 = muss nicht mehr unterrichtet werden"]
[null,null,null,null,null,null,null,null,null,null,null,null,null,null,"1-3 = zu unterichtende Level"]
[]
[null,null,"NEW PART66",null,null,null,null,null,null,"OLD PART66",null,null,null,null,null,"Differences"]
["ID","ATA","ATA NAME","CAT B1","CAT C","CAT B2","CAT B1/2","Spalte1","ATA ","ATA NAME old","CAT B1 old","CAT C old","CAT B2 old","CAT B1/2 old","Spalte2","CAT B1 Diff","CAT C Diff","CAT B2 Diff","CAT B1/2 Diff"]
[1,null,null,null,null,null,null,null,"00","B2 module-safety items/mechanical interface",1,1,1,1,null,{"$f":"IF(D7=K7,\"\",D7)","v":0},{"$f":"IF(E7=L7,\"\",E7)","v":0},{"$f":"IF(F7=M7,\"\",F7)","v":0},{"$f":"IF(G7=N7,\"\",G7)","v":0}]
[2,null,null,null,null,null,null,null,"00","B1 module-safety items/avionics interface",1,1,null,1,null,0,0,"",0]
[3,"05","Time limits/Maintenance checks",1,1,1,1,null,"05","Time limits/Maintenance checks",1,1,1,1,null,"","","",""]
[4,"06A","Dimensions/Areas (MTOM, etc.)",1,1,1,1,null,"06A","Dimensions/Areas (MTOM, etc.)",1,1,1,1,null,"","","",""]
[5,"06B","Zonal and Station Identification Systems",1,1,1,1,null,"06B","Zonal and Station Identification Systems",1,1,1,1,null,"","","",""]
[6,"07","Lifting and Shoring",1,1,1,1,null,"07",null,null,null,null,null,null,1,1,1,1]
[7,"08","Levelling and weighing",1,1,1,1,null,"08","Levelling and weighing",1,1,1,1,null,"","","",""]
[8,"09","Towing and taxiing",1,1,1,1,null,"09","Towing and taxiing",1,1,1,1,null,"","","",""]
[9,"10","Parking/Mooring, Storing and Return to Service",1,1,1,1,null,"10","Parking/Mooring, Storing and Return to Service",1,1,1,1,null,"","","",""]
[10,"11","Placards and Markings",1,1,1,1,null,"11",null,null,null,null,null,null,1,1,1,1]
[11,"12","Servicing",1,1,1,1,null,"12","Servicing",1,1,1,1,null,"","","",""]
[12,"20","Standard practices - Only type particular",1,1,1,1,null,"20","Standard practices - Only type particular",1,1,1,1,null,"","","",""]
[13,"21","Air Conditioning",3,1,3,3,null,"21","Air Conditioning",3,1,1,3,null,"","",3,""]
[14,"21A","Air Supply",3,1,2,3,null,"21A","Air Supply",3,1,1,3,null,"","",2,""]
[15,"21B","Pressurisation",3,1,3,3,null,"21B","Pressurisation",3,1,1,3,null,"","",3,""]
[16,"21C","Safety and Warning Devices",3,1,3,3,null,"21C","Safety and Warning Devices",3,1,1,3,null,"","",3,""]
[17,"22","Autoflight",2,1,3,3,null,"22","Autoflight",2,1,3,3,null,"","","",""]
[18,"23","Communications",2,1,3,3,null,"23","Communications",2,1,3,3,null,"","","",""]
[19,"24","Electrical Power",3,1,3,3,null,"24","Electrical Power",3,1,3,3,null,"","","",""]
[20,"25","Equipment and Furnishings",3,1,1,3,null,"25","Equipment and Furnishings",3,1,null,3,null,"","",1,""]
[21,"25A","Electronic Equipment including emergency equipment",1,1,3,3,null,"25A","Electronic Equipment including emergency equipment",null,1,3,3,null,1,"","",""]
[22,"26","Fire Protection",3,1,3,3,null,"26","Fire Protection (incl Engine)",3,1,1,3,null,"","",3,""]
[23,"27","Flight Controls",3,1,2,3,null,"27","Flight Controls",3,1,2,3,null,"","","",""]
[24,"27A","Sys. Operation: Electrical/Fly-by-Wire",3,1,3,3,null,"27A","Sys. Operation: Electrical/Fly-by-Wire",3,1,3,3,null,"","","",""]
[25,"27S","Flight Control Surfaces",3,1,1,3,null,"27S","Flight Control Surfaces",3,1,null,3,null,"","",1,""]
[26,"28","Fuel Systems (FUEL)",3,1,2,3,null,"28","Fuel Systems (FUEL)",3,1,1,3,null,"","",2,""]
[27,"28A","Fuel Systems - Monitoring and Indicating",3,1,3,3,null,"28A",null,null,null,null,null,null,3,1,3,3]
[28,"29","Hydraulic Power",3,1,2,3,null,"29","Hydraulic Power",3,1,1,3,null,"","",2,""]
[29,"29A","Hydraulic Power - Monitoring and Indicating",3,1,3,3,null,"29A",null,null,null,null,null,null,3,1,3,3]
[30,"30","Ice and Rain Protection",3,1,3,3,null,"30","Ice and Rain Protection",3,1,1,3,null,"","",3,""]
[31,"31","Indicating/Recording Systems",3,1,3,3,null,"31",null,null,null,null,null,null,3,1,3,3]
[32,"31A","Instrument Systems",3,1,3,3,null,"31A","Instrument Systems",3,1,3,3,null,"","","",""]
[33,"32","Landing Gear",3,1,2,3,null,"32","Landing Gear",3,1,1,3,null,{"$f":"IF(D39=K39,\"\",D39)","v":""},"",2,""]
[34,"32A","Landing Gear - Monitoring and Indicating",3,1,3,3,null,"32A",null,null,null,null,null,null,3,1,3,3]
[35,"33","Lights",3,1,3,3,null,"33","Lights",3,1,3,3,null,"","","",""]
[36,"34","Navigation",2,1,3,3,null,"34","Navigation",2,1,3,3,null,"","","",""]
[37,"35","Oxygen",3,1,2,3,null,"35","Oxygen",3,1,1,3,null,"","",2,""]
[38,"36","Pneumatic",3,1,2,3,null,"36","Pneumatic",3,1,1,3,null,"","",2,""]
[39,"36A","Pneumatic - Monitoring and Indicating",3,1,3,3,null,"36A",null,null,null,null,null,null,3,1,3,3]
[40,"37","Vacuum",3,1,2,3,null,"37","Vacuum",3,1,1,3,null,"","",2,""]
[41,"38","Water/Waste",3,1,2,3,null,"38","Water/Waste",3,1,1,3,null,"","",2,""]
[42,"41","Water Ballast",3,1,1,3,null,"41",null,null,null,null,null,null,3,1,1,3]
[43,"42","Integrated modular avionics",2,1,3,3,null,"42",null,null,null,null,null,null,2,1,3,3]
[44,"44","Cabin Systems",2,1,3,3,null,"44",null,null,null,null,null,null,2,1,3,3]
[45,"45","On-Board Maintenance System (or covered in 31)",3,1,3,3,null,"45","On-Board Maintenance System (or covered in 31)",3,1,3,3,null,"","","",""]
[46,"46","Information Systems",2,1,3,3,null,"46","Information Systems",null,null,null,null,null,2,1,3,3]
[47,"49","Auxiliary Power Units (APUs)",3,1,2,3,null,"49","Auxiliary Power Units (APUs)",3,1,1,3,null,"","",2,""]
[48,50,"Airframe Structure",null,null,null,null,null,50,"Airframe Structure",3,1,1,3,null,0,0,0,0]
[49,"50","Cargo and Accessory Compartments",3,1,1,3,null,"50",null,null,null,null,null,null,3,1,1,3]
[50,51,"Standard practices and structures (damage classification, assessment and repair)",3,1,1,3,null,51,null,null,null,null,null,null,3,1,1,3]
[51,"52","Doors",3,1,1,3,null,"52","Doors",3,1,null,3,null,"","",1,""]
[52,"53","Fuselage",3,1,1,3,null,"53","Fuselage",3,1,null,3,null,"","",1,""]
[53,"54","Nacelles/Pylons",3,1,1,3,null,"54","Nacelles/Pylons",3,1,null,3,null,"","",1,""]
[54,"55","Stabilisers",3,1,1,3,null,"55","Stabilisers",3,1,null,3,null,"","",1,""]
[55,"56","Windows",3,1,1,3,null,"56","Windows",3,1,null,3,null,"","",1,""]
[56,"57","Wings",3,1,1,3,null,"57","Wings",3,1,null,3,null,"","",1,""]
[57,"60A","Standards Practices - Propeller",3,1,1,3,null,"60A",null,null,null,null,null,null,3,1,1,3]
[58,"61","Propellers/Propulsion (General)",3,1,1,3,null,"61","Propellers/Propulsion (General)",3,1,1,3,null,"","","",""]
[59,"61A","Propeller construction",3,1,null,3,null,"61A","Propeller construction",3,1,null,3,null,"","","",""]
[60,"61B","Propeller pitch control",3,1,null,3,null,"61B","Propeller pitch control",3,1,null,3,null,"","","",""]
[61,"61C","Propeller synchronising",3,1,1,3,null,"61C","Propeller synchronising",3,1,null,3,null,"","",1,""]
[62,"61D","Propeller electronic control",2,1,3,3,null,"61D","Propeller electronic control",2,1,3,3,null,"","","",""]
[63,"61E","Propeller ice protection",3,1,null,3,null,"61E","Propeller ice protection",3,1,null,3,null,"","","",""]
[64,"61F","Propeller maintenance",3,1,1,3,null,"61F","Propeller maintenance",3,1,null,3,null,"","",1,""]
[65,null,null,null,null,null,null,null,70,"Turbo Prop Engines",3,1,null,3,null,{"$f":"IF(D71=K71,\"\",D71)","v":0},0,"",0]
[66,"70","Standard Practices - Engines",3,1,1,3,null,"70",null,null,null,null,null,null,3,1,1,3]
[67,null,null,null,null,null,null,null,71,"Powerplant installation",3,1,null,3,null,0,0,"",0]
[68,null,null,null,null,null,null,null,71,"Engine monitoring and ground operation",3,1,null,3,null,0,0,"",0]
[69,"70A","Constructional arrangement and operation (Installation Inlet, Compressors, Combustion Section, Turbine Section, Bearings and Seals, Lubrication Systems).",3,1,1,3,null,"70A","Constructional arrangement and operation (Installation Inlet, Compressors, Combustion Section, Turbine Section, Bearings and Seals, Lubrication Systems).",null,null,1,1,null,3,1,"",3]
[70,"70B","Engine Performance",3,1,1,3,null,"70B","Engine Performance",3,1,1,3,null,"","","",""]
[71,"71","Powerplant",3,1,1,3,null,"71","Inlet/Compressor/Combustion",3,1,null,3,null,"","",1,""]
[72,"72","Engine Turbine/Turbo Prop/Ducted Fan/Unducted fan",3,1,1,3,null,"72","Engine Turbine/Turbo Prop/Ducted Fan/Unducted fan",3,1,null,3,null,"","",1,""]
[73,"73","Engine Fuel and Control",3,1,1,3,null,"73","Engine Fuel Systems",3,1,1,3,null,"","","",""]
[74,"73A","FADEC",3,1,3,3,null,"73A","FADEC",2,1,3,3,null,3,"","",""]
[75,"74","Ignition",3,1,3,3,null,"74","Starting & Ignition Systems",3,1,null,3,null,"","",3,""]
[76,"75","Air",3,1,1,3,null,"75","Air Systems",3,1,null,3,null,"","",1,""]
[77,"76","Engine controls",3,1,1,3,null,"76","Engine controls",3,1,1,3,null,"","","",""]
[78,"77","Engine Indicating Systems",3,1,3,3,null,"77","Engine Indicating Systems",3,1,3,3,null,"","","",""]
[79,"78","Exhaust",3,1,1,3,null,"78","Exhaust",3,1,null,3,null,"","",1,""]
[80,"79","Oil",3,1,1,3,null,"79","Oil",3,1,null,3,null,"","",1,""]
[81,null,null,null,null,null,null,null,79,"Lubricants and Fuel",3,1,null,3,null,0,0,"",0]
[82,null,null,null,null,null,null,null,79,"Bearing and Seals",3,1,null,3,null,0,0,"",0]
[83,null,null,null,null,null,null,null,79,"Engine storage and preservation",3,1,null,3,null,0,0,"",0]
[84,"80","Starting",3,1,1,3,null,"80","Starting (incl. In 74)",3,1,null,3,null,"","",1,""]
[85,null,null,null,null,null,null,null,null,null,null,null,null,null,null,"","","",""]
[86,"82","Water Injections",3,1,1,3,null,"82",null,null,null,null,null,null,3,1,1,3]
[87,83,"Accessory Gear Boxes",3,1,1,3,null,83,null,null,null,null,null,null,3,1,1,3]
[88,84,"Propulsion Augmentation",3,1,1,3,null,84,"Power Augmentation Systems",3,1,null,3,null,"","",1,""]